{"text_format":"2","workbook":"xlsx","n_sheets":11,"sheets":["прил.1","прил.2","прил3","прил4","прил5","прил 6","прил 7","прил8","прил9","прил10","прил 11"],"not_rendered":{"charts":0,"images":0,"macros":0,"external_links":0,"defined_names":18,"comments":0,"pivot_tables":0},"unopened":[],"bounds":{"document_bytes":16777216,"sheet_cells":100000,"run_cost":"one","rows_first":2000,"rows_last":500,"rows_between":2000,"halvings":0,"cell_chars":16384,"cell_head_chars":4096},"cells_cut":0,"cells_raw":0,"read":"whole","date_system":"1900"}

{"sheet":"прил.1","index":0,"n_rows":129,"n_cols":6,"rows_kept":129,"cut":false,"hidden":false,"merged":[[2,1,2,2],[5,0,6,5],[8,0,9,0],[8,1,8,2],[8,3,9,3],[8,4,9,4],[8,5,9,5]]}
[]
[]
[]
[]
[]
["Отчет об исполнении бюджета за 2012 год по доходам бюджета Черемховского районного муниципального образования по кодам классификации доходов бюджетов"]
[]
[]
["Наименование","Код бюджетной классификации",null,"План на год, тыс. руб.","Исполнено, тыс. руб.","% исполнения"]
[null,"главного администратора доходов","доходов районного бюджета"]
[1,2,3,4,5,6]
["НАЛОГОВЫЕ И НЕНАЛОГОВЫЕ ДОХОДЫ","000","1 00 00000 00 0000 000",{"$f":"D13+D18+D28+D32+D35+D40+D45+D52+D57+D64","v":102843.3},{"$f":"E13+E18+E28+E32+E35+E40+E45+E52+E57+E64","v":104758.40952999998},{"$f":"E12/D12","v":1.0186216265911341}]
["НАЛОГИ НА ПРИБЫЛЬ, ДОХОДЫ","182","1 01 00000 00 0000 000",{"$f":"D14+D15+D16+D17","v":51800},{"$f":"E14+E15+E16+E17","v":53904.477700000003},{"$f":"E13/D13","v":1.0406269826254826}]
["Налог на доходы физических лиц с доходов, источником которых является налоговый агент, за исключением доходов, в отношении которых исчисление и уплата налога осуществляются в соответствии со статьями 227,227¹ и 228 Налогового кодекса Российской Федерации","182","1 01 02010 01 0000 110",51600,53712.751120000001,1.0409447891472869]
["Налог на доходы физических лиц с доходов, полученных от осуществления деятельности физическими лицами,зарегистрированными в качестве индивидуальных предпринимателей,нотариусов,занимающихся частной практикой,адвокатов,учредивших адвокатские кабинеты и других лиц, занимающихся частной практикой","182","1 01 02020 01 0000 110",50,49.19502,0.98390040000000001]
["Налог на доходы физических лиц с доходов,  полученных физическими лицами, не являющимися налоговыми резидентами ","182","1 01 02030 01 0000 110",147,140.21046000000001,0.95381265306122454]
["Налог на доходы физических лиц в виде фиксированных авансовых платежей с доходов, полученных физическими лицами, являющимися иностанными гражданами, осуществляющими трудовую деятельность по найму у физических лиц на основании патента","182","1 01 02040 01 0000 110",3,2.3210999999999999,0.77369999999999994]
["НАЛОГИ НА СОВОКУПНЫЙ ДОХОД","182","1 05 00000 00 0000 000",{"$f":"D19+D26+D27","v":8784},{"$f":"E19+E26+E27","v":8768.9577800000006},0.99828754326047364]
["Налог, взимаемый в связи с применением упрощенной системы налогообложения ","182","1 05 01000 00 0000 110",{"$f":"D20+D22+D23+D24+D25+D21","v":3894},{"$f":"E20+E22+E23+E24+E25+E21","v":3892.7059499999996},0.99966768104776571]
["Налог, взимаемый с налогоплательщиков, выбравших в качестве объекта налогообложения  доходы","182","1 05 01010 01 0000 110",1550,1662.22828,1.072405341935484]
["Налог, взимаемый с налогоплательщиков, выбравших в качестве объекта налогообложения  доходы (за налоговые периоды, истекшие до 1 января 2011 года)","182","1 05 01012 01 0000 110",0,-20.54664,0]
["Налог, взимаемый с налогоплательщиков, выбравших в качестве объекта налогообложения доходы, уменьшенные на величину расходов","182","1 05 01020 01 0000 110",1500,1458.6824099999999,0.97245493999999988]
["Налог, взимаемый с налогоплательщиков, выбравших в качестве объекта налогообложения доходы, уменьшенные на величину расходов (за налоговые периоды, истекшие до 1 января 2011 года)","182","1 05 01022 01 0000 110",85,81.749979999999994,0.96176447058823522]
["Налог, взимаемый в виде стоимости патента в связи с применением упрощенной системы налогооблажения ","182","1 05 01041 02 0000 110",9,8.7850000000000001,0.97611111111111115]
["Минимальный налог, зачисляемый в бюджеты субьектов РФ","182","1 05 01050 01 0000 110",750,701.80691999999999,0.93574256]
["Единый налог на вмененный доход для отдельных видов деятельности","182","1 05 02000 02 0000 110",4800,4786.1488799999997,0.99711434999999993]
["Единый сельскохозяйственный налог ","182","1 05 03000 01 0000 110",90,90.102950000000007,1.0011438888888891]
["ГОСУДАРСТВЕННАЯ ПОШЛИНА","000","1 08 00000 00 0000 000",{"$f":"D29+D30+D31","v":1122},{"$f":"E29+E30+E31","v":1139.95722},1.016004652406417]
["Государственная пошлина по делам, рассматриваемым в судах общей юрисдикции, мировыми судьями (за исключением Верховного Суда Российской Федерации)","182","1 08 03010 01 0000 110",230,243.95722000000001,1.0606835652173914]
["Государственная пошлина за совершение действий, связанных с лицензированием, с проведением аттестации в случаях, если такая аттестация предусмотрена законодательством Российской Федерации, зачисляемая в бюджеты муниципальных районов","917","1 08 07084 01 1000 110",892,896,1.0044843049327354]
["Государственная пошлина за государственную регистрацию транспортных средств и иные юридически значимые действия, связанные с изменениями и выдачей документов на транспортные средства, выдачей регистрационных знаков, приемом квалификационных экзаменов на получение права на управление транспортными средствами","000","1 08 07141 01 0000 110",0,null,{"$error":"#DIV/0!"}]
["ЗАДОЛЖЕННОСТЬ И ПЕРЕРАСЧЕТЫ ПО ОТМЕНЕННЫМ НАЛОГАМ, СБОРАМ И ИНЫМ ОБЯЗАТЕЛЬНЫМ ПЛАТЕЖАМ","182","1 09 00000 00 0000 000",{"$f":"D33+D34","v":10},{"$f":"E33+E34","v":10.47603},1.0476030000000001]
["Налог на имущество предприятий","182","1 09 04010 02 0000 110",0.2,0.12895999999999999,0.64479999999999993]
["Налог с продаж","182","1 09 06010 02 0000 110",9.8000000000000007,10.34707,1.0558234693877551]
["ДОХОДЫ ОТ ИСПОЛЬЗОВАНИЯ ИМУЩЕСТВА, НАХОДЯЩЕГОСЯ В ГОСУДАРСТВЕННОЙ И МУНИЦИПАЛЬНОЙ СОБСТВЕННОСТИ","000","1 11 00000 00 0000 000",{"$f":"D36+D39","v":12600},{"$f":"E36+E39","v":12240.52586},0.97147030634920628]
["Доходы, получаемые в виде арендной  платы за земельные участки,государственная собственность на которые не разграничена и которые расположеныв границах поселений, а также средства от продажи права на заключение договоров аренды указанных земельных участков","000","1 11 05013 10 0000 120",{"$f":"D37+D38","v":8800},{"$f":"E37+E38","v":8626.5890299999992},0.98029420795454536]
["Доходы, получаемые в виде арендной платы за земельные участки, государственная собственность на которые не разграничена и которые расположены в границах поселений, а также средства от продажи права на заключение договоров аренды указанных земельных участков","913","1 11 05013 10 0000 120",8000,7770.7848599999998,0.9713481075]
["Доходы, получаемые в виде арендной  платы за земельные участки,государственная собственность на которые не разграничена и которые расположеныв границах поселений, а также средства от продажи права на заключение договоров аренды указанных земельных участков","950","1 11 05013 10 0000 120",800,855.80417,1.0697552125000001]
["Доходы от сдачи в аренду имущества, находящегося в оперативном управлении органов управления муниципальных районов и созданных ими учреждений (за исключением имущества муниципальных автономных учреждений)","913","1 11 05035 05 0000 120",3800,3613.9368300000001,0.95103600789473686]
["ПЛАТЕЖИ ПРИ ПОЛЬЗОВАНИИ ПРИРОДНЫМИ РЕСУРСАМИ","048","1 12 00000 00 0000 000",{"$f":"D41","v":170},{"$f":"E41","v":157.46967999999998},0.92629223529411753]
["Плата за негативное воздействие на окружающую среду","048","1 12 01000 01 0000 120",{"$f":"D42+D43+D44","v":170},{"$f":"E42+E43+E44","v":157.46967999999998},0.92629223529411753]
["Плата за выбросы загрязняющих веществ в атмосферный воздух стационарными объектами ","048","1 12 01010 01 0000 120",90.48,83.699479999999994,0.92506056587091057]
["Плата за выбросы загрязняющих веществ в атмосферный воздух передвижными объектами","048","1 12 01020 01 0000 120",20.84,17.870339999999999,0.85750191938579645]
["Плата за размещение отходов производства и потребления","048","1 12 01040 01 0000 120",58.68,55.899859999999997,0.95262201772324462]
["ДОХОДЫ ОТ ОКАЗАНИЯ ПЛАТНЫХ УСЛУГ И КОМПЕНСАЦИИ ЗАТРАТ ГОСУДАРСТВА","000","1 13 00000 00 0000 000",{"$f":"D46","v":6351.5},{"$f":"E46","v":6379.8434800000005},1.0044624860269229]
["Прочие доходы от оказания платных услуг (работ) получателями средств  бюджетов муниципальных районов","000","1 13 01000 00 0000 130",{"$f":"D47+D48+D49+D50+D51","v":6351.5},{"$f":"E47+E48+E49+E50+E51","v":6379.8434800000005},1.0044624860269229]
["Прочие доходы от оказания платных услуг (работ) получателями средств бюджетов муниципальных районов","907","113 01995 05 0000 130",6000,6036.7851700000001,1.0061308616666667]
["Прочие доходы от оказания платных услуг (работ) получателями средств бюджетов муниципальных районов (МКУК МКЦ АЧРМО)","919","113 01995 05 0000 130",85,84,0.9882352941176471]
["Прочие доходы от оказания платных услуг (работ) получателями средств бюджетов муниципальных районов (МКУК РИК МУЗЕЙ)","920","113 01995 05 0000 130",22,22,1]
["Прочие доходы от оказания платных услуг (работ) получателями средств бюджетов муниципальных районов (МКУК МБЧР)","921","113 01995 05 0000 130",24.5,22.635000000000002,0.92387755102040825]
["Прочие доходы от оказания платных услуг (работ) получателями средств бюджетов муниципальных районов (МКОУ ДОД ДШИ)","922","113 01995 05 0000 130",220,214.42330999999999,0.97465140909090908]
["ДОХОДЫ ОТ ПРОДАЖИ МАТЕРИАЛЬНЫХ И НЕМАТЕРИАЛЬНЫХ АКТИВОВ","913","1 14 00000 00 0000 000",{"$f":"D53+D55","v":20846.8},{"$f":"E53+E55","v":20782.675669999997},0.99692402047316608]
["Доходы от реализации имущества, находящегося в государственной и муниципальной собственности (за исключением имущества автономных учреждений, а также имущества государственных и муниципальных унитарных предприятий, в том числе казенных)","913","1 14 02000 00 0000 000",{"$f":"D54","v":20246.8},{"$f":"E54","v":20201.170999999998},0.99774635991860439]
["Доходы от реализации иного имущества, находящегося в собственности муниципальных районов (за исключением имущества муниципальных автономных учреждений, а также имущества муниципальных унитарных предприятий, в том числе казенных), в части реализации основных средств по указанному имуществу","913","1 14 02053 05 0000 410",20246.8,20201.170999999998,0.99774635991860439]
["Доходы от продажи земельных участков, находящихся в  государственной и муниципальной собственности (за исключением земельных участков автономных учреждений)","913","1 14 06000 00 0000 430",{"$f":"D56","v":600},{"$f":"E56","v":581.50467000000003},0.96917445000000002]
["Доходы от продажи земельных участков, государственная собственность на которые не разграничена и которые расположены в границах поселений","913","1 14 06013 10 0000 430",600,581.50467000000003,0.96917445000000002]
["ШТРАФЫ, САНКЦИИ, ВОЗМЕЩЕНИЕ УЩЕРБА","000","1 16 00000 00 0000 000",{"$f":"D58+D59+D60+D61+D63+D62","v":628},{"$f":"E58+E59+E60+E61+E63+E62","v":634.43997999999999},1.01025474522293]
["Денежные взыскания (штрафы) за нарушение законодательства о налогах и сборах","182","1 16 03000 01 0000 140",47,46.515320000000003,0.98968765957446814]
["Денежные взыскания (штрафы) за административные правонарушения в области государственного регулирования производства и оборота этилового спирта, алкогольной и спиртосодержащей продукции","188","1 16 08000 01 0000 140",3.5,3.5,1]
["Денежные взыскания (штрафы) за нарушение законодательства о недрах, об особо охраняемых природных территориях, об охране и использовании животного мира, об экологической экспертизе, в области охраны окружающей среды, земельного законодательства","000","1 16 25000 01 0000 140",63,65.019099999999995,1.0320492063492062]
["Денежные взыскания (штрафы) за административные правонарушения в области дорожного движения","188","1 16 30014 01 0000 140",29,28.9648,0.99878620689655173]
["Денежные взыскания (штрафы) за нарушение законодательства РФ об административных правонарушениях, предусмотренные статьей 20.25 Кодекса РФ об административных правонарушений","188","1 16 43000 01 0000 140",2,2,1]
["Прочие поступления от денежных взысканий (штрафов) и иных сумм в возмещение ущерба, зачисляемые в бюджеты муниципальных районов","000","1 16 90050 05 0000 140",483.5,488.44076000000001,1.0102187383660808]
["ПРОЧИЕ НЕНАЛОГОВЫЕ ДОХОДЫ","000","1 17 00000 00 0000 000",{"$f":"D65+D66","v":531},{"$f":"E65+E66","v":739.58613000000003},1.3928175706214689]
["Невыясненные поступления","000","1 17 01000 00 0000 180",0,198.54674,0]
["Прочие неналоговые доходы","000","1 17 05000 00 0000 180",531,541.03939000000003,1.0189065725047082]
["БЕЗВОЗМЕЗДНЫЕ ПОСТУПЛЕНИЯ","000","2 00 00000 00 0000 000",{"$f":"D68+D123+D125","v":556724.89540000004},{"$f":"E68+E123+E125","v":548166.55596000003},0.9846273455512512]
["БЕЗВОЗМЕЗДНЫЕ ПОСТУПЛЕНИЯ ИЗ ДРУГИХ БЮДЖЕТОВ БЮДЖЕТНОЙ СИСТЕМЫ РФ","000","2 02 00000 00 0000 151",{"$f":"D69+D72+D90+D108","v":551066.09539999999},{"$f":"E69+E72+E90+E108","v":542420.75595999998},0.9843116106903208]
["ДОТАЦИИ БЮДЖЕТАМ МУНИЦИПАЛЬНЫХ ОБРАЗОВАНИЙ","000","2 02 01000 00 0000 151",{"$f":"D70+D71","v":128485},{"$f":"E70+E71","v":128485},1]
["Дотации муниципальным районам на выравнивание уровня бюджетной  обеспеченности","910","2 02 01001 05 0000 151",115567,115567,1]
["Дотации муниципальным районам на поддержку мер  по обеспечению сбалансированности  бюджетов","910","2 02 01003 05 0000 151",12918,12918,1]
["СУБСИДИИ БЮДЖЕТАМ МУНИЦИПАЛЬНЫХ ОБРАЗОВАНИЙ","000","2 02 02000 00 0000 151",{"$f":"D73+D74+D75+D77+D76","v":93221.524000000005},{"$f":"E73+E74+E75+E77+E76","v":93135.214000000007},0.99907414086043045]
["Федеральная программа \"Молодым семьям - доступное жилье на 2005-2019 годы\"","917","2 02 02051 05 0000 151",166.82400000000001,166.82400000000001,1]
["Долгосрочная целевая программа \"Энергосбережение и повышение энергетической эффективности на территории Иркутской области на 2011-2015 годы и на период до 2020 года","910","2 02 02150 05 0000 151",471.4,471.35,0.99989393296563434]
["Областная государственная социальная программа \"Молодым семьям- доступное жилье\" на 2005-2019 годы\"","917","2 02 02008 05 0000 151",190.65600000000001,190.65600000000001,1]
["Долгосрочная целевая программа «Поддержка и развитие малого и среднего предпринимательства в Иркутской области» на 2011-2012 годы (за счет федерального бюджета)","917","2 02 02009 05 0000 151",240,0,0]
["Прочие субсидии","000","2 02 02999 05 0000 151",{"$f":"D78+D79+D80+D81++D82+D84+D86+D85+D87+D89+D88","v":92152.644},{"$f":"E78+E79+E80+E81++E82+E84+E86+E85+E87+E89+E88","v":92306.384000000005},1.0016683189252824]
["Субсидии на выплату заработной платы с начислениями на нее педагогическим работникам муниципальных дошкольных образовательных учреждений","907","2 02 02999 05 0000 151",7995,7995,{"$f":"E78/D78","v":1}]
["Субсидия за счет средств долгосрочной целевой программы Иркутской области \"Повышение эффективности бюджетных расходов Иркутской области на 2011-2013 годы\"","910","2 02 02999 05 0000 151",33215,33215,1]
["Погашение кредиторской задолженности учреждений, находящихся в ведении органов местного самоуправления муниципальных образований Иркутской области, по страховым взносам на обязательное пенсионное страхование, сложившейся за период с 1 января 2002 года до 31 декабря 2009 года, и по страховым взносам на обязательное пенсионное страхование, обязательное медицинское страхование и обязательное социальное страхование на случай временной нетрудоспособности и в связи с материнством за период 2010-2011 годы, а также пеней и штрафов, начисленных на задолженность 2010-2011 годов","910","2 02 02999 05 0000 151",1787,1787,1]
["Погашение реструктуризированной кредиторской задолженности учреждений, находящихся в ведении органов местного самоуправления муниципальных образований Иркутской области, по страховым взносам на обязательное пенсионное страхование, сложившейся за период с 1 января 2002 года до 31 декабря 2009 года, и по страховым взносам на обязательное пенсионное страхование, обязательное медицинское страхование и обязательное социальное страхование на случай временной нетрудоспособности и в связи с материнством за период 2010-2011 годы, а также пеней и штрафов, начисленных на задолженность 2010-2011 годов","910","2 02 02999 05 0000 151",36982.5,36982.5,1]
["Долгосрочная целевая программа Иркутской области \"100 модельных домов культуры Приангарью\" на 2011-2014 годы","917","2 02 02999 05 0000 151",1000,1000,1]
[{"$nulls":5},{"$error":"#DIV/0!"}]
["Долгосрочная целевая программа  Иркутской области «Организация и обеспечение отдыха и оздоровления детей в Иркутской области на 2012-2014 годы» ","907","2 02 02999 05 0000 151",2384.9,2384.84,0.99997484171244078]
["Долгосрочная целевая программа поддержки и развития учреждений дошкольного образования в Иркутской области  на 2009-2014 годы» ","907","2 02 02999 05 0000 151",7857.2439999999997,7857.2439999999997,1]
["Создание условий для оказания медицинской помощи населению на территории  муниципального района (городского округа) Иркутской области в соответствии с территориальной программой  государственных гарантий оказания гражданам Российской Федерации бесплатной медицинской помощи в Иркутской области на 2012 год, утвержденной постановлением Правительства Иркутской области от 30 декабря 2011 года №427-пп, и Законом Иркутской области от 5 марта 2010г. №4-ОЗ \"Об отдельных вопросах здравоохранения в Иркутской области\"","910","2 02 02999 05 0000 151",571,571,1]
["Долгосрочная целевая программа «Поддержка и развитие малого и среднего предпринимательства в Иркутской области» на 2011-2012 годы (за счет областного бюджета)","917","2 02 02999 05 0000 151",60,60,1]
["Долгосрочная целевая программа «Поддержка и развитие малого и среднего предпринимательства в Иркутской области» на 2011-2012 годы (за счет федерального бюджета)","917","2 02 02999 05 0000 151",0,240,0]
["Подпрограмма «Подготовка объектов коммунальной инфраструктуры Иркутской области к отопительному сезону в 2011-2012 годах»","907","2 02 02999 05 0000 151",300,213.8,0.71266666666666667]
["СУБВЕНЦИИ БЮДЖЕТАМ МУНИЦИПАЛЬНЫХ ОБРАЗОВАНИЙ","000","2 02 03000 00 0000 151",{"$f":"D92+D93+D94+D96+D97+D98+D99+D100+D101+D102+D103+D104+D105+D106","v":295923.71000000002},{"$f":"E92+E93+E94+E96+E97+E98+E99+E100+E101+E102+E103+E104+E105+E106","v":292447.24930999998},0.98825217252784503]
["Субвенции бюджетам муниципальных районов на осуществление полномочий по подготовке проведения статистических переписей","917","2 02 03002 05 0000 151",0,null,{"$error":"#DIV/0!"}]
["Субвенции бюджетам  муниципальных районов на составление списков кандидатов в присяжные заседатели федеральных судов общей юрисдикции в Российской Федерации","917","2 02 03007 05 0000 151",7.52,7.52,1]
["Субвенции бюджетам на ежемесячное денежное вознаграждение за классное руководство","907","2 02 03021 05 0000 151",5162.3,4948.2,0.95852623830463157]
["Субвенции бюджетам муниципальных образований на предоставление гражданам субсидий на оплату жилого помещения и коммунальных услуг","918","2 02 03022 05 0000 151",7129,6892.5493200000001,0.96683255996633466]
["Субвенции местным бюджетам на выполнение переданных полномочий субъектов РФ","000","2 02 03024 05 0000 151",{"$f":"D96+D97+D98+D99+D100+D101+D102","v":37807.199999999997},{"$f":"E96+E97+E98+E99+E100+E101+E102","v":36429.05055},0.96354796308639634]
["Хранение, комплектование,  учет и использование архивных документов, относящихся к областной государственной собственности","917","2 02 03024 05 0000 151",1027,1024.21795,0.99729109055501453]
["Государственные    полномочия в области охраны труда","917","2 02 03024 05 0000 151",532.9,525.40273000000002,0.98593118784012013]
["Определение персонального состава и обеспечение деятельности районных (городских), районных в городах комиссий по делам несовершеннолетних и защите их прав","917","2 02 03024 05 0000 151",1019.5,628.07825000000003,0.61606498283472289]
["Лицензирование розничной продажи алкогольной продукции","917","2 02 03024 05 0000 151",376.6,375.84230000000002,0.99798805098247478]
["Определение персонального состава и обеспечение деятельности административных комиссий","917","2 02 03024 05 0000 151",532.9,532.06931999999995,0.99844120848189144]
[" Предоставление мер социальной поддержки многодетным и малоимущим семьям","907","2 02 03024 05 0000 151",4145.3,3170.44,0.76482763611801319]
[" Осуществление отдельных областных полномочий в области охраны здоровья граждан","910","2 02 03024 05 0000 151",30173,30173,1]
["Субвенции бюджетам муниципальных районов на обеспечение жилыми помещениями детей-сирот, детей, оставшихся без попечения родителей, а также детей, находящихся под опекой (попечительством), не имеющих закрепленного жилого помещения","913","2 02 03026 05 0000 151",1999.8,1918.55,0.95937093709370935]
["Субвенции бюджетам муниципальных районов на обеспечение жилыми помещениями детей-сирот, детей, оставшихся без попечения родителей, а также детей, находящихся под опекой (попечительством), не имеющих закрепленного жилого помещения (федер.)","913","2 02 03026 05 0000 151",2070.29,2070.29,1]
["Субвенция бюджетам муниципальных образований на денежные выплаты медицинскому персоналу фельдшерско-акушерских пунктов, врачам, фельдшерам и медицинским сестрам скорой медицинской помощи","910","2 02 03055 05 0000 151",4933,3997.0894400000002,0.81027558078248529]
["Прочие субвенции","000","2 02 03999 05 0000 151",{"$f":"D107","v":236814.6},{"$f":"E107","v":236184},0.99733715742188189]
["Субвенция на обеспечение государственных гарантий прав граждан на получение общедоступного и бесплатного дошкольного, начального общего, основного общего, среднего (полного) общего образования, а также дополнительного образования в общеобразовательных учреждениях","907","2 02 03999 05 0000 151",236814.6,236184,0.99733715742188189]
["ИНЫЕ МЕЖБЮДЖЕТНЫЕ ТРАНСФЕРТЫ","000","2 02 04000 00 0000 151",{"$f":"D109+D114+D116+D117+D115+D121","v":33435.861399999994},{"$f":"E109+E114+E116+E117+E115+E121","v":28353.292649999996},0.84799049472073718]
["Межбюджетные трансферты, передаваемые бюджетам муниципальных районов из бюджетов поселений на осуществление части полномочий по решению вопросов местного значения в соответствии с заключенными соглашениями","000","2 02 04014 05 0000 151",{"$f":"D110+D111+D112+D113","v":22276.482400000001},{"$f":"E110+E111+E112+E113","v":22185.14315},0.99589974537452108]
["Межбюджетные трансферты, передаваемые бюджетам муниципальных районов из бюджетов поселений на осуществление части полномочий по решению вопросов местного значения в соответствии с заключенными соглашениями","910","2 02 04014 05 0000 151",959.64099999999996,898.50175000000002,0.93628945616121029]
["Межбюджетные трансферты, передаваемые бюджетам муниципальных районов из бюджетов поселений на осуществление части полномочий по решению вопросов местного значения в соответствии с заключенными соглашениями (правила землепользования)","918","2 02 04014 05 0000 151",2780.4600399999999,2750.2600400000001,0.98913848803236182]
["Межбюджетные трансферты, передаваемые бюджетам муниципальных районов из бюджетов поселений на осуществление части полномочий по решению вопросов местного значения в соответствии с заключенными соглашениями (генплан 5%)","918","2 02 04014 05 0000 151",930.60136,930.60136,1]
["Межбюджетные трансферты, передаваемые бюджетам муниципальных районов из бюджетов поселений на осуществление части полномочий по решению вопросов местного значения в соответствии с заключенными соглашениями (генплан )","918","2 02 04014 05 0000 151",17605.78,17605.78,1]
["Межбюджетные трансферты, передаваемые бюджетам муниципальных районов на комплектование книжных фондов библиотек муниципальных образований (областной бюджет)","910","2 02 04025 05 0000 151",150,150,1]
["Межбюджетные трансферты, передаваемые бюджетам муниципальных районов на комплектование книжных фондов библиотек муниципальных образований (федеральный бюджет)","910","2 02 04025 05 0000 151",281,281,1]
["Межбюджетные трансферты на укрепление материально-технической базы медицинских учреждений","910","2 02 04034 05 0001 151",9804.7999999999993,4934.99575,0.50332446862761104]
["Межбюджетные трансферты на внедрение современных информационных систем в здравоохранение ","910","2 02 04034 05 0002 151",759,637.57494999999994,0.84001969696969692]
["Прочие межбюджетные трансферты, передаваемые бюджетам муниципальных районов","000","2 02 04999 05 0000 151",{"$f":"D119+D120","v":0},null,{"$error":"#DIV/0!"}]
["Дотации на возмещ.расходов местных бюджетов в связи с предоставлением льгот по оплате жилого помещения и коммунальных услуг педагогическим работникам, проживающим в сельской местности, рабочих поселках (пгт) и работающим в муниц.образоват.учреждениях","907","2 02 04999 05 0000 151",0,null,{"$error":"#DIV/0!"}]
["Межбюджетные трансферты в целях финансовой поддержки муниципальных образований Иркутской области, осуществляющих эффективное управление бюджетными средствами ","910","2 02 04999 05 0000 151",0,null,{"$error":"#DIV/0!"}]
["ПРОЧИЕ МЕЖБЮДЖЕТНЫЕ ТРАНСФЕРТЫ","000","2 02 04999 00 0000 151",{"$f":"D122","v":164.57900000000001},{"$f":"E122","v":164.5788},0.99999878477813087]
["Резервные фонды исполнительных органов государственной власти субъектов Российской Федерации","917","2 02 04999 05 0000 151",164.57900000000001,164.5788,0.99999878477813087]
["ПРОЧИЕ БЕЗВОЗМЕЗДНЫЕ ПОСТУПЛЕНИЯ","000","2 07 00000 00 0000 180",{"$f":"D124","v":5810},{"$f":"E124","v":5897},1.0149741824440619]
["Прочие безвозмездные поступления в бюджеты муниципальных районов","000","2 07 05000 05 0000 180",5810,5897,1.0149741824440619]
["ВОЗВРАТ ОТСТАКОВ СУБСИДИЙ И СУБВЕНЦИЙ","000","2 19 00000 00 0000 000",{"$f":"D126","v":-151.19999999999999},{"$f":"E126","v":-151.19999999999999},1]
["Возврат остатков субсидий и субвенций из бюджетов муниципальных районов","910","2 19 05000 05 0000 180",-151.19999999999999,-151.19999999999999,1]
["ИТОГО ДОХОДОВ","000","8 50 00000 00 0000 000",{"$f":"D67+D12","v":659568.19540000008},{"$f":"E67+E12","v":652924.96548999997},0.98992791047789797]
[]
["Начальник финансового управления",null,null,null,"Ю.Н. Гайдук"]

{"sheet":"прил.2","index":1,"n_rows":129,"n_cols":5,"rows_kept":129,"cut":false,"hidden":false,"merged":[[5,0,6,4],[8,0,9,0],[8,2,9,2],[8,3,9,3],[8,4,9,4]]}
[]
[]
[]
[]
[]
["Отчет об исполнении бюджета за 2012 год по доходам бюджета Черемховского районного муниципального образования по кодам видов доходов, подвидов доходов, классификации операций сектора государственного управления, относящихся к доходам бюджета"]
[]
[]
["Наименование","Код бюджетной классификации","План на год, тыс. руб.","Исполнено, тыс. руб.","% исполнения"]
[null,"доходов районного бюджета"]
[1,3,4,5,6]
["НАЛОГОВЫЕ И НЕНАЛОГОВЫЕ ДОХОДЫ","1 00 00000 00 0000 000",{"$f":"C13+C18+C28+C32+C35+C40+C45+C52+C57+C64","v":102843.3},{"$f":"D13+D18+D28+D32+D35+D40+D45+D52+D57+D64","v":104758.40952999998},{"$f":"D12/C12","v":1.0186216265911341}]
["НАЛОГИ НА ПРИБЫЛЬ, ДОХОДЫ","1 01 00000 00 0000 000",{"$f":"C14+C15+C16+C17","v":51800},{"$f":"D14+D15+D16+D17","v":53904.477700000003},{"$f":"D13/C13","v":1.0406269826254826}]
["Налог на доходы физических лиц с доходов, источником которых является налоговый агент, за исключением доходов, в отношении которых исчисление и уплата налога осуществляются в соответствии со статьями 227,227¹ и 228 Налогового кодекса Российской Федерации","1 01 02010 01 0000 110",51600,53712.751120000001,1.0409447891472869]
["Налог на доходы физических лиц с доходов, полученных от осуществления деятельности физическими лицами,зарегистрированными в качестве индивидуальных предпринимателей,нотариусов,занимающихся частной практикой,адвокатов,учредивших адвокатские кабинеты и других лиц, занимающихся частной практикой","1 01 02020 01 0000 110",50,49.19502,0.98390040000000001]
["Налог на доходы физических лиц с доходов,  полученных физическими лицами, не являющимися налоговыми резидентами ","1 01 02030 01 0000 110",147,140.21046000000001,0.95381265306122454]
["Налог на доходы физических лиц в виде фиксированных авансовых платежей с доходов, полученных физическими лицами, являющимися иностанными гражданами, осуществляющими трудовую деятельность по найму у физических лиц на основании патента","1 01 02040 01 0000 110",3,2.3210999999999999,0.77369999999999994]
["НАЛОГИ НА СОВОКУПНЫЙ ДОХОД","1 05 00000 00 0000 000",{"$f":"C19+C26+C27","v":8784},{"$f":"D19+D26+D27","v":8768.9577800000006},0.99828754326047364]
["Налог, взимаемый в связи с применением упрощенной системы налогообложения ","1 05 01000 00 0000 110",{"$f":"C20+C22+C23+C24+C25+C21","v":3894},{"$f":"D20+D22+D23+D24+D25+D21","v":3892.7059499999996},0.99966768104776571]
["Налог, взимаемый с налогоплательщиков, выбравших в качестве объекта налогообложения  доходы","1 05 01010 01 0000 110",1550,1662.22828,1.072405341935484]
["Налог, взимаемый с налогоплательщиков, выбравших в качестве объекта налогообложения  доходы (за налоговые периоды, истекшие до 1 января 2011 года)","1 05 01012 01 0000 110",0,-20.54664,0]
["Налог, взимаемый с налогоплательщиков, выбравших в качестве объекта налогообложения доходы, уменьшенные на величину расходов","1 05 01020 01 0000 110",1500,1458.6824099999999,0.97245493999999988]
["Налог, взимаемый с налогоплательщиков, выбравших в качестве объекта налогообложения доходы, уменьшенные на величину расходов (за налоговые периоды, истекшие до 1 января 2011 года)","1 05 01022 01 0000 110",85,81.749979999999994,0.96176447058823522]
["Налог, взимаемый в виде стоимости патента в связи с применением упрощенной системы налогооблажения ","1 05 01041 02 0000 110",9,8.7850000000000001,0.97611111111111115]
["Минимальный налог, зачисляемый в бюджеты субьектов РФ","1 05 01050 01 0000 110",750,701.80691999999999,0.93574256]
["Единый налог на вмененный доход для отдельных видов деятельности","1 05 02000 02 0000 110",4800,4786.1488799999997,0.99711434999999993]
["Единый сельскохозяйственный налог ","1 05 03000 01 0000 110",90,90.102950000000007,1.0011438888888891]
["ГОСУДАРСТВЕННАЯ ПОШЛИНА","1 08 00000 00 0000 000",{"$f":"C29+C30+C31","v":1122},{"$f":"D29+D30+D31","v":1139.95722},1.016004652406417]
["Государственная пошлина по делам, рассматриваемым в судах общей юрисдикции, мировыми судьями (за исключением Верховного Суда Российской Федерации)","1 08 03010 01 0000 110",230,243.95722000000001,1.0606835652173914]
["Государственная пошлина за совершение действий, связанных с лицензированием, с проведением аттестации в случаях, если такая аттестация предусмотрена законодательством Российской Федерации, зачисляемая в бюджеты муниципальных районов","1 08 07084 01 1000 110",892,896,1.0044843049327354]
["Государственная пошлина за государственную регистрацию транспортных средств и иные юридически значимые действия, связанные с изменениями и выдачей документов на транспортные средства, выдачей регистрационных знаков, приемом квалификационных экзаменов на получение права на управление транспортными средствами","1 08 07141 01 0000 110",0,null,{"$error":"#DIV/0!"}]
["ЗАДОЛЖЕННОСТЬ И ПЕРЕРАСЧЕТЫ ПО ОТМЕНЕННЫМ НАЛОГАМ, СБОРАМ И ИНЫМ ОБЯЗАТЕЛЬНЫМ ПЛАТЕЖАМ","1 09 00000 00 0000 000",{"$f":"C33+C34","v":10},{"$f":"D33+D34","v":10.47603},1.0476030000000001]
["Налог на имущество предприятий","1 09 04010 02 0000 110",0.2,0.12895999999999999,0.64479999999999993]
["Налог с продаж","1 09 06010 02 0000 110",9.8000000000000007,10.34707,1.0558234693877551]
["ДОХОДЫ ОТ ИСПОЛЬЗОВАНИЯ ИМУЩЕСТВА, НАХОДЯЩЕГОСЯ В ГОСУДАРСТВЕННОЙ И МУНИЦИПАЛЬНОЙ СОБСТВЕННОСТИ","1 11 00000 00 0000 000",{"$f":"C36+C39","v":12600},{"$f":"D36+D39","v":12240.52586},0.97147030634920628]
["Доходы, получаемые в виде арендной  платы за земельные участки,государственная собственность на которые не разграничена и которые расположеныв границах поселений, а также средства от продажи права на заключение договоров аренды указанных земельных участков","1 11 05013 10 0000 120",{"$f":"C37+C38","v":8800},{"$f":"D37+D38","v":8626.5890299999992},0.98029420795454536]
["Доходы, получаемые в виде арендной платы за земельные участки, государственная собственность на которые не разграничена и которые расположены в границах поселений, а также средства от продажи права на заключение договоров аренды указанных земельных участков","1 11 05013 10 0000 120",8000,7770.7848599999998,0.9713481075]
["Доходы, получаемые в виде арендной  платы за земельные участки,государственная собственность на которые не разграничена и которые расположеныв границах поселений, а также средства от продажи права на заключение договоров аренды указанных земельных участков","1 11 05013 10 0000 120",800,855.80417,1.0697552125000001]
["Доходы от сдачи в аренду имущества, находящегося в оперативном управлении органов управления муниципальных районов и созданных ими учреждений (за исключением имущества муниципальных автономных учреждений)","1 11 05035 05 0000 120",3800,3613.9368300000001,0.95103600789473686]
["ПЛАТЕЖИ ПРИ ПОЛЬЗОВАНИИ ПРИРОДНЫМИ РЕСУРСАМИ","1 12 00000 00 0000 000",{"$f":"C41","v":170},{"$f":"D41","v":157.46967999999998},0.92629223529411753]
["Плата за негативное воздействие на окружающую среду","1 12 01000 01 0000 120",{"$f":"C42+C43+C44","v":170},{"$f":"D42+D43+D44","v":157.46967999999998},0.92629223529411753]
["Плата за выбросы загрязняющих веществ в атмосферный воздух стационарными объектами ","1 12 01010 01 0000 120",90.48,83.699479999999994,0.92506056587091057]
["Плата за выбросы загрязняющих веществ в атмосферный воздух передвижными объектами","1 12 01020 01 0000 120",20.84,17.870339999999999,0.85750191938579645]
["Плата за размещение отходов производства и потребления","1 12 01040 01 0000 120",58.68,55.899859999999997,0.95262201772324462]
["ДОХОДЫ ОТ ОКАЗАНИЯ ПЛАТНЫХ УСЛУГ И КОМПЕНСАЦИИ ЗАТРАТ ГОСУДАРСТВА","1 13 00000 00 0000 000",{"$f":"C46","v":6351.5},{"$f":"D46","v":6379.8434800000005},1.0044624860269229]
["Прочие доходы от оказания платных услуг (работ) получателями средств  бюджетов муниципальных районов","1 13 01000 00 0000 130",{"$f":"C47+C48+C49+C50+C51","v":6351.5},{"$f":"D47+D48+D49+D50+D51","v":6379.8434800000005},1.0044624860269229]
["Прочие доходы от оказания платных услуг (работ) получателями средств бюджетов муниципальных районов","113 01995 05 0000 130",6000,6036.7851700000001,1.0061308616666667]
["Прочие доходы от оказания платных услуг (работ) получателями средств бюджетов муниципальных районов (МКУК МКЦ АЧРМО)","113 01995 05 0000 130",85,84,0.9882352941176471]
["Прочие доходы от оказания платных услуг (работ) получателями средств бюджетов муниципальных районов (МКУК РИК МУЗЕЙ)","113 01995 05 0000 130",22,22,1]
["Прочие доходы от оказания платных услуг (работ) получателями средств бюджетов муниципальных районов (МКУК МБЧР)","113 01995 05 0000 130",24.5,22.635000000000002,0.92387755102040825]
["Прочие доходы от оказания платных услуг (работ) получателями средств бюджетов муниципальных районов (МКОУ ДОД ДШИ)","113 01995 05 0000 130",220,214.42330999999999,0.97465140909090908]
["ДОХОДЫ ОТ ПРОДАЖИ МАТЕРИАЛЬНЫХ И НЕМАТЕРИАЛЬНЫХ АКТИВОВ","1 14 00000 00 0000 000",{"$f":"C53+C55","v":20846.8},{"$f":"D53+D55","v":20782.675669999997},0.99692402047316608]
["Доходы от реализации имущества, находящегося в государственной и муниципальной собственности (за исключением имущества автономных учреждений, а также имущества государственных и муниципальных унитарных предприятий, в том числе казенных)","1 14 02000 00 0000 000",{"$f":"C54","v":20246.8},{"$f":"D54","v":20201.170999999998},0.99774635991860439]
["Доходы от реализации иного имущества, находящегося в собственности муниципальных районов (за исключением имущества муниципальных автономных учреждений, а также имущества муниципальных унитарных предприятий, в том числе казенных), в части реализации основных средств по указанному имуществу","1 14 02053 05 0000 410",20246.8,20201.170999999998,0.99774635991860439]
["Доходы от продажи земельных участков, находящихся в  государственной и муниципальной собственности (за исключением земельных участков автономных учреждений)","1 14 06000 00 0000 430",{"$f":"C56","v":600},{"$f":"D56","v":581.50467000000003},0.96917445000000002]
["Доходы от продажи земельных участков, государственная собственность на которые не разграничена и которые расположены в границах поселений","1 14 06013 10 0000 430",600,581.50467000000003,0.96917445000000002]
["ШТРАФЫ, САНКЦИИ, ВОЗМЕЩЕНИЕ УЩЕРБА","1 16 00000 00 0000 000",{"$f":"C58+C59+C60+C61+C63+C62","v":628},{"$f":"D58+D59+D60+D61+D63+D62","v":634.43997999999999},1.01025474522293]
["Денежные взыскания (штрафы) за нарушение законодательства о налогах и сборах","1 16 03000 01 0000 140",47,46.515320000000003,0.98968765957446814]
["Денежные взыскания (штрафы) за административные правонарушения в области государственного регулирования производства и оборота этилового спирта, алкогольной и спиртосодержащей продукции","1 16 08000 01 0000 140",3.5,3.5,1]
["Денежные взыскания (штрафы) за нарушение законодательства о недрах, об особо охраняемых природных территориях, об охране и использовании животного мира, об экологической экспертизе, в области охраны окружающей среды, земельного законодательства","1 16 25000 01 0000 140",63,65.019099999999995,1.0320492063492062]
["Денежные взыскания (штрафы) за административные правонарушения в области дорожного движения","1 16 30014 01 0000 140",29,28.9648,0.99878620689655173]
["Денежные взыскания (штрафы) за нарушение законодательства РФ об административных правонарушениях, предусмотренные статьей 20.25 Кодекса РФ об административных правонарушений","1 16 43000 01 0000 140",2,2,1]
["Прочие поступления от денежных взысканий (штрафов) и иных сумм в возмещение ущерба, зачисляемые в бюджеты муниципальных районов","1 16 90050 05 0000 140",483.5,488.44076000000001,1.0102187383660808]
["ПРОЧИЕ НЕНАЛОГОВЫЕ ДОХОДЫ","1 17 00000 00 0000 000",{"$f":"C65+C66","v":531},{"$f":"D65+D66","v":739.58613000000003},1.3928175706214689]
["Невыясненные поступления","1 17 01000 00 0000 180",0,198.54674,0]
["Прочие неналоговые доходы","1 17 05000 00 0000 180",531,541.03939000000003,1.0189065725047082]
["БЕЗВОЗМЕЗДНЫЕ ПОСТУПЛЕНИЯ","2 00 00000 00 0000 000",{"$f":"C68+C123+C125","v":556724.89540000004},{"$f":"D68+D123+D125","v":548166.55596000003},0.9846273455512512]
["БЕЗВОЗМЕЗДНЫЕ ПОСТУПЛЕНИЯ ИЗ ДРУГИХ БЮДЖЕТОВ БЮДЖЕТНОЙ СИСТЕМЫ РФ","2 02 00000 00 0000 151",{"$f":"C69+C72+C90+C108","v":551066.09539999999},{"$f":"D69+D72+D90+D108","v":542420.75595999998},0.9843116106903208]
["ДОТАЦИИ БЮДЖЕТАМ МУНИЦИПАЛЬНЫХ ОБРАЗОВАНИЙ","2 02 01000 00 0000 151",{"$f":"C70+C71","v":128485},{"$f":"D70+D71","v":128485},1]
["Дотации муниципальным районам на выравнивание уровня бюджетной  обеспеченности","2 02 01001 05 0000 151",115567,115567,1]
["Дотации муниципальным районам на поддержку мер  по обеспечению сбалансированности  бюджетов","2 02 01003 05 0000 151",12918,12918,1]
["СУБСИДИИ БЮДЖЕТАМ МУНИЦИПАЛЬНЫХ ОБРАЗОВАНИЙ","2 02 02000 00 0000 151",{"$f":"C73+C74+C75+C77+C76","v":93221.524000000005},{"$f":"D73+D74+D75+D77+D76","v":93135.214000000007},0.99907414086043045]
["Федеральная программа \"Молодым семьям - доступное жилье на 2005-2019 годы\"","2 02 02051 05 0000 151",166.82400000000001,166.82400000000001,1]
["Долгосрочная целевая программа \"Энергосбережение и повышение энергетической эффективности на территории Иркутской области на 2011-2015 годы и на период до 2020 года","2 02 02150 05 0000 151",471.4,471.35,0.99989393296563434]
["Областная государственная социальная программа \"Молодым семьям- доступное жилье\" на 2005-2019 годы\"","2 02 02008 05 0000 151",190.65600000000001,190.65600000000001,1]
["Долгосрочная целевая программа «Поддержка и развитие малого и среднего предпринимательства в Иркутской области» на 2011-2012 годы (за счет федерального бюджета)","2 02 02009 05 0000 151",240,0,0]
["Прочие субсидии","2 02 02999 05 0000 151",{"$f":"C78+C79+C80+C81++C82+C84+C86+C85+C87+C89+C88","v":92152.644},{"$f":"D78+D79+D80+D81++D82+D84+D86+D85+D87+D89+D88","v":92306.384000000005},1.0016683189252824]
["Субсидии на выплату заработной платы с начислениями на нее педагогическим работникам муниципальных дошкольных образовательных учреждений","2 02 02999 05 0000 151",7995,7995,{"$f":"D78/C78","v":1}]
["Субсидия за счет средств долгосрочной целевой программы Иркутской области \"Повышение эффективности бюджетных расходов Иркутской области на 2011-2013 годы\"","2 02 02999 05 0000 151",33215,33215,1]
["Погашение кредиторской задолженности учреждений, находящихся в ведении органов местного самоуправления муниципальных образований Иркутской области, по страховым взносам на обязательное пенсионное страхование, сложившейся за период с 1 января 2002 года до 31 декабря 2009 года, и по страховым взносам на обязательное пенсионное страхование, обязательное медицинское страхование и обязательное социальное страхование на случай временной нетрудоспособности и в связи с материнством за период 2010-2011 годы, а также пеней и штрафов, начисленных на задолженность 2010-2011 годов","2 02 02999 05 0000 151",1787,1787,1]
["Погашение реструктуризированной кредиторской задолженности учреждений, находящихся в ведении органов местного самоуправления муниципальных образований Иркутской области, по страховым взносам на обязательное пенсионное страхование, сложившейся за период с 1 января 2002 года до 31 декабря 2009 года, и по страховым взносам на обязательное пенсионное страхование, обязательное медицинское страхование и обязательное социальное страхование на случай временной нетрудоспособности и в связи с материнством за период 2010-2011 годы, а также пеней и штрафов, начисленных на задолженность 2010-2011 годов","2 02 02999 05 0000 151",36982.5,36982.5,1]
["Долгосрочная целевая программа Иркутской области \"100 модельных домов культуры Приангарью\" на 2011-2014 годы","2 02 02999 05 0000 151",1000,1000,1]
[{"$nulls":4},{"$error":"#DIV/0!"}]
["Долгосрочная целевая программа  Иркутской области «Организация и обеспечение отдыха и оздоровления детей в Иркутской области на 2012-2014 годы» ","2 02 02999 05 0000 151",2384.9,2384.84,0.99997484171244078]
["Долгосрочная целевая программа поддержки и развития учреждений дошкольного образования в Иркутской области  на 2009-2014 годы» ","2 02 02999 05 0000 151",7857.2439999999997,7857.2439999999997,1]
["Создание условий для оказания медицинской помощи населению на территории  муниципального района (городского округа) Иркутской области в соответствии с территориальной программой  государственных гарантий оказания гражданам Российской Федерации бесплатной медицинской помощи в Иркутской области на 2012 год, утвержденной постановлением Правительства Иркутской области от 30 декабря 2011 года №427-пп, и Законом Иркутской области от 5 марта 2010г. №4-ОЗ \"Об отдельных вопросах здравоохранения в Иркутской области\"","2 02 02999 05 0000 151",571,571,1]
["Долгосрочная целевая программа «Поддержка и развитие малого и среднего предпринимательства в Иркутской области» на 2011-2012 годы (за счет областного бюджета)","2 02 02999 05 0000 151",60,60,1]
["Долгосрочная целевая программа «Поддержка и развитие малого и среднего предпринимательства в Иркутской области» на 2011-2012 годы (за счет федерального бюджета)","2 02 02999 05 0000 151",0,240,0]
["Подпрограмма «Подготовка объектов коммунальной инфраструктуры Иркутской области к отопительному сезону в 2011-2012 годах»","2 02 02999 05 0000 151",300,213.8,0.71266666666666667]
["СУБВЕНЦИИ БЮДЖЕТАМ МУНИЦИПАЛЬНЫХ ОБРАЗОВАНИЙ","2 02 03000 00 0000 151",{"$f":"C92+C93+C94+C96+C97+C98+C99+C100+C101+C102+C103+C104+C105+C106","v":295923.71000000002},{"$f":"D92+D93+D94+D96+D97+D98+D99+D100+D101+D102+D103+D104+D105+D106","v":292447.24930999998},0.98825217252784503]
["Субвенции бюджетам муниципальных районов на осуществление полномочий по подготовке проведения статистических переписей","2 02 03002 05 0000 151",0,null,{"$error":"#DIV/0!"}]
["Субвенции бюджетам  муниципальных районов на составление списков кандидатов в присяжные заседатели федеральных судов общей юрисдикции в Российской Федерации","2 02 03007 05 0000 151",7.52,7.52,1]
["Субвенции бюджетам на ежемесячное денежное вознаграждение за классное руководство","2 02 03021 05 0000 151",5162.3,4948.2,0.95852623830463157]
["Субвенции бюджетам муниципальных образований на предоставление гражданам субсидий на оплату жилого помещения и коммунальных услуг","2 02 03022 05 0000 151",7129,6892.5493200000001,0.96683255996633466]
["Субвенции местным бюджетам на выполнение переданных полномочий субъектов РФ","2 02 03024 05 0000 151",{"$f":"C96+C97+C98+C99+C100+C101+C102","v":37807.199999999997},{"$f":"D96+D97+D98+D99+D100+D101+D102","v":36429.05055},0.96354796308639634]
["Хранение, комплектование,  учет и использование архивных документов, относящихся к областной государственной собственности","2 02 03024 05 0000 151",1027,1024.21795,0.99729109055501453]
["Государственные    полномочия в области охраны труда","2 02 03024 05 0000 151",532.9,525.40273000000002,0.98593118784012013]
["Определение персонального состава и обеспечение деятельности районных (городских), районных в городах комиссий по делам несовершеннолетних и защите их прав","2 02 03024 05 0000 151",1019.5,628.07825000000003,0.61606498283472289]
["Лицензирование розничной продажи алкогольной продукции","2 02 03024 05 0000 151",376.6,375.84230000000002,0.99798805098247478]
["Определение персонального состава и обеспечение деятельности административных комиссий","2 02 03024 05 0000 151",532.9,532.06931999999995,0.99844120848189144]
[" Предоставление мер социальной поддержки многодетным и малоимущим семьям","2 02 03024 05 0000 151",4145.3,3170.44,0.76482763611801319]
[" Осуществление отдельных областных полномочий в области охраны здоровья граждан","2 02 03024 05 0000 151",30173,30173,1]
["Субвенции бюджетам муниципальных районов на обеспечение жилыми помещениями детей-сирот, детей, оставшихся без попечения родителей, а также детей, находящихся под опекой (попечительством), не имеющих закрепленного жилого помещения","2 02 03026 05 0000 151",1999.8,1918.55,0.95937093709370935]
["Субвенции бюджетам муниципальных районов на обеспечение жилыми помещениями детей-сирот, детей, оставшихся без попечения родителей, а также детей, находящихся под опекой (попечительством), не имеющих закрепленного жилого помещения (федер.)","2 02 03026 05 0000 151",2070.29,2070.29,1]
["Субвенция бюджетам муниципальных образований на денежные выплаты медицинскому персоналу фельдшерско-акушерских пунктов, врачам, фельдшерам и медицинским сестрам скорой медицинской помощи","2 02 03055 05 0000 151",4933,3997.0894400000002,0.81027558078248529]
["Прочие субвенции","2 02 03999 05 0000 151",{"$f":"C107","v":236814.6},{"$f":"D107","v":236184},0.99733715742188189]
["Субвенция на обеспечение государственных гарантий прав граждан на получение общедоступного и бесплатного дошкольного, начального общего, основного общего, среднего (полного) общего образования, а также дополнительного образования в общеобразовательных учреждениях","2 02 03999 05 0000 151",236814.6,236184,0.99733715742188189]
["ИНЫЕ МЕЖБЮДЖЕТНЫЕ ТРАНСФЕРТЫ","2 02 04000 00 0000 151",{"$f":"C109+C114+C116+C117+C115+C121","v":33435.861399999994},{"$f":"D109+D114+D116+D117+D115+D121","v":28353.292649999996},0.84799049472073718]
["Межбюджетные трансферты, передаваемые бюджетам муниципальных районов из бюджетов поселений на осуществление части полномочий по решению вопросов местного значения в соответствии с заключенными соглашениями","2 02 04014 05 0000 151",{"$f":"C110+C111+C112+C113","v":22276.482400000001},{"$f":"D110+D111+D112+D113","v":22185.14315},0.99589974537452108]
["Межбюджетные трансферты, передаваемые бюджетам муниципальных районов из бюджетов поселений на осуществление части полномочий по решению вопросов местного значения в соответствии с заключенными соглашениями","2 02 04014 05 0000 151",959.64099999999996,898.50175000000002,0.93628945616121029]
["Межбюджетные трансферты, передаваемые бюджетам муниципальных районов из бюджетов поселений на осуществление части полномочий по решению вопросов местного значения в соответствии с заключенными соглашениями (правила землепользования)","2 02 04014 05 0000 151",2780.4600399999999,2750.2600400000001,0.98913848803236182]
["Межбюджетные трансферты, передаваемые бюджетам муниципальных районов из бюджетов поселений на осуществление части полномочий по решению вопросов местного значения в соответствии с заключенными соглашениями (генплан 5%)","2 02 04014 05 0000 151",930.60136,930.60136,1]
["Межбюджетные трансферты, передаваемые бюджетам муниципальных районов из бюджетов поселений на осуществление части полномочий по решению вопросов местного значения в соответствии с заключенными соглашениями (генплан )","2 02 04014 05 0000 151",17605.78,17605.78,1]
["Межбюджетные трансферты, передаваемые бюджетам муниципальных районов на комплектование книжных фондов библиотек муниципальных образований (областной бюджет)","2 02 04025 05 0000 151",150,150,1]
["Межбюджетные трансферты, передаваемые бюджетам муниципальных районов на комплектование книжных фондов библиотек муниципальных образований (федеральный бюджет)","2 02 04025 05 0000 151",281,281,1]
["Межбюджетные трансферты на укрепление материально-технической базы медицинских учреждений","2 02 04034 05 0001 151",9804.7999999999993,4934.99575,0.50332446862761104]
["Межбюджетные трансферты на внедрение современных информационных систем в здравоохранение ","2 02 04034 05 0002 151",759,637.57494999999994,0.84001969696969692]
["Прочие межбюджетные трансферты, передаваемые бюджетам муниципальных районов","2 02 04999 05 0000 151",{"$f":"C119+C120","v":0},null,{"$error":"#DIV/0!"}]
["Дотации на возмещ.расходов местных бюджетов в связи с предоставлением льгот по оплате жилого помещения и коммунальных услуг педагогическим работникам, проживающим в сельской местности, рабочих поселках (пгт) и работающим в муниц.образоват.учреждениях","2 02 04999 05 0000 151",0,null,{"$error":"#DIV/0!"}]
["Межбюджетные трансферты в целях финансовой поддержки муниципальных образований Иркутской области, осуществляющих эффективное управление бюджетными средствами ","2 02 04999 05 0000 151",0,null,{"$error":"#DIV/0!"}]
["ПРОЧИЕ МЕЖБЮДЖЕТНЫЕ ТРАНСФЕРТЫ","2 02 04999 00 0000 151",{"$f":"C122","v":164.57900000000001},{"$f":"D122","v":164.5788},0.99999878477813087]
["Резервные фонды исполнительных органов государственной власти субъектов Российской Федерации","2 02 04999 05 0000 151",164.57900000000001,164.5788,0.99999878477813087]
["ПРОЧИЕ БЕЗВОЗМЕЗДНЫЕ ПОСТУПЛЕНИЯ","2 07 00000 00 0000 180",{"$f":"C124","v":5810},{"$f":"D124","v":5897},1.0149741824440619]
["Прочие безвозмездные поступления в бюджеты муниципальных районов","2 07 05000 05 0000 180",5810,5897,1.0149741824440619]
["ВОЗВРАТ ОТСТАКОВ СУБСИДИЙ И СУБВЕНЦИЙ","2 19 00000 00 0000 000",{"$f":"C126","v":-151.19999999999999},{"$f":"D126","v":-151.19999999999999},1]
["Возврат остатков субсидий и субвенций из бюджетов муниципальных районов","2 19 05000 05 0000 180",-151.19999999999999,-151.19999999999999,1]
["ИТОГО ДОХОДОВ","8 50 00000 00 0000 000",{"$f":"C67+C12","v":659568.19540000008},{"$f":"D67+D12","v":652924.96548999997},0.98992791047789797]
[]
["Начальник финансового управления",null,null,"Ю.Н. Гайдук"]

{"sheet":"прил3","index":2,"n_rows":386,"n_cols":8,"rows_kept":386,"cut":false,"hidden":false,"merged":[[383,0,383,4],[6,0,6,7],[385,6,385,7],[9,0,10,0],[9,6,10,6],[9,7,10,7],[9,1,9,4],[9,5,10,5]]}
[]
[]
[]
[]
[]
[]
["Отчет об исполнении бюджета Черемховского районного муниципального образования  за 2012 год по разделам, подразделам, целевым статьям, видам расходов классификации бюджетов"]
[]
[]
["Наименование показателя","Код",null,null,null,"План на год, тыс. руб.","Исполнено, тыс. руб.","% исполнения"]
[null,"раздела","подраздела","целевой статьи","вида расходов"]
[1,2,3,4,5,6,7,8]
["ОБЩЕГОСУДАРСТВЕННЫЕ ВОПРОСЫ",1,0,0,0,77828.100000000006,75090.5,0.96482504391087531]
["Функционирование высшего должностного лица субъекта Российской Федерации и муниципального образования",1,2,0,0,2034.5,2014.9,0.99036618333742943]
["Руководство и управление в сфере установленных функций органов государственной власти субъектов Российской Федерации  и органов местного самоуправления",1,2,20000,0,2034.5,2014.9,0.99036618333742943]
["Глава муниципального образования",1,2,20300,0,2034.5,2014.9,0.99036618333742943]
["Выполнение функций органами местного самоуправления",1,2,20300,"500",2034.5,2014.9,0.99036618333742943]
["Функционирование законодательных (представительных) органов государственной власти и представительных органов муниципальных образований",1,3,0,0,1601.4,1581.6,0.98763581865867356]
["Руководство и управление в сфере установленных функций органов государственной власти субъектов Российской Федерации  и органов местного самоуправления",1,3,20000,0,1599.8,1580,0.98762345293161646]
["Центральный аппарат",1,3,20400,0,638.20000000000005,624.4,0.97837668442494508]
["Выполнение функций органами местного самоуправления",1,3,20400,"500",638.20000000000005,624.4,0.97837668442494508]
["Председатель представительного органа муниципального образования",1,3,21100,0,961.6,955.6,0.9937603993344426]
["Выполнение функций органами местного самоуправления",1,3,21100,"500",961.6,955.6,0.9937603993344426]
["Погашение кредиторской задолженности учреждений, находящихся в ведении органов местного самоуправления муниципальных образований Иркутской области, по единому социальному налогу, зачисляемому в федеральный бюджет, Фонд социального страхования Российской Федерации, Федеральный фонд обязательного медицинского страхования и территориальные фонды обязательного медицинского страхования",1,3,5900000,0,1.6,1.6,1]
["Выполнение функций органами местного самоуправления",1,3,5900000,"500",1.6,1.6,1]
["Функционирование Правительства Российской Федерации, высших исполнительных органов государственной власти субъектов Российской Федерации, местных администраций",1,4,0,0,28868.2,28640.2,0.99210203615050474]
["Руководство и управление в сфере установленных функций органов государственной власти субъектов Российской Федерации  и органов местного самоуправления",1,4,20000,0,28717.7,28515.1,0.99294511747110659]
["Центральный аппарат",1,4,20400,0,28717.7,28515.1,0.99294511747110659]
["Выполнение функций органами местного самоуправления",1,4,20400,"500",28717.7,28515.1,0.99294511747110659]
["Погашение кредиторской задолженности учреждений, находящихся в ведении органов местного самоуправления муниципальных образований Иркутской области, по единому социальному налогу, зачисляемому в федеральный бюджет, Фонд социального страхования Российской Федерации, Федеральный фонд обязательного медицинского страхования и территориальные фонды обязательного медицинского страхования",1,4,5900000,0,100.5,100.5,1]
["Выполнение функций органами местного самоуправления",1,4,5900000,"500",100.5,100.5,1]
["Целевые программы муниципальных образований",1,4,7950000,0,50,24.6,0.49200000000000005]
["Долгосрочная целевая программа Черемховского районного муниципального образования \"Повышение эффективности бюджетных расходов Черемховского районного муниципального образования на 2012-2013 годы\"",1,4,7950200,0,50,24.6,0.49200000000000005]
["Выполнение функций органами местного самоуправления",1,4,7950200,"500",50,24.6,0.49200000000000005]
["Судебная система",1,5,0,0,7.5,7.5,1]
["Руководство и управление в сфере установленных функций",1,5,10000,0,7.5,7.5,1]
["Составление (изменение и дополнение) списков кандидатов в присяжные заседатели федеральных судов общей юрисдикции в Российской Федерации",1,5,14000,0,7.5,7.5,1]
["Выполнение функций органами местного самоуправления",1,5,14000,"500",7.5,7.5,1]
["Обеспечение деятельности финансовых, налоговых и таможенных органов и органов финансового (финансово-бюджетного) надзора",1,6,0,0,9208.2000000000007,9128.9,0.99138811059707643]
["Руководство и управление в сфере установленных функций органов государственной власти субъектов Российской Федерации  и органов местного самоуправления",1,6,20000,0,9158.2000000000007,9128.9,0.99680068135659838]
["Центральный аппарат",1,6,20400,0,8460.2999999999993,8437.7999999999993,0.99734051983972205]
["Выполнение функций органами местного самоуправления",1,6,20400,"500",8460.2999999999993,8437.7999999999993,0.99734051983972205]
["Руководитель контрольно-счетной палаты муниципального образования и его заместители",1,6,22500,0,697.9,691.1,0.9902564837369251]
["Выполнение функций органами местного самоуправления",1,6,22500,"500",697.9,691.1,0.9902564837369251]
["Целевые программы муниципальных образований",1,6,7950000,0,50,0,0]
["Долгосрочная целевая программа Черемховского районного муниципального образования \"Повышение эффективности бюджетных расходов Черемховского районного муниципального образования на 2012-2013 годы\"",1,6,7950200,0,50,0,0]
["Выполнение функций органами местного самоуправления",1,6,7950200,"500",50,0,0]
["Другие общегосударственные вопросы",1,13,0,0,36108.300000000003,33717.4,0.93378530697928175]
["Руководство и управление в сфере установленных функций органов государственной власти субъектов Российской Федерации  и органов местного самоуправления",1,13,20000,0,18849,18790.099999999999,0.99687516579128854]
["Центральный аппарат",1,13,20400,0,3289.3,3254.9,0.98954184780956433]
["Выполнение функций органами местного самоуправления",1,13,20400,"500",3289.3,3254.9,0.98954184780956433]
["Осуществление областных государственных полномочий по хранению, комплектованию, учету и использованию архивных документов, относящихся к государственной собственности Иркутской области",1,13,24000,0,1027,1024.2,0.99727361246348589]
["Выполнение функций органами местного самоуправления",1,13,24000,"500",1027,1024.2,0.99727361246348589]
["Осуществление областных государственных полномочий по определению персонального состава и обеспечению деятельности административных комиссий",1,13,24300,0,532.9,532.1,0.99849878025896044]
["Выполнение функций органами местного самоуправления",1,13,24300,"500",532.9,532.1,0.99849878025896044]
["Осуществление отдельных государственных полномочий в области производства и оборота этилового спирта, алкогольной и спиртосодержащей продукции",1,13,24400,0,376.6,375.8,0.99787573021773768]
["Выполнение функций органами местного самоуправления",1,13,24400,"500",376.6,375.8,0.99787573021773768]
["Осуществление отдельных областных государственных полномочий в области охраны труда",1,13,24500,0,532.9,525.4,0.98592606492775381]
["Выполнение функций органами местного самоуправления",1,13,24500,"500",532.9,525.4,0.98592606492775381]
["Обеспечение деятельности подведомственных учреждений",1,13,29900,0,13090.3,13077.7,0.99903745521493026]
["Выполнение функций казенными учреждениями",1,13,29900,"001",13090.3,13077.7,0.99903745521493026]
["Реализация государственных функций, связанных с общегосударственным управлением",1,13,920000,0,4306.7,3657.6,0.84928135231151458]
["Выполнение других обязательств государства",1,13,920300,0,4306.7,3657.6,0.84928135231151458]
["Выполнение функций органами местного самоуправления",1,13,920300,"500",4306.7,3657.6,0.84928135231151458]
["Учреждения по обеспечению хозяйственного обслуживания",1,13,930000,0,7889.4,7889.4,1]
["Обеспечение деятельности подведомственных учреждений",1,13,939900,0,7889.4,7889.4,1]
["Субсидии некоммерческим организациям",1,13,939900,"019",407.8,407.8,1]
["Субсидии бюджетным учреждениям на финансовое обеспечение муниципального задания на оказание муниципальных услуг (выполнение работ)",1,13,939900,"611",7481.2,7481.2,1]
["Субсидии бюджетным учреждениям на иные цели",1,13,939900,"612",0.4,0.4,1]
["Погашение кредиторской задолженности учреждений, находящихся в ведении органов местного самоуправления муниципальных образований Иркутской области, по единому социальному налогу, зачисляемому в федеральный бюджет, Фонд социального страхования Российской Федерации, Федеральный фонд обязательного медицинского страхования и территориальные фонды обязательного медицинского страхования",1,13,5900000,0,33.4,33.4,1]
["Выполнение функций казенными учреждениями",1,13,5900000,"001",32.799999999999997,32.799999999999997,1]
["Выполнение функций органами местного самоуправления",1,13,5900000,"500",0.6,0.6,1]
["Целевые программы муниципальных образований",1,13,7950000,0,5029.8,3346.9,0.66541413177462327]
["Выполнение функций органами местного самоуправления",1,13,7950000,"500",2795,1157.5999999999999,0.41416815742397134]
["Долгосрочная целевая программа Черемховского районного муниципального образования \"Повышение эффективности бюджетных расходов Черемховского районного муниципального образования на 2012-2013 годы\"",1,13,7950200,0,2234.8000000000002,2189.3000000000002,0.97964023626275287]
["Выполнение функций казенными учреждениями",1,13,7950200,"001",2234.8000000000002,2189.3000000000002,0.97964023626275287]
["НАЦИОНАЛЬНАЯ ЭКОНОМИКА",4,0,0,0,24637.3,24150,0.98022104694913814]
["Другие вопросы в области национальной экономики",4,12,0,0,24637.3,24150,0.98022104694913814]
["Мероприятия в области строительства, архитектуры и градостроительства",4,12,3380000,0,3711.1,3680.9,0.99186225108458415]
["Подготовка проектов генеральных планов муниципальных образований Черемховского районного муниципального образования",4,12,3380100,0,930.6,930.6,1]
["Выполнение функций органами местного самоуправления",4,12,3380100,"500",930.6,930.6,1]
["Подготовка проектов правил землепользования и застройки муниципальных образований Черемховского районного муниципального образования",4,12,3380200,0,2780.5,2750.3,0.98913864412875385]
["Выполнение функций органами местного самоуправления",4,12,3380200,"500",2780.5,2750.3,0.98913864412875385]
["Малое и среднее предпринимательство",4,12,3450000,0,240,224,0.93333333333333335]
["Субсидии на государственную поддержку малого и среднего предпринимательства, включая крестьянские (фермерские) хозяйства",4,12,3450100,0,240,224,0.93333333333333335]
["Субсидии юридическим лицам",4,12,3450100,"006",240,224,0.93333333333333335]
["Региональные целевые программы",4,12,5220000,0,19130.2,19130.2,1]
["Долгосрочная целевая программа «Поддержка и развитие малого и среднего предпринимательства в Иркутской области» на 2011-2012 годы",4,12,5222400,0,60,60,1]
["Субсидии юридическим лицам",4,12,5222400,"006",60,60,1]
["Долгосрочная целевая программа Иркутской области «Стимулирование жилищного строительства в Иркутской области на 2011-2015 годы»",4,12,5225700,0,19070.2,19070.2,1]
["Подпрограмма \"Территориальное планирование муниципальных образований Иркутской области на 2011-2012 годы\"",4,12,5225701,0,19070.2,19070.2,1]
["Выполнение функций органами местного самоуправления",4,12,5225701,"500",19070.2,19070.2,1]
["Целевые программы муниципальных образований",4,12,7950000,0,1556,1115,0.71658097686375322]
["Субсидии юридическим лицам",4,12,7950000,"006",16,16,1]
["Выполнение функций органами местного самоуправления",4,12,7950000,"500",1540,1099,0.71363636363636362]
["ЖИЛИЩНО-КОММУНАЛЬНОЕ ХОЗЯЙСТВО",5,0,0,0,11372.1,9434.7999999999993,0.82964448079070696]
["Жилищное хозяйство",5,1,0,0,644.70000000000005,644.70000000000005,1]
["Поддержка жилищного хозяйства",5,1,3500000,0,644.70000000000005,644.70000000000005,1]
["Капитальный ремонт государственного жилищного фонда субъектов Российской Федерации и муниципального жилищного фонда",5,1,3500200,0,273.89999999999998,273.89999999999998,1]
["Субсидии юридическим лицам",5,1,3500200,"006",174.9,174.9,1]
["Выполнение функций органами местного самоуправления",5,1,3500200,"500",99,99,1]
["Мероприятия в области жилищного хозяйства",5,1,3500300,0,370.8,370.8,1]
["Выполнение функций органами местного самоуправления",5,1,3500300,"500",370.8,370.8,1]
["Коммунальное хозяйство",5,2,0,0,4295.5,2388.9,0.55614014666511469]
["Резервные фонды",5,2,700000,0,464.6,464.6,1]
["Резервные фонды исполнительных органов государственной власти субъектов Российской Федерации",5,2,700400,0,164.6,164.6,1]
["Выполнение функций органами местного самоуправления",5,2,700400,"500",164.6,164.6,1]
["Резервные фонды местных администраций",5,2,700500,0,300,300,1]
["Выполнение функций органами местного самоуправления",5,2,700500,"500",300,300,1]
["Поддержка коммунального хозяйства",5,2,3510000,0,3806.8,1900.2,0.49915939897026373]
["Мероприятия в области коммунального хозяйства",5,2,3510500,0,3806.8,1900.2,0.49915939897026373]
["Выполнение функций органами местного самоуправления",5,2,3510500,"500",3806.8,1900.2,0.49915939897026373]
["Региональные целевые программы",5,2,5220000,0,24.1,24.1,1]
["Долгосрочная целевая программа «Энергосбережение и повышение энергетической эффективности на территории Иркутской области на 2011-2015 годы и на период до 2020 года»",5,2,5225400,0,24.1,24.1,1]
["Иные межбюджетные трансферты",5,2,5225400,"017",24.1,24.1,1]
["Другие вопросы в области жилищно-коммунального хозяйства",5,5,0,0,6431.9,6401.2,0.99522691584135325]
["Руководство и управление в сфере установленных функций органов государственной власти субъектов Российской Федерации  и органов местного самоуправления",5,5,20000,0,6431.3,6400.6,0.99522647054250313]
["Центральный аппарат",5,5,20400,0,4741.3999999999996,4712.2,0.9938414814189902]
["Выполнение функций органами местного самоуправления",5,5,20400,"500",4741.3999999999996,4712.2,0.9938414814189902]
["Осуществление областных государственных полномочий по предоставлению гражданам субсидий на оплату жилых помещений и коммунальных услуг",5,5,24700,0,729.9,728.3,0.99780791889299902]
["Содержание и обеспечение деятельности муниципальных служащих, осуществляющих областные государственные полномочия по предоставлению гражданам субсидий на оплату жилых помещений и коммунальных услуг",5,5,24701,0,729.9,728.3,0.99780791889299902]
["Выполнение функций органами местного самоуправления",5,5,24701,"500",729.9,728.3,0.99780791889299902]
["Обеспечение деятельности подведомственных учреждений",5,5,29900,0,960,960,1]
["Субсидии некоммерческим организациям",5,5,29900,"019",48.4,48.4,1]
["Субсидии бюджетным учреждениям на финансовое обеспечение муниципального задания на оказание муниципальных услуг (выполнение работ)",5,5,29900,"611",911.6,911.6,1]
["Субсидии бюджетным учреждениям на иные цели",5,5,29900,"612",0,0.1,0]
["Погашение кредиторской задолженности учреждений, находящихся в ведении органов местного самоуправления муниципальных образований Иркутской области, по единому социальному налогу, зачисляемому в федеральный бюджет, Фонд социального страхования Российской Федерации, Федеральный фонд обязательного медицинского страхования и территориальные фонды обязательного медицинского страхования",5,5,5900000,0,0.6,0.6,1]
["Выполнение функций органами местного самоуправления",5,5,5900000,"500",0.6,0.6,1]
["ОБРАЗОВАНИЕ",7,0,0,0,441655.9,432986,0.9803695591975562]
["Дошкольное образование",7,1,0,0,97602.6,93166.5,0.95454936651277722]
["Детские дошкольные учреждения",7,1,4200000,0,74226.7,72824.7,0.9811119179486627]
["Обеспечение деятельности подведомственных учреждений",7,1,4209900,0,74226.7,72824.7,0.9811119179486627]
["Выполнение функций казенными учреждениями",7,1,4209900,"001",74226.7,72824.7,0.9811119179486627]
["Региональные целевые программы",7,1,5220000,0,7979.3,4951.7,0.6205682202699484]
["Областная государственная целевая программа поддержки и развития учреждений дошкольного образования в Иркутской области на 2009-2014 годы",7,1,5223700,0,7857.3,4829.7,0.6146767973731434]
["Выполнение функций казенными учреждениями",7,1,5223700,"001",7857.3,4829.7,0.6146767973731434]
["Долгосрочная целевая программа «Энергосбережение и повышение энергетической эффективности на территории Иркутской области на 2011-2015 годы и на период до 2020 года»",7,1,5225400,0,122,122,1]
["Выполнение функций казенными учреждениями",7,1,5225400,"001",122,122,1]
["Выплата заработной платы с начислениями на нее педагогическим работникам муниципальных дошкольных образовательных учреждений и муниципальных учреждений дополнительного образования",7,1,5890000,0,5719,5719,1]
["Выполнение функций казенными учреждениями",7,1,5890000,"001",5719,5719,1]
["Погашение кредиторской задолженности учреждений, находящихся в ведении органов местного самоуправления муниципальных образований Иркутской области, по единому социальному налогу, зачисляемому в федеральный бюджет, Фонд социального страхования Российской Федерации, Федеральный фонд обязательного медицинского страхования и территориальные фонды обязательного медицинского страхования",7,1,5900000,0,591.29999999999995,591.29999999999995,1]
["Выполнение функций казенными учреждениями",7,1,5900000,"001",591.29999999999995,591.29999999999995,1]
["Целевые программы муниципальных образований",7,1,7950000,0,9086.2999999999993,9079.7999999999993,0.99928463731111672]
["Мероприятия в сфере образования",7,1,7950000,"022",987,987,1]
["Мероприятия по обеспечению пожарной безопасности",7,1,7950000,"450",1000,1000,1]
["Долгосрочная целевая программа Черемховского районного муниципального образования \"Повышение эффективности бюджетных расходов Черемховского районного муниципального образования на 2012-2013 годы\"",7,1,7950200,0,7099.3,7092.8,0.9990844167734847]
["Выполнение функций казенными учреждениями",7,1,7950200,"001",7099.3,7092.8,0.9990844167734847]
["Общее образование",7,2,0,0,331383.3,327266.8,0.98757782905777092]
["Руководство и управление в сфере установленных функций органов государственной власти субъектов Российской Федерации  и органов местного самоуправления",7,2,20000,0,236986.7,236355.7,0.99733740332263376]
["Обеспечение государственных гарантий прав граждан на получение общедоступного и бесплатного дошкольного, начального общего, основного общего, среднего (полного) общего образования, а также дополнительного образования в общеобразовательных учреждениях",7,2,25000,0,236986.7,236355.7,0.99733740332263376]
["Выполнение функций казенными учреждениями",7,2,25000,"001",236986.7,236355.7,0.99733740332263376]
["Школы - детские сады, школы начальные, неполные средние и средние",7,2,4210000,0,47870.1,45850.8,0.95781709250659608]
["Обеспечение деятельности подведомственных учреждений",7,2,4219900,0,47870.1,45850.8,0.95781709250659608]
["Выполнение функций казенными учреждениями",7,2,4219900,"001",47870.1,45850.8,0.95781709250659608]
["Учреждения по внешкольной работе с детьми",7,2,4230000,0,22019.200000000001,20930.2,0.95054316233105651]
["Обеспечение деятельности подведомственных учреждений",7,2,4239900,0,22019.200000000001,20930.2,0.95054316233105651]
["Выполнение функций казенными учреждениями",7,2,4239900,"001",22019.200000000001,20930.2,0.95054316233105651]
["Иные безвозмездные и безвозвратные перечисления",7,2,5200000,0,5162.3,4895.8999999999996,0.94839509520949949]
["Ежемесячное денежное вознаграждение за классное руководство",7,2,5200900,0,5162.3,4895.8999999999996,0.94839509520949949]
["Выполнение функций казенными учреждениями",7,2,5200900,"001",5162.3,4895.8999999999996,0.94839509520949949]
["Региональные целевые программы",7,2,5220000,0,1414.2,1328,0.93904681091783337]
["Долгосрочная целевая программа \"Социальное развитие села Иркутской области на 2011-2014 годы\"",7,2,5221800,0,789,789,1]
["Бюджетные инвестиции",7,2,5221800,"003",789,789,1]
["Долгосрочная целевая программа «Модернизация объектов коммунальной инфраструктуры Иркутской области на 2011-2013 годы»",7,2,5222000,0,300,213.8,0.71266666666666667]
["Подпрограмма «Подготовка объектов коммунальной инфраструктуры Иркутской области к отопительному сезону в 2011-2013 годах»",7,2,5222001,0,300,213.8,0.71266666666666667]
["Выполнение функций казенными учреждениями",7,2,5222001,"001",300,213.8,0.71266666666666667]
["Долгосрочная целевая программа «Энергосбережение и повышение энергетической эффективности на территории Иркутской области на 2011-2015 годы и на период до 2020 года»",7,2,5225400,0,325.2,325.2,1]
["Выполнение функций казенными учреждениями",7,2,5225400,"001",325.2,325.2,1]
["Выплата заработной платы с начислениями на нее педагогическим работникам муниципальных дошкольных образовательных учреждений и муниципальных учреждений дополнительного образования",7,2,5890000,0,2276,2276,1]
["Выполнение функций казенными учреждениями",7,2,5890000,"001",2276,2276,1]
["Погашение кредиторской задолженности учреждений, находящихся в ведении органов местного самоуправления муниципальных образований Иркутской области, по единому социальному налогу, зачисляемому в федеральный бюджет, Фонд социального страхования Российской Федерации, Федеральный фонд обязательного медицинского страхования и территориальные фонды обязательного медицинского страхования",7,2,5900000,0,877.4,877.4,1]
["Выполнение функций казенными учреждениями",7,2,5900000,"001",877.4,877.4,1]
["Целевые программы муниципальных образований",7,2,7950000,0,14777.4,14752.8,0.99833529578951641]
["Мероприятия в сфере образования",7,2,7950000,"022",1881.6,1875.1,0.99654549319727892]
["Мероприятия по обеспечению пожарной безопасности",7,2,7950000,"450",700,683,0.97571428571428576]
["Мероприятия по повышению энергетической эффективности",7,2,7950000,"451",600,598.9,0.99816666666666665]
["Долгосрочная целевая программа Черемховского районного муниципального образования \"Повышение эффективности бюджетных расходов Черемховского районного муниципального образования на 2012-2013 годы\"",7,2,7950200,0,11595.8,11595.9,1.00000862381207]
["Выполнение функций казенными учреждениями",7,2,7950200,"001",11595.8,11595.9,1.00000862381207]
["Молодежная политика и оздоровление детей",7,7,0,0,2615,2614.9,0.99996175908221796]
["Организационно-воспитательная работа с молодежью",7,7,4310000,0,106,106,1]
["Проведение мероприятий для детей и молодежи",7,7,4310100,0,106,106,1]
["Выполнение функций органами местного самоуправления",7,7,4310100,"500",106,106,1]
["Мероприятия по проведению оздоровительной кампании детей",7,7,4320000,0,24.1,24.1,1]
["Оплата стоимости набора продуктов питания для детей в организованных органами местного самоуправления оздоровительных лагерях с дневным пребыванием детей за счет средств областного бюджета",7,7,4320300,0,24.1,24.1,1]
["Оплата стоимости набора продуктов питания для детей в организованных органами местного самоуправления оздоровительных лагерях с дневным пребыванием детей за счет средств местного бюджета ",7,7,4320302,0,24.1,24.1,1]
["Выполнение функций казенными учреждениями",7,7,4320302,"001",24.1,24.1,1]
["Региональные целевые программы",7,7,5220000,0,2384.9,2384.8000000000002,0.99995806952073463]
["Долгосрочная целевая программа Иркутской области \"Организация и обеспечение отдыха и оздоровления детей в Иркутской области на 2012-2014гг.\"",7,7,5226200,0,2384.9,2384.8000000000002,0.99995806952073463]
["Выполнение функций казенными учреждениями",7,7,5226200,"001",2384.9,2384.8000000000002,0.99995806952073463]
["Целевые программы муниципальных образований",7,7,7950000,0,100,100,1]
["Выполнение функций органами местного самоуправления",7,7,7950000,"500",100,100,1]
["Другие вопросы в области образования",7,9,0,0,10055,9937.7999999999993,0.98834410740924905]
["Руководство и управление в сфере установленных функций органов государственной власти субъектов Российской Федерации  и органов местного самоуправления",7,9,20000,0,3723.5,3606.4,0.96855109440042975]
["Центральный аппарат",7,9,20400,0,3723.5,3606.4,0.96855109440042975]
["Выполнение функций органами местного самоуправления",7,9,20400,"500",3723.5,3606.4,0.96855109440042975]
["Учебно-методические кабинеты, централизованные бухгалтерии, группы хозяйственного обслуживания, учебные фильмотеки, межшкольные учебно-производственные комбинаты, логопедические пункты",7,9,4520000,0,6315.7,6315.6,0.99998416644235799]
["Обеспечение деятельности подведомственных учреждений",7,9,4529900,0,6315.7,6315.6,0.99998416644235799]
["Субсидии некоммерческим организациям",7,9,4529900,"019",193.6,193.6,1]
["Субсидии бюджетным учреждениям на финансовое обеспечение муниципального задания на оказание муниципальных услуг (выполнение работ)",7,9,4529900,"611",6011.8,6011.7,0.99998336604677462]
["Субсидии бюджетным учреждениям на иные цели",7,9,4529900,"612",110.3,110.3,1]
["Погашение кредиторской задолженности учреждений, находящихся в ведении органов местного самоуправления муниципальных образований Иркутской области, по единому социальному налогу, зачисляемому в федеральный бюджет, Фонд социального страхования Российской Федерации, Федеральный фонд обязательного медицинского страхования и территориальные фонды обязательного медицинского страхования",7,9,5900000,0,15.8,15.8,1]
["Выполнение функций органами местного самоуправления",7,9,5900000,"500",15.8,15.8,1]
["КУЛЬТУРА И КИНЕМАТОГРАФИЯ",8,0,0,0,20585.400000000001,19401.400000000001,0.94248350772877865]
["Культура",8,1,0,0,19552.2,18370,0.93953621587340552]
["Учреждения культуры и мероприятия в сфере культуры и кинематографии",8,1,4400000,0,6637.2,5973,0.89992768034713433]
["Комплектование книжных фондов библиотек муниципальных образований и государственных библиотек городов Москвы и Санкт-Петербурга",8,1,4400200,0,431,431,1]
["Комплектование книжных фондов библиотек муниципальных образований и государственных библиотек городов Москвы и Санкт-Петербурга за счет средств федерального бюджета",8,1,4400201,0,281,281,1]
["Выполнение функций казенными учреждениями",8,1,4400201,"001",281,281,1]
["Комплектование книжных фондов библиотек муниципальных образований и государственных библиотек городов Москвы и Санкт-Петербурга за счет областного бюджета",8,1,4400202,0,150,150,1]
["Выполнение функций казенными учреждениями",8,1,4400202,"001",150,150,1]
["Обеспечение деятельности подведомственных учреждений",8,1,4409900,0,6206.2,5542,0.89297798975218334]
["Выполнение функций казенными учреждениями",8,1,4409900,"001",6206.2,5542,0.89297798975218334]
["Музеи и постоянные выставки",8,1,4410000,0,1389.6,1370.8,0.9864709268854347]
["Обеспечение деятельности подведомственных учреждений",8,1,4419900,0,1389.6,1370.8,0.9864709268854347]
["Выполнение функций казенными учреждениями",8,1,4419900,"001",1389.6,1370.8,0.9864709268854347]
["Библиотеки",8,1,4420000,0,8022.9,7862.9,0.98005708658963719]
["Обеспечение деятельности подведомственных учреждений",8,1,4429900,0,8022.9,7862.9,0.98005708658963719]
["Выполнение функций казенными учреждениями",8,1,4429900,"001",8022.9,7862.9,0.98005708658963719]
["Региональные целевые программы",8,1,5220000,0,1000,1000,1]
["Долгосрочная целевая программа Иркутской области «100 модельных домов культуры Приангарью» на 2011-2013 годы",8,1,5225500,0,1000,1000,1]
["Выполнение функций казенными учреждениями",8,1,5225500,"001",1000,1000,1]
["Погашение кредиторской задолженности учреждений, находящихся в ведении органов местного самоуправления муниципальных образований Иркутской области, по единому социальному налогу, зачисляемому в федеральный бюджет, Фонд социального страхования Российской Федерации, Федеральный фонд обязательного медицинского страхования и территориальные фонды обязательного медицинского страхования",8,1,5900000,0,114.4,114.4,1]
["Выполнение функций казенными учреждениями",8,1,5900000,"001",114.4,114.4,1]
["Целевые программы муниципальных образований",8,1,7950000,0,2388.1,2048.9,0.85796239688455267]
["Мероприятия по поддержке и развитию культуры, искусства, кинематографии",8,1,7950000,"023",998.3,957.7,0.95933086246619259]
["Мероприятия по повышению энергетической эффективности",8,1,7950000,"451",100,69.900000000000006,0.69900000000000007]
["Долгосрочная целевая программа Черемховского районного муниципального образования \"Повышение эффективности бюджетных расходов Черемховского районного муниципального образования на 2012-2013 годы\"",8,1,7950200,0,1289.8,1021.4,0.79190572181733598]
["Выполнение функций казенными учреждениями",8,1,7950200,"001",1289.8,1021.4,0.79190572181733598]
["Другие вопросы в области культуры, кинематографии",8,4,0,0,1033.2,1031.4000000000001,0.99825783972125437]
["Руководство и управление в сфере установленных функций органов государственной власти субъектов Российской Федерации  и органов местного самоуправления",8,4,20000,0,1033.2,1031.4000000000001,0.99825783972125437]
["Центральный аппарат",8,4,20400,0,1033.2,1031.4000000000001,0.99825783972125437]
["Выполнение функций органами местного самоуправления",8,4,20400,"500",1033.2,1031.4000000000001,0.99825783972125437]
["ЗДРАВООХРАНЕНИЕ",9,0,0,0,69140.3,62706.2,0.90694139308044652]
["Стационарная медицинская помощь",9,1,0,0,38796.199999999997,33548.300000000003,0.86473159742449013]
["Руководство и управление в сфере установленных функций органов государственной власти субъектов Российской Федерации  и органов местного самоуправления",9,1,20000,0,17117.599999999999,17117.7,1.0000058419404592]
["Осуществление отдельных областных государственных полномочий в области охраны здоровья граждан",9,1,25200,0,17117.599999999999,17117.7,1.0000058419404592]
["Выполнение функций казенными учреждениями",9,1,25200,"001",2772.9,2772.9,1]
["Субсидии бюджетным учреждениям на финансовое обеспечение муниципального задания на оказание муниципальных услуг (выполнение работ)",9,1,25200,"611",14344.7,14344.7,1]
["Реализация региональных программ модернизации здравоохранения субъектов Российской Федерации и программ модернизации федеральных государственных учреждений",9,1,960000,0,7422.3,2431.1,0.32753998086846392]
["Реализация программ модернизации здравоохранения субъектов Российской Федерации в части укрепления материально-технической базы медицинских учреждений",9,1,960100,0,6663.3,1793.5,0.26916092626776522]
["Реализация программ модернизации здравоохранения субъектов Российской Федерации в части укрепления материально-технической базы медицинских учреждений за счет средств бюджета территориального фонда обязательного медицинского страхования граждан Иркутской области",9,1,960101,0,6663.3,1793.5,0.26916092626776522]
["Субсидии бюджетным учреждениям на иные цели",9,1,960101,"612",6663.3,1793.5,0.26916092626776522]
["Реализация программ модернизации здравоохранения субъектов Российской Федерации в части внедрения современных информационных систем в здравоохранение в целях перехода на полисы обязательного медицинского страхования единого образца",9,1,960200,0,759,637.6,0.84005270092226614]
["Реализация программ модернизации здравоохранения субъектов Российской Федерации в части внедрения современных информационных систем в здравоохранении в целях перехода на полисы обязательного медицинского страхования единого образца за счет средств бюджета территориального фонда обязательного медицинского страхования граждан  Иркутской области",9,1,960201,0,759,637.6,0.84005270092226614]
["Субсидии бюджетным учреждениям на иные цели",9,1,960201,"612",759,637.6,0.84005270092226614]
["Больницы, клиники, госпитали, медико-санитарные части",9,1,4700000,0,11295.4,11038.6,0.9772650813605539]
["Субсидии бюджетным учреждениям на финансовое обеспечение муниципального задания на оказание муниципальных услуг (выполнение работ)",9,1,4700000,"611",5916.7,5916.7,1]
["Субсидии бюджетным учреждениям на иные цели",9,1,4700000,"612",3543,3286.2,0.92751905165114301]
["Обеспечение деятельности подведомственных учреждений",9,1,4709900,0,1835.7,1835.7,1]
["Выполнение функций казенными учреждениями",9,1,4709900,"001",1835.7,1835.7,1]
["Погашение кредиторской задолженности учреждений, находящихся в ведении органов местного самоуправления муниципальных образований Иркутской области, по единому социальному налогу, зачисляемому в федеральный бюджет, Фонд социального страхования Российской Федерации, Федеральный фонд обязательного медицинского страхования и территориальные фонды обязательного медицинского страхования",9,1,5900000,0,52,52,1]
["Субсидии бюджетным учреждениям на иные цели",9,1,5900000,"612",52,52,1]
["Целевые программы муниципальных образований",9,1,7950000,0,2908.9,2908.9,1]
["Долгосрочная целевая программа Черемховского районного муниципального образования \"Повышение эффективности бюджетных расходов Черемховского районного муниципального образования на 2012-2013 годы\"",9,1,7950200,0,2658.9,2658.9,1]
["Субсидии бюджетным учреждениям на финансовое обеспечение муниципального задания на оказание муниципальных услуг (выполнение работ)",9,1,7950200,"611",2658.9,2658.9,1]
["Долгосрочная целевая программа \"Неотложные меры по борьбе с туберкулезом\" на 2012-2014 годы",9,1,7950300,0,50,50,1]
["Субсидии бюджетным учреждениям на финансовое обеспечение муниципального задания на оказание муниципальных услуг (выполнение работ)",9,1,7950300,"611",50,50,1]
["Долгосрочная целевая программа \"Сахарный диабет\" на 2012-2014 годы",9,1,7950400,0,150,150,1]
["Субсидии бюджетным учреждениям на финансовое обеспечение муниципального задания на оказание муниципальных услуг (выполнение работ)",9,1,7950400,"611",150,150,1]
["Долгосрочная целевая программа \"Анти-вич/спид\" на 2012-2014 годы",9,1,7950500,0,50,50,1]
["Субсидии бюджетным учреждениям на финансовое обеспечение муниципального задания на оказание муниципальных услуг (выполнение работ)",9,1,7950500,"611",50,50,1]
["Амбулаторная помощь",9,2,0,0,15308,14394.8,0.94034491769009665]
["Руководство и управление в сфере установленных функций органов государственной власти субъектов Российской Федерации  и органов местного самоуправления",9,2,20000,0,3068.7,3068.7,1]
["Осуществление отдельных областных государственных полномочий в области охраны здоровья граждан",9,2,25200,0,3068.7,3068.7,1]
["Выполнение функций казенными учреждениями",9,2,25200,"001",510.1,510.1,1]
["Субсидии бюджетным учреждениям на финансовое обеспечение муниципального задания на оказание муниципальных услуг (выполнение работ)",9,2,25200,"611",2558.6,2558.6,1]
["Реализация региональных программ модернизации здравоохранения субъектов Российской Федерации и программ модернизации федеральных государственных учреждений",9,2,960000,0,3141.5,3141.5,1]
["Реализация программ модернизации здравоохранения субъектов Российской Федерации в части укрепления материально-технической базы медицинских учреждений",9,2,960100,0,3141.5,3141.5,1]
["Реализация программ модернизации здравоохранения субъектов Российской Федерации в части укрепления материально-технической базы медицинских учреждений за счет средств бюджета территориального фонда обязательного медицинского страхования граждан Иркутской области",9,2,960101,0,3141.5,3141.5,1]
["Субсидии бюджетным учреждениям на иные цели",9,2,960101,"612",3141.5,3141.5,1]
["Поликлиники, амбулатории, диагностические центры",9,2,4710000,0,2378.6999999999998,2147.4,0.90276201286416957]
["Субсидии бюджетным учреждениям на финансовое обеспечение муниципального задания на оказание муниципальных услуг (выполнение работ)",9,2,4710000,"611",1342.3,1342.3,1]
["Субсидии бюджетным учреждениям на иные цели",9,2,4710000,"612",809.4,578.1,0.71423276501111943]
["Обеспечение деятельности подведомственных учреждений",9,2,4719900,0,227,227,1]
["Выполнение функций казенными учреждениями",9,2,4719900,"001",227,227,1]
["Фельдшерско-акушерские пункты",9,2,4780000,0,2506,2505.5,0.99980047885075818]
["Субсидии бюджетным учреждениям на финансовое обеспечение муниципального задания на оказание муниципальных услуг (выполнение работ)",9,2,4780000,"611",1906.9,1906.9,1]
["Субсидии бюджетным учреждениям на иные цели",9,2,4780000,"612",26.1,25.6,0.98084291187739459]
["Обеспечение деятельности подведомственных учреждений",9,2,4789900,0,573,573,1]
["Выполнение функций казенными учреждениями",9,2,4789900,"001",573,573,1]
["Иные безвозмездные и безвозвратные перечисления",9,2,5200000,0,3215,2533.6,0.78805598755832029]
["Денежные выплаты медицинскому персоналу фельдшерско-акушерских пунктов, врачам, фельдшерам и медицинским сестрам скорой медицинской помощи",9,2,5201800,0,3215,2533.6,0.78805598755832029]
["Субсидии бюджетным учреждениям на финансовое обеспечение муниципального задания на оказание муниципальных услуг (выполнение работ)",9,2,5201800,"611",3215,2533.6,0.78805598755832029]
["Целевые программы муниципальных образований",9,2,7950000,0,998.1,998.1,1]
["Мероприятия в области здравоохранения",9,2,7950000,"079",50,50,1]
["Долгосрочная целевая программа Черемховского районного муниципального образования \"Повышение эффективности бюджетных расходов Черемховского районного муниципального образования на 2012-2013 годы\"",9,2,7950200,0,948.1,948.1,1]
["Субсидии бюджетным учреждениям на финансовое обеспечение муниципального задания на оказание муниципальных услуг (выполнение работ)",9,2,7950200,"611",948.1,948.1,1]
["Медицинская помощь в дневных стационарах всех типов",9,3,0,0,663.4,663.4,1]
["Больницы, клиники, госпитали, медико-санитарные части",9,3,4700000,0,186.2,186.2,1]
["Субсидии бюджетным учреждениям на финансовое обеспечение муниципального задания на оказание муниципальных услуг (выполнение работ)",9,3,4700000,"611",185.6,185.6,1]
["Обеспечение деятельности подведомственных учреждений",9,3,4709900,0,0.6,0.6,1]
["Выполнение функций казенными учреждениями",9,3,4709900,"001",0.6,0.6,1]
["Целевые программы муниципальных образований",9,3,7950000,0,477.2,477.2,1]
["Долгосрочная целевая программа Черемховского районного муниципального образования \"Повышение эффективности бюджетных расходов Черемховского районного муниципального образования на 2012-2013 годы\"",9,3,7950200,0,477.2,477.2,1]
["Субсидии бюджетным учреждениям на финансовое обеспечение муниципального задания на оказание муниципальных услуг (выполнение работ)",9,3,7950200,"611",477.2,477.2,1]
["Скорая медицинская помощь",9,4,0,0,13764.2,13491.1,0.98015867249821997]
["Руководство и управление в сфере установленных функций органов государственной власти субъектов Российской Федерации  и органов местного самоуправления",9,4,20000,0,9986.7000000000007,9986.7000000000007,1]
["Осуществление отдельных областных государственных полномочий в области охраны здоровья граждан",9,4,25200,0,9986.7000000000007,9986.7000000000007,1]
["Выполнение функций казенными учреждениями",9,4,25200,"001",1628.2,1628.2,1]
["Субсидии бюджетным учреждениям на финансовое обеспечение муниципального задания на оказание муниципальных услуг (выполнение работ)",9,4,25200,"611",8358.5,8358.5,1]
["Больницы, клиники, госпитали, медико-санитарные части",9,4,4700000,0,1741.5,1741.5,1]
["Субсидии бюджетным учреждениям на финансовое обеспечение муниципального задания на оказание муниципальных услуг (выполнение работ)",9,4,4700000,"611",1409.5,1409.5,1]
["Обеспечение деятельности подведомственных учреждений",9,4,4709900,0,332,332,1]
["Выполнение функций казенными учреждениями",9,4,4709900,"001",332,332,1]
["Иные безвозмездные и безвозвратные перечисления",9,4,5200000,0,1718,1461.9,0.85093131548311995]
["Денежные выплаты медицинскому персоналу фельдшерско-акушерских пунктов, врачам, фельдшерам и медицинским сестрам скорой медицинской помощи",9,4,5201800,0,1718,1461.9,0.85093131548311995]
["Субсидии бюджетным учреждениям на финансовое обеспечение муниципального задания на оказание муниципальных услуг (выполнение работ)",9,4,5201800,"611",1718,1461.9,0.85093131548311995]
["Целевые программы муниципальных образований",9,4,7950000,0,318,301,0.94654088050314467]
["Долгосрочная целевая программа Черемховского районного муниципального образования \"Повышение эффективности бюджетных расходов Черемховского районного муниципального образования на 2012-2013 годы\"",9,4,7950200,0,318,301,0.94654088050314467]
["Субсидии бюджетным учреждениям на финансовое обеспечение муниципального задания на оказание муниципальных услуг (выполнение работ)",9,4,7950200,"611",318,301,0.94654088050314467]
["Другие вопросы в области здравоохранения",9,9,0,0,608.5,608.5,1]
["Руководство и управление в сфере установленных функций органов государственной власти субъектов Российской Федерации  и органов местного самоуправления",9,9,20000,0,8.5,8.5,1]
["Центральный аппарат",9,9,20400,0,8.5,8.5,1]
["Выполнение функций органами местного самоуправления",9,9,20400,"500",8.5,8.5,1]
["Целевые программы муниципальных образований",9,9,7950000,0,600,600,1]
["Долгосрочная целевая программа \"Привлечение врачебных кадров в здравоохранение района\" на 2012-2014 годы",9,9,7950900,0,600,600,1]
["Субсидии бюджетным учреждениям на иные цели",9,9,7950900,"612",600,600,1]
["СОЦИАЛЬНАЯ ПОЛИТИКА",10,0,0,0,20941.599999999999,19118.7,0.91295316499216883]
["Пенсионное обеспечение",10,1,0,0,2880.9,2880.8,0.99996528862508249]
["Доплаты к пенсиям, дополнительное пенсионное обеспечение ",10,1,4910000,0,2880.9,2880.8,0.99996528862508249]
["Доплаты к пенсиям государственных служащих субъектов Российской Федерации и муниципальных служащих ",10,1,4910100,0,2880.9,2880.8,0.99996528862508249]
["Социальные выплаты",10,1,4910100,"005",2880.9,2880.8,0.99996528862508249]
["Социальное обеспечение населения",10,3,0,0,11858.5,10602.6,0.89409284479487294]
["Руководство и управление в сфере установленных функций органов государственной власти субъектов Российской Федерации  и органов местного самоуправления",10,3,20000,0,10544.4,9334.7000000000007,0.88527559652516985]
["Осуществление отдельных областных государственных полномочий по предоставлению мер социальной поддержки многодетным и малоимущим семьям",10,3,24600,0,4145.3,3170.4,0.76481798663546663]
["Социальные выплаты",10,3,24600,"005",4145.3,3170.4,0.76481798663546663]
["Осуществление областных государственных полномочий по предоставлению гражданам субсидий на оплату жилых помещений и коммунальных услуг",10,3,24700,0,6399.1,6164.2,0.96329171289712612]
["Предоставление гражданам субсидий на оплату жилых помещений и коммунальных услуг",10,3,24702,0,6399.1,6164.2,0.96329171289712612]
["Социальные выплаты",10,3,24702,"005",6399.1,6164.2,0.96329171289712612]
["Федеральные целевые программы",10,3,1000000,0,166.8,125.1,0.74999999999999989]
["Федеральная целевая программа \"Жилище\" на 2011 - 2015 годы",10,3,1008800,0,166.8,125.1,0.74999999999999989]
["Подпрограмма \"Обеспечение жильем молодых семей\"",10,3,1008820,0,166.8,125.1,0.74999999999999989]
["Социальные выплаты",10,3,1008820,"005",166.8,125.1,0.74999999999999989]
["Реализация государственных функций в области социальной политики",10,3,5140000,0,832.1,832.1,1]
["Мероприятия в области социальной политики",10,3,5140100,0,832.1,832.1,1]
["Социальные выплаты",10,3,5140100,"005",832.1,832.1,1]
["Региональные целевые программы",10,3,5220000,0,190.7,186.2,0.9764027267960147]
["Областная государственная социальная программа \"Молодым семьям - доступное жилье\" на 2005-2019 годы",10,3,5222200,0,190.7,186.2,0.9764027267960147]
["Социальные выплаты",10,3,5222200,"005",190.7,186.2,0.9764027267960147]
["Целевые программы муниципальных образований",10,3,7950000,0,124.5,124.5,1]
["Выполнение функций органами местного самоуправления",10,3,7950000,"500",124.5,124.5,1]
["Охрана семьи и детства",10,4,0,0,5082.7,4911.2,0.96625809117201489]
["Руководство и управление в сфере установленных функций органов государственной власти субъектов Российской Федерации  и органов местного самоуправления",10,4,20000,0,3012.4,2840.9,0.94306864958172887]
["Осуществление областных государственных полномочий по обеспечению детей-сирот и детей, оставшихся без попечения родителей, лиц из числа детей-сирот и детей, оставшихся без попечения родителей, жилыми помещениями по договорам социального найма в Иркутской области",10,4,24800,0,3012.4,2840.9,0.94306864958172887]
["Содержание и обеспечение деятельности муниципальных служащих, осуществляющих областные государственные полномочия по обеспечению детей-сирот и детей, оставшихся без попечения родителей, лиц из числа детей-сирот и детей, оставшихся без попечения родителей, жилыми помещениями по договорам социального найма в Иркутской области",10,4,24801,0,22.7,22.7,1]
["Выполнение функций органами местного самоуправления",10,4,24801,"500",22.7,22.7,1]
["Обеспечение детей-сирот и детей, оставшихся без попечения родителей, лиц из числа детей-сирот и детей, оставшихся без попечения родителей, жилыми помещениями по договорам социального найма в Иркутской области",10,4,24802,0,2989.7,2818.2,0.94263638492156399]
["Бюджетные инвестиции",10,4,24802,"003",2989.7,2818.2,0.94263638492156399]
["Социальная помощь",10,4,5050000,0,2070.3000000000002,2070.3000000000002,1]
["Федеральный закон от 21 декабря 1996 года N 159-ФЗ \"О дополнительных гарантиях по социальной поддержке детей-сирот и детей, оставшихся без попечения родителей\"",10,4,5052100,0,2070.3000000000002,2070.3000000000002,1]
["Обеспечение жилыми помещениями детей-сирот, детей, оставшихся без попечения родителей, а также детей, находящихся под опекой (попечительством), не имеющих закрепленного жилого помещения",10,4,5052102,0,2070.3000000000002,2070.3000000000002,1]
["Бюджетные инвестиции",10,4,5052102,"003",2070.3000000000002,2070.3000000000002,1]
["Другие вопросы в области социальной политики",10,6,0,0,1119.5,724.1,0.64680661009379192]
["Руководство и управление в сфере установленных функций органов государственной власти субъектов Российской Федерации  и органов местного самоуправления",10,6,20000,0,1019.5,628.1,0.61608631682197157]
["Осуществление областных государственных полномочий по определению персонального состава и обеспечению деятельности районных (городских), районных в городах комиссий по делам несовершеннолетних и защите их прав",10,6,24100,0,1019.5,628.1,0.61608631682197157]
["Выполнение функций органами местного самоуправления",10,6,24100,"500",1019.5,628.1,0.61608631682197157]
["Целевые программы муниципальных образований",10,6,7950000,0,100,96,0.96]
["Выполнение функций органами местного самоуправления",10,6,7950000,"500",100,96,0.96]
["ФИЗИЧЕСКАЯ КУЛЬТУРА И СПОРТ",11,0,0,0,785,785,1]
["Физическая культура",11,1,0,0,785,785,1]
["Физкультурно-оздоровительная работа и спортивные мероприятия",11,1,5120000,0,485.9,485.9,1]
["Мероприятия в области спорта, физической культуры и туризма",11,1,5129700,0,485.9,485.9,1]
["Выполнение функций органами местного самоуправления",11,1,5129700,"500",485.9,485.9,1]
["Целевые программы муниципальных образований",11,1,7950000,0,299.10000000000002,299.10000000000002,1]
["Выполнение функций органами местного самоуправления",11,1,7950000,"500",299.10000000000002,299.10000000000002,1]
["СРЕДСТВА МАССОВОЙ ИНФОРМАЦИИ",12,0,0,0,2605,2605,1]
["Периодическая печать и издательства",12,2,0,0,2605,2605,1]
["Периодические издания, учрежденные органами законодательной и исполнительной власти",12,2,4570000,0,2605,2605,1]
["Государственная поддержка в сфере культуры, кинематографии и средств массовой информации",12,2,4578500,0,2605,2605,1]
["Субсидии юридическим лицам",12,2,4578500,"006",2605,2605,1]
["МЕЖБЮДЖЕТНЫЕ ТРАНСФЕРТЫ ОБЩЕГО ХАРАКТЕРА БЮДЖЕТАМ СУБЪЕКТОВ РОССИЙСКОЙ ФЕДЕРАЦИИ И МУНИЦИПАЛЬНЫХ ОБРАЗОВАНИЙ ",14,0,0,0,10235,7172.6,0.70079140205178314]
["Дотации на выравнивание бюджетной обеспеченности субъектов Российской Федерации и муниципальных образований",14,1,0,0,3500,529,0.15114285714285713]
["Выравнивание бюджетной обеспечености",14,1,5160000,0,3500,529,0.15114285714285713]
["Выравнивание бюджетной обеспеченности",14,1,5160100,0,3500,529,0.15114285714285713]
["Выравнивание бюджетной обеспеченности поселений из районного фонда финансовой поддержки",14,1,5160130,0,3500,529,0.15114285714285713]
["Фонд финансовой поддержки",14,1,5160130,"008",3500,529,0.15114285714285713]
["Прочие межбюджетные трансферты общего характера бюджетам субъектов Российской Федерации и муниципальных образований ",14,3,0,0,6735,6643.6,0.9864291017074982]
["Межбюджетные трансферты",14,3,5210000,0,92,0.6,6.5217391304347823E-3]
["Межбюджетные трансферты бюджетам муниципальных районов из бюджетов поселений и межбюджетные трансферты бюджетам поселений из бюджетов муниципальных районов на осуществление части полномочий по решению вопросов местного значения в соответствии с заключенными соглашениями",14,3,5210600,0,92,0.6,6.5217391304347823E-3]
["Иные межбюджетные трансферты",14,3,5210600,"017",92,0.6,6.5217391304347823E-3]
["Целевые программы муниципальных образований",14,3,7950000,0,6643,6643,1]
["Долгосрочная целевая программа Черемховского районного муниципального образования \"Повышение эффективности бюджетных расходов Черемховского районного муниципального образования на 2012-2013 годы\"",14,3,7950200,0,6643,6643,1]
["Иные межбюджетные трансферты",14,3,7950200,"017",6643,6643,1]
["ИТОГО",{"$nulls":4},679785.7,653450.19999999995,0.9612591144532755]
[]
["Начальник финансового управления",{"$nulls":5},"Ю.Н. Гайдук"]

{"sheet":"прил4","index":3,"n_rows":386,"n_cols":8,"rows_kept":386,"cut":false,"hidden":false,"merged":[[383,0,383,4],[385,6,385,7],[6,0,6,7],[9,0,10,0],[9,1,9,4],[9,5,10,5],[9,6,10,6],[9,7,10,7]]}
[]
[]
[]
[]
[]
[]
["Отчет об исполнении бюджета Черемховского районного муниципального образования за 2012 год по  разделам и подразделам классификации расходов бюджетов "]
[]
[]
["Наименование показателя","Код",null,null,null,"План на год, тыс. руб.","Исполнено, тыс. руб.","% исполнения"]
[null,"раздела","подраздела","целевой статьи","вида расходов"]
[1,2,3,4,5,4,5,6]
["ОБЩЕГОСУДАРСТВЕННЫЕ ВОПРОСЫ",1,0,0,0,77828.100000000006,75090.5,0.96482504391087531]
["Функционирование высшего должностного лица субъекта Российской Федерации и муниципального образования",1,2,0,0,2034.5,2014.9,0.99036618333742943]
["Руководство и управление в сфере установленных функций органов государственной власти субъектов Российской Федерации  и органов местного самоуправления",1,2,20000,0,2034.5,2014.9,0.99036618333742943]
["Глава муниципального образования",1,2,20300,0,2034.5,2014.9,0.99036618333742943]
["Выполнение функций органами местного самоуправления",1,2,20300,"500",2034.5,2014.9,0.99036618333742943]
["Функционирование законодательных (представительных) органов государственной власти и представительных органов муниципальных образований",1,3,0,0,1601.4,1581.6,0.98763581865867356]
["Руководство и управление в сфере установленных функций органов государственной власти субъектов Российской Федерации  и органов местного самоуправления",1,3,20000,0,1599.8,1580,0.98762345293161646]
["Центральный аппарат",1,3,20400,0,638.20000000000005,624.4,0.97837668442494508]
["Выполнение функций органами местного самоуправления",1,3,20400,"500",638.20000000000005,624.4,0.97837668442494508]
["Председатель представительного органа муниципального образования",1,3,21100,0,961.6,955.6,0.9937603993344426]
["Выполнение функций органами местного самоуправления",1,3,21100,"500",961.6,955.6,0.9937603993344426]
["Погашение кредиторской задолженности учреждений, находящихся в ведении органов местного самоуправления муниципальных образований Иркутской области, по единому социальному налогу, зачисляемому в федеральный бюджет, Фонд социального страхования Российской Федерации, Федеральный фонд обязательного медицинского страхования и территориальные фонды обязательного медицинского страхования",1,3,5900000,0,1.6,1.6,1]
["Выполнение функций органами местного самоуправления",1,3,5900000,"500",1.6,1.6,1]
["Функционирование Правительства Российской Федерации, высших исполнительных органов государственной власти субъектов Российской Федерации, местных администраций",1,4,0,0,28868.2,28640.2,0.99210203615050474]
["Руководство и управление в сфере установленных функций органов государственной власти субъектов Российской Федерации  и органов местного самоуправления",1,4,20000,0,28717.7,28515.1,0.99294511747110659]
["Центральный аппарат",1,4,20400,0,28717.7,28515.1,0.99294511747110659]
["Выполнение функций органами местного самоуправления",1,4,20400,"500",28717.7,28515.1,0.99294511747110659]
["Погашение кредиторской задолженности учреждений, находящихся в ведении органов местного самоуправления муниципальных образований Иркутской области, по единому социальному налогу, зачисляемому в федеральный бюджет, Фонд социального страхования Российской Федерации, Федеральный фонд обязательного медицинского страхования и территориальные фонды обязательного медицинского страхования",1,4,5900000,0,100.5,100.5,1]
["Выполнение функций органами местного самоуправления",1,4,5900000,"500",100.5,100.5,1]
["Целевые программы муниципальных образований",1,4,7950000,0,50,24.6,0.49200000000000005]
["Долгосрочная целевая программа Черемховского районного муниципального образования \"Повышение эффективности бюджетных расходов Черемховского районного муниципального образования на 2012-2013 годы\"",1,4,7950200,0,50,24.6,0.49200000000000005]
["Выполнение функций органами местного самоуправления",1,4,7950200,"500",50,24.6,0.49200000000000005]
["Судебная система",1,5,0,0,7.5,7.5,1]
["Руководство и управление в сфере установленных функций",1,5,10000,0,7.5,7.5,1]
["Составление (изменение и дополнение) списков кандидатов в присяжные заседатели федеральных судов общей юрисдикции в Российской Федерации",1,5,14000,0,7.5,7.5,1]
["Выполнение функций органами местного самоуправления",1,5,14000,"500",7.5,7.5,1]
["Обеспечение деятельности финансовых, налоговых и таможенных органов и органов финансового (финансово-бюджетного) надзора",1,6,0,0,9208.2000000000007,9128.9,0.99138811059707643]
["Руководство и управление в сфере установленных функций органов государственной власти субъектов Российской Федерации  и органов местного самоуправления",1,6,20000,0,9158.2000000000007,9128.9,0.99680068135659838]
["Центральный аппарат",1,6,20400,0,8460.2999999999993,8437.7999999999993,0.99734051983972205]
["Выполнение функций органами местного самоуправления",1,6,20400,"500",8460.2999999999993,8437.7999999999993,0.99734051983972205]
["Руководитель контрольно-счетной палаты муниципального образования и его заместители",1,6,22500,0,697.9,691.1,0.9902564837369251]
["Выполнение функций органами местного самоуправления",1,6,22500,"500",697.9,691.1,0.9902564837369251]
["Целевые программы муниципальных образований",1,6,7950000,0,50,0,0]
["Долгосрочная целевая программа Черемховского районного муниципального образования \"Повышение эффективности бюджетных расходов Черемховского районного муниципального образования на 2012-2013 годы\"",1,6,7950200,0,50,0,0]
["Выполнение функций органами местного самоуправления",1,6,7950200,"500",50,0,0]
["Другие общегосударственные вопросы",1,13,0,0,36108.300000000003,33717.4,0.93378530697928175]
["Руководство и управление в сфере установленных функций органов государственной власти субъектов Российской Федерации  и органов местного самоуправления",1,13,20000,0,18849,18790.099999999999,0.99687516579128854]
["Центральный аппарат",1,13,20400,0,3289.3,3254.9,0.98954184780956433]
["Выполнение функций органами местного самоуправления",1,13,20400,"500",3289.3,3254.9,0.98954184780956433]
["Осуществление областных государственных полномочий по хранению, комплектованию, учету и использованию архивных документов, относящихся к государственной собственности Иркутской области",1,13,24000,0,1027,1024.2,0.99727361246348589]
["Выполнение функций органами местного самоуправления",1,13,24000,"500",1027,1024.2,0.99727361246348589]
["Осуществление областных государственных полномочий по определению персонального состава и обеспечению деятельности административных комиссий",1,13,24300,0,532.9,532.1,0.99849878025896044]
["Выполнение функций органами местного самоуправления",1,13,24300,"500",532.9,532.1,0.99849878025896044]
["Осуществление отдельных государственных полномочий в области производства и оборота этилового спирта, алкогольной и спиртосодержащей продукции",1,13,24400,0,376.6,375.8,0.99787573021773768]
["Выполнение функций органами местного самоуправления",1,13,24400,"500",376.6,375.8,0.99787573021773768]
["Осуществление отдельных областных государственных полномочий в области охраны труда",1,13,24500,0,532.9,525.4,0.98592606492775381]
["Выполнение функций органами местного самоуправления",1,13,24500,"500",532.9,525.4,0.98592606492775381]
["Обеспечение деятельности подведомственных учреждений",1,13,29900,0,13090.3,13077.7,0.99903745521493026]
["Выполнение функций казенными учреждениями",1,13,29900,"001",13090.3,13077.7,0.99903745521493026]
["Реализация государственных функций, связанных с общегосударственным управлением",1,13,920000,0,4306.7,3657.6,0.84928135231151458]
["Выполнение других обязательств государства",1,13,920300,0,4306.7,3657.6,0.84928135231151458]
["Выполнение функций органами местного самоуправления",1,13,920300,"500",4306.7,3657.6,0.84928135231151458]
["Учреждения по обеспечению хозяйственного обслуживания",1,13,930000,0,7889.4,7889.4,1]
["Обеспечение деятельности подведомственных учреждений",1,13,939900,0,7889.4,7889.4,1]
["Субсидии некоммерческим организациям",1,13,939900,"019",407.8,407.8,1]
["Субсидии бюджетным учреждениям на финансовое обеспечение муниципального задания на оказание муниципальных услуг (выполнение работ)",1,13,939900,"611",7481.2,7481.2,1]
["Субсидии бюджетным учреждениям на иные цели",1,13,939900,"612",0.4,0.4,1]
["Погашение кредиторской задолженности учреждений, находящихся в ведении органов местного самоуправления муниципальных образований Иркутской области, по единому социальному налогу, зачисляемому в федеральный бюджет, Фонд социального страхования Российской Федерации, Федеральный фонд обязательного медицинского страхования и территориальные фонды обязательного медицинского страхования",1,13,5900000,0,33.4,33.4,1]
["Выполнение функций казенными учреждениями",1,13,5900000,"001",32.799999999999997,32.799999999999997,1]
["Выполнение функций органами местного самоуправления",1,13,5900000,"500",0.6,0.6,1]
["Целевые программы муниципальных образований",1,13,7950000,0,5029.8,3346.9,0.66541413177462327]
["Выполнение функций органами местного самоуправления",1,13,7950000,"500",2795,1157.5999999999999,0.41416815742397134]
["Долгосрочная целевая программа Черемховского районного муниципального образования \"Повышение эффективности бюджетных расходов Черемховского районного муниципального образования на 2012-2013 годы\"",1,13,7950200,0,2234.8000000000002,2189.3000000000002,0.97964023626275287]
["Выполнение функций казенными учреждениями",1,13,7950200,"001",2234.8000000000002,2189.3000000000002,0.97964023626275287]
["НАЦИОНАЛЬНАЯ ЭКОНОМИКА",4,0,0,0,24637.3,24150,0.98022104694913814]
["Другие вопросы в области национальной экономики",4,12,0,0,24637.3,24150,0.98022104694913814]
["Мероприятия в области строительства, архитектуры и градостроительства",4,12,3380000,0,3711.1,3680.9,0.99186225108458415]
["Подготовка проектов генеральных планов муниципальных образований Черемховского районного муниципального образования",4,12,3380100,0,930.6,930.6,1]
["Выполнение функций органами местного самоуправления",4,12,3380100,"500",930.6,930.6,1]
["Подготовка проектов правил землепользования и застройки муниципальных образований Черемховского районного муниципального образования",4,12,3380200,0,2780.5,2750.3,0.98913864412875385]
["Выполнение функций органами местного самоуправления",4,12,3380200,"500",2780.5,2750.3,0.98913864412875385]
["Малое и среднее предпринимательство",4,12,3450000,0,240,224,0.93333333333333335]
["Субсидии на государственную поддержку малого и среднего предпринимательства, включая крестьянские (фермерские) хозяйства",4,12,3450100,0,240,224,0.93333333333333335]
["Субсидии юридическим лицам",4,12,3450100,"006",240,224,0.93333333333333335]
["Региональные целевые программы",4,12,5220000,0,19130.2,19130.2,1]
["Долгосрочная целевая программа «Поддержка и развитие малого и среднего предпринимательства в Иркутской области» на 2011-2012 годы",4,12,5222400,0,60,60,1]
["Субсидии юридическим лицам",4,12,5222400,"006",60,60,1]
["Долгосрочная целевая программа Иркутской области «Стимулирование жилищного строительства в Иркутской области на 2011-2015 годы»",4,12,5225700,0,19070.2,19070.2,1]
["Подпрограмма \"Территориальное планирование муниципальных образований Иркутской области на 2011-2012 годы\"",4,12,5225701,0,19070.2,19070.2,1]
["Выполнение функций органами местного самоуправления",4,12,5225701,"500",19070.2,19070.2,1]
["Целевые программы муниципальных образований",4,12,7950000,0,1556,1115,0.71658097686375322]
["Субсидии юридическим лицам",4,12,7950000,"006",16,16,1]
["Выполнение функций органами местного самоуправления",4,12,7950000,"500",1540,1099,0.71363636363636362]
["ЖИЛИЩНО-КОММУНАЛЬНОЕ ХОЗЯЙСТВО",5,0,0,0,11372.1,9434.7999999999993,0.82964448079070696]
["Жилищное хозяйство",5,1,0,0,644.70000000000005,644.70000000000005,1]
["Поддержка жилищного хозяйства",5,1,3500000,0,644.70000000000005,644.70000000000005,1]
["Капитальный ремонт государственного жилищного фонда субъектов Российской Федерации и муниципального жилищного фонда",5,1,3500200,0,273.89999999999998,273.89999999999998,1]
["Субсидии юридическим лицам",5,1,3500200,"006",174.9,174.9,1]
["Выполнение функций органами местного самоуправления",5,1,3500200,"500",99,99,1]
["Мероприятия в области жилищного хозяйства",5,1,3500300,0,370.8,370.8,1]
["Выполнение функций органами местного самоуправления",5,1,3500300,"500",370.8,370.8,1]
["Коммунальное хозяйство",5,2,0,0,4295.5,2388.9,0.55614014666511469]
["Резервные фонды",5,2,700000,0,464.6,464.6,1]
["Резервные фонды исполнительных органов государственной власти субъектов Российской Федерации",5,2,700400,0,164.6,164.6,1]
["Выполнение функций органами местного самоуправления",5,2,700400,"500",164.6,164.6,1]
["Резервные фонды местных администраций",5,2,700500,0,300,300,1]
["Выполнение функций органами местного самоуправления",5,2,700500,"500",300,300,1]
["Поддержка коммунального хозяйства",5,2,3510000,0,3806.8,1900.2,0.49915939897026373]
["Мероприятия в области коммунального хозяйства",5,2,3510500,0,3806.8,1900.2,0.49915939897026373]
["Выполнение функций органами местного самоуправления",5,2,3510500,"500",3806.8,1900.2,0.49915939897026373]
["Региональные целевые программы",5,2,5220000,0,24.1,24.1,1]
["Долгосрочная целевая программа «Энергосбережение и повышение энергетической эффективности на территории Иркутской области на 2011-2015 годы и на период до 2020 года»",5,2,5225400,0,24.1,24.1,1]
["Иные межбюджетные трансферты",5,2,5225400,"017",24.1,24.1,1]
["Другие вопросы в области жилищно-коммунального хозяйства",5,5,0,0,6431.9,6401.2,0.99522691584135325]
["Руководство и управление в сфере установленных функций органов государственной власти субъектов Российской Федерации  и органов местного самоуправления",5,5,20000,0,6431.3,6400.6,0.99522647054250313]
["Центральный аппарат",5,5,20400,0,4741.3999999999996,4712.2,0.9938414814189902]
["Выполнение функций органами местного самоуправления",5,5,20400,"500",4741.3999999999996,4712.2,0.9938414814189902]
["Осуществление областных государственных полномочий по предоставлению гражданам субсидий на оплату жилых помещений и коммунальных услуг",5,5,24700,0,729.9,728.3,0.99780791889299902]
["Содержание и обеспечение деятельности муниципальных служащих, осуществляющих областные государственные полномочия по предоставлению гражданам субсидий на оплату жилых помещений и коммунальных услуг",5,5,24701,0,729.9,728.3,0.99780791889299902]
["Выполнение функций органами местного самоуправления",5,5,24701,"500",729.9,728.3,0.99780791889299902]
["Обеспечение деятельности подведомственных учреждений",5,5,29900,0,960,960,1]
["Субсидии некоммерческим организациям",5,5,29900,"019",48.4,48.4,1]
["Субсидии бюджетным учреждениям на финансовое обеспечение муниципального задания на оказание муниципальных услуг (выполнение работ)",5,5,29900,"611",911.6,911.6,1]
["Субсидии бюджетным учреждениям на иные цели",5,5,29900,"612",0,0.1,0]
["Погашение кредиторской задолженности учреждений, находящихся в ведении органов местного самоуправления муниципальных образований Иркутской области, по единому социальному налогу, зачисляемому в федеральный бюджет, Фонд социального страхования Российской Федерации, Федеральный фонд обязательного медицинского страхования и территориальные фонды обязательного медицинского страхования",5,5,5900000,0,0.6,0.6,1]
["Выполнение функций органами местного самоуправления",5,5,5900000,"500",0.6,0.6,1]
["ОБРАЗОВАНИЕ",7,0,0,0,441655.9,432986,0.9803695591975562]
["Дошкольное образование",7,1,0,0,97602.6,93166.5,0.95454936651277722]
["Детские дошкольные учреждения",7,1,4200000,0,74226.7,72824.7,0.9811119179486627]
["Обеспечение деятельности подведомственных учреждений",7,1,4209900,0,74226.7,72824.7,0.9811119179486627]
["Выполнение функций казенными учреждениями",7,1,4209900,"001",74226.7,72824.7,0.9811119179486627]
["Региональные целевые программы",7,1,5220000,0,7979.3,4951.7,0.6205682202699484]
["Областная государственная целевая программа поддержки и развития учреждений дошкольного образования в Иркутской области на 2009-2014 годы",7,1,5223700,0,7857.3,4829.7,0.6146767973731434]
["Выполнение функций казенными учреждениями",7,1,5223700,"001",7857.3,4829.7,0.6146767973731434]
["Долгосрочная целевая программа «Энергосбережение и повышение энергетической эффективности на территории Иркутской области на 2011-2015 годы и на период до 2020 года»",7,1,5225400,0,122,122,1]
["Выполнение функций казенными учреждениями",7,1,5225400,"001",122,122,1]
["Выплата заработной платы с начислениями на нее педагогическим работникам муниципальных дошкольных образовательных учреждений и муниципальных учреждений дополнительного образования",7,1,5890000,0,5719,5719,1]
["Выполнение функций казенными учреждениями",7,1,5890000,"001",5719,5719,1]
["Погашение кредиторской задолженности учреждений, находящихся в ведении органов местного самоуправления муниципальных образований Иркутской области, по единому социальному налогу, зачисляемому в федеральный бюджет, Фонд социального страхования Российской Федерации, Федеральный фонд обязательного медицинского страхования и территориальные фонды обязательного медицинского страхования",7,1,5900000,0,591.29999999999995,591.29999999999995,1]
["Выполнение функций казенными учреждениями",7,1,5900000,"001",591.29999999999995,591.29999999999995,1]
["Целевые программы муниципальных образований",7,1,7950000,0,9086.2999999999993,9079.7999999999993,0.99928463731111672]
["Мероприятия в сфере образования",7,1,7950000,"022",987,987,1]
["Мероприятия по обеспечению пожарной безопасности",7,1,7950000,"450",1000,1000,1]
["Долгосрочная целевая программа Черемховского районного муниципального образования \"Повышение эффективности бюджетных расходов Черемховского районного муниципального образования на 2012-2013 годы\"",7,1,7950200,0,7099.3,7092.8,0.9990844167734847]
["Выполнение функций казенными учреждениями",7,1,7950200,"001",7099.3,7092.8,0.9990844167734847]
["Общее образование",7,2,0,0,331383.3,327266.8,0.98757782905777092]
["Руководство и управление в сфере установленных функций органов государственной власти субъектов Российской Федерации  и органов местного самоуправления",7,2,20000,0,236986.7,236355.7,0.99733740332263376]
["Обеспечение государственных гарантий прав граждан на получение общедоступного и бесплатного дошкольного, начального общего, основного общего, среднего (полного) общего образования, а также дополнительного образования в общеобразовательных учреждениях",7,2,25000,0,236986.7,236355.7,0.99733740332263376]
["Выполнение функций казенными учреждениями",7,2,25000,"001",236986.7,236355.7,0.99733740332263376]
["Школы - детские сады, школы начальные, неполные средние и средние",7,2,4210000,0,47870.1,45850.8,0.95781709250659608]
["Обеспечение деятельности подведомственных учреждений",7,2,4219900,0,47870.1,45850.8,0.95781709250659608]
["Выполнение функций казенными учреждениями",7,2,4219900,"001",47870.1,45850.8,0.95781709250659608]
["Учреждения по внешкольной работе с детьми",7,2,4230000,0,22019.200000000001,20930.2,0.95054316233105651]
["Обеспечение деятельности подведомственных учреждений",7,2,4239900,0,22019.200000000001,20930.2,0.95054316233105651]
["Выполнение функций казенными учреждениями",7,2,4239900,"001",22019.200000000001,20930.2,0.95054316233105651]
["Иные безвозмездные и безвозвратные перечисления",7,2,5200000,0,5162.3,4895.8999999999996,0.94839509520949949]
["Ежемесячное денежное вознаграждение за классное руководство",7,2,5200900,0,5162.3,4895.8999999999996,0.94839509520949949]
["Выполнение функций казенными учреждениями",7,2,5200900,"001",5162.3,4895.8999999999996,0.94839509520949949]
["Региональные целевые программы",7,2,5220000,0,1414.2,1328,0.93904681091783337]
["Долгосрочная целевая программа \"Социальное развитие села Иркутской области на 2011-2014 годы\"",7,2,5221800,0,789,789,1]
["Бюджетные инвестиции",7,2,5221800,"003",789,789,1]
["Долгосрочная целевая программа «Модернизация объектов коммунальной инфраструктуры Иркутской области на 2011-2013 годы»",7,2,5222000,0,300,213.8,0.71266666666666667]
["Подпрограмма «Подготовка объектов коммунальной инфраструктуры Иркутской области к отопительному сезону в 2011-2013 годах»",7,2,5222001,0,300,213.8,0.71266666666666667]
["Выполнение функций казенными учреждениями",7,2,5222001,"001",300,213.8,0.71266666666666667]
["Долгосрочная целевая программа «Энергосбережение и повышение энергетической эффективности на территории Иркутской области на 2011-2015 годы и на период до 2020 года»",7,2,5225400,0,325.2,325.2,1]
["Выполнение функций казенными учреждениями",7,2,5225400,"001",325.2,325.2,1]
["Выплата заработной платы с начислениями на нее педагогическим работникам муниципальных дошкольных образовательных учреждений и муниципальных учреждений дополнительного образования",7,2,5890000,0,2276,2276,1]
["Выполнение функций казенными учреждениями",7,2,5890000,"001",2276,2276,1]
["Погашение кредиторской задолженности учреждений, находящихся в ведении органов местного самоуправления муниципальных образований Иркутской области, по единому социальному налогу, зачисляемому в федеральный бюджет, Фонд социального страхования Российской Федерации, Федеральный фонд обязательного медицинского страхования и территориальные фонды обязательного медицинского страхования",7,2,5900000,0,877.4,877.4,1]
["Выполнение функций казенными учреждениями",7,2,5900000,"001",877.4,877.4,1]
["Целевые программы муниципальных образований",7,2,7950000,0,14777.4,14752.8,0.99833529578951641]
["Мероприятия в сфере образования",7,2,7950000,"022",1881.6,1875.1,0.99654549319727892]
["Мероприятия по обеспечению пожарной безопасности",7,2,7950000,"450",700,683,0.97571428571428576]
["Мероприятия по повышению энергетической эффективности",7,2,7950000,"451",600,598.9,0.99816666666666665]
["Долгосрочная целевая программа Черемховского районного муниципального образования \"Повышение эффективности бюджетных расходов Черемховского районного муниципального образования на 2012-2013 годы\"",7,2,7950200,0,11595.8,11595.9,1.00000862381207]
["Выполнение функций казенными учреждениями",7,2,7950200,"001",11595.8,11595.9,1.00000862381207]
["Молодежная политика и оздоровление детей",7,7,0,0,2615,2614.9,0.99996175908221796]
["Организационно-воспитательная работа с молодежью",7,7,4310000,0,106,106,1]
["Проведение мероприятий для детей и молодежи",7,7,4310100,0,106,106,1]
["Выполнение функций органами местного самоуправления",7,7,4310100,"500",106,106,1]
["Мероприятия по проведению оздоровительной кампании детей",7,7,4320000,0,24.1,24.1,1]
["Оплата стоимости набора продуктов питания для детей в организованных органами местного самоуправления оздоровительных лагерях с дневным пребыванием детей за счет средств областного бюджета",7,7,4320300,0,24.1,24.1,1]
["Оплата стоимости набора продуктов питания для детей в организованных органами местного самоуправления оздоровительных лагерях с дневным пребыванием детей за счет средств местного бюджета ",7,7,4320302,0,24.1,24.1,1]
["Выполнение функций казенными учреждениями",7,7,4320302,"001",24.1,24.1,1]
["Региональные целевые программы",7,7,5220000,0,2384.9,2384.8000000000002,0.99995806952073463]
["Долгосрочная целевая программа Иркутской области \"Организация и обеспечение отдыха и оздоровления детей в Иркутской области на 2012-2014гг.\"",7,7,5226200,0,2384.9,2384.8000000000002,0.99995806952073463]
["Выполнение функций казенными учреждениями",7,7,5226200,"001",2384.9,2384.8000000000002,0.99995806952073463]
["Целевые программы муниципальных образований",7,7,7950000,0,100,100,1]
["Выполнение функций органами местного самоуправления",7,7,7950000,"500",100,100,1]
["Другие вопросы в области образования",7,9,0,0,10055,9937.7999999999993,0.98834410740924905]
["Руководство и управление в сфере установленных функций органов государственной власти субъектов Российской Федерации  и органов местного самоуправления",7,9,20000,0,3723.5,3606.4,0.96855109440042975]
["Центральный аппарат",7,9,20400,0,3723.5,3606.4,0.96855109440042975]
["Выполнение функций органами местного самоуправления",7,9,20400,"500",3723.5,3606.4,0.96855109440042975]
["Учебно-методические кабинеты, централизованные бухгалтерии, группы хозяйственного обслуживания, учебные фильмотеки, межшкольные учебно-производственные комбинаты, логопедические пункты",7,9,4520000,0,6315.7,6315.6,0.99998416644235799]
["Обеспечение деятельности подведомственных учреждений",7,9,4529900,0,6315.7,6315.6,0.99998416644235799]
["Субсидии некоммерческим организациям",7,9,4529900,"019",193.6,193.6,1]
["Субсидии бюджетным учреждениям на финансовое обеспечение муниципального задания на оказание муниципальных услуг (выполнение работ)",7,9,4529900,"611",6011.8,6011.7,0.99998336604677462]
["Субсидии бюджетным учреждениям на иные цели",7,9,4529900,"612",110.3,110.3,1]
["Погашение кредиторской задолженности учреждений, находящихся в ведении органов местного самоуправления муниципальных образований Иркутской области, по единому социальному налогу, зачисляемому в федеральный бюджет, Фонд социального страхования Российской Федерации, Федеральный фонд обязательного медицинского страхования и территориальные фонды обязательного медицинского страхования",7,9,5900000,0,15.8,15.8,1]
["Выполнение функций органами местного самоуправления",7,9,5900000,"500",15.8,15.8,1]
["КУЛЬТУРА И КИНЕМАТОГРАФИЯ",8,0,0,0,20585.400000000001,19401.400000000001,0.94248350772877865]
["Культура",8,1,0,0,19552.2,18370,0.93953621587340552]
["Учреждения культуры и мероприятия в сфере культуры и кинематографии",8,1,4400000,0,6637.2,5973,0.89992768034713433]
["Комплектование книжных фондов библиотек муниципальных образований и государственных библиотек городов Москвы и Санкт-Петербурга",8,1,4400200,0,431,431,1]
["Комплектование книжных фондов библиотек муниципальных образований и государственных библиотек городов Москвы и Санкт-Петербурга за счет средств федерального бюджета",8,1,4400201,0,281,281,1]
["Выполнение функций казенными учреждениями",8,1,4400201,"001",281,281,1]
["Комплектование книжных фондов библиотек муниципальных образований и государственных библиотек городов Москвы и Санкт-Петербурга за счет областного бюджета",8,1,4400202,0,150,150,1]
["Выполнение функций казенными учреждениями",8,1,4400202,"001",150,150,1]
["Обеспечение деятельности подведомственных учреждений",8,1,4409900,0,6206.2,5542,0.89297798975218334]
["Выполнение функций казенными учреждениями",8,1,4409900,"001",6206.2,5542,0.89297798975218334]
["Музеи и постоянные выставки",8,1,4410000,0,1389.6,1370.8,0.9864709268854347]
["Обеспечение деятельности подведомственных учреждений",8,1,4419900,0,1389.6,1370.8,0.9864709268854347]
["Выполнение функций казенными учреждениями",8,1,4419900,"001",1389.6,1370.8,0.9864709268854347]
["Библиотеки",8,1,4420000,0,8022.9,7862.9,0.98005708658963719]
["Обеспечение деятельности подведомственных учреждений",8,1,4429900,0,8022.9,7862.9,0.98005708658963719]
["Выполнение функций казенными учреждениями",8,1,4429900,"001",8022.9,7862.9,0.98005708658963719]
["Региональные целевые программы",8,1,5220000,0,1000,1000,1]
["Долгосрочная целевая программа Иркутской области «100 модельных домов культуры Приангарью» на 2011-2013 годы",8,1,5225500,0,1000,1000,1]
["Выполнение функций казенными учреждениями",8,1,5225500,"001",1000,1000,1]
["Погашение кредиторской задолженности учреждений, находящихся в ведении органов местного самоуправления муниципальных образований Иркутской области, по единому социальному налогу, зачисляемому в федеральный бюджет, Фонд социального страхования Российской Федерации, Федеральный фонд обязательного медицинского страхования и территориальные фонды обязательного медицинского страхования",8,1,5900000,0,114.4,114.4,1]
["Выполнение функций казенными учреждениями",8,1,5900000,"001",114.4,114.4,1]
["Целевые программы муниципальных образований",8,1,7950000,0,2388.1,2048.9,0.85796239688455267]
["Мероприятия по поддержке и развитию культуры, искусства, кинематографии",8,1,7950000,"023",998.3,957.7,0.95933086246619259]
["Мероприятия по повышению энергетической эффективности",8,1,7950000,"451",100,69.900000000000006,0.69900000000000007]
["Долгосрочная целевая программа Черемховского районного муниципального образования \"Повышение эффективности бюджетных расходов Черемховского районного муниципального образования на 2012-2013 годы\"",8,1,7950200,0,1289.8,1021.4,0.79190572181733598]
["Выполнение функций казенными учреждениями",8,1,7950200,"001",1289.8,1021.4,0.79190572181733598]
["Другие вопросы в области культуры, кинематографии",8,4,0,0,1033.2,1031.4000000000001,0.99825783972125437]
["Руководство и управление в сфере установленных функций органов государственной власти субъектов Российской Федерации  и органов местного самоуправления",8,4,20000,0,1033.2,1031.4000000000001,0.99825783972125437]
["Центральный аппарат",8,4,20400,0,1033.2,1031.4000000000001,0.99825783972125437]
["Выполнение функций органами местного самоуправления",8,4,20400,"500",1033.2,1031.4000000000001,0.99825783972125437]
["ЗДРАВООХРАНЕНИЕ",9,0,0,0,69140.3,62706.2,0.90694139308044652]
["Стационарная медицинская помощь",9,1,0,0,38796.199999999997,33548.300000000003,0.86473159742449013]
["Руководство и управление в сфере установленных функций органов государственной власти субъектов Российской Федерации  и органов местного самоуправления",9,1,20000,0,17117.599999999999,17117.7,1.0000058419404592]
["Осуществление отдельных областных государственных полномочий в области охраны здоровья граждан",9,1,25200,0,17117.599999999999,17117.7,1.0000058419404592]
["Выполнение функций казенными учреждениями",9,1,25200,"001",2772.9,2772.9,1]
["Субсидии бюджетным учреждениям на финансовое обеспечение муниципального задания на оказание муниципальных услуг (выполнение работ)",9,1,25200,"611",14344.7,14344.7,1]
["Реализация региональных программ модернизации здравоохранения субъектов Российской Федерации и программ модернизации федеральных государственных учреждений",9,1,960000,0,7422.3,2431.1,0.32753998086846392]
["Реализация программ модернизации здравоохранения субъектов Российской Федерации в части укрепления материально-технической базы медицинских учреждений",9,1,960100,0,6663.3,1793.5,0.26916092626776522]
["Реализация программ модернизации здравоохранения субъектов Российской Федерации в части укрепления материально-технической базы медицинских учреждений за счет средств бюджета территориального фонда обязательного медицинского страхования граждан Иркутской области",9,1,960101,0,6663.3,1793.5,0.26916092626776522]
["Субсидии бюджетным учреждениям на иные цели",9,1,960101,"612",6663.3,1793.5,0.26916092626776522]
["Реализация программ модернизации здравоохранения субъектов Российской Федерации в части внедрения современных информационных систем в здравоохранение в целях перехода на полисы обязательного медицинского страхования единого образца",9,1,960200,0,759,637.6,0.84005270092226614]
["Реализация программ модернизации здравоохранения субъектов Российской Федерации в части внедрения современных информационных систем в здравоохранении в целях перехода на полисы обязательного медицинского страхования единого образца за счет средств бюджета территориального фонда обязательного медицинского страхования граждан  Иркутской области",9,1,960201,0,759,637.6,0.84005270092226614]
["Субсидии бюджетным учреждениям на иные цели",9,1,960201,"612",759,637.6,0.84005270092226614]
["Больницы, клиники, госпитали, медико-санитарные части",9,1,4700000,0,11295.4,11038.6,0.9772650813605539]
["Субсидии бюджетным учреждениям на финансовое обеспечение муниципального задания на оказание муниципальных услуг (выполнение работ)",9,1,4700000,"611",5916.7,5916.7,1]
["Субсидии бюджетным учреждениям на иные цели",9,1,4700000,"612",3543,3286.2,0.92751905165114301]
["Обеспечение деятельности подведомственных учреждений",9,1,4709900,0,1835.7,1835.7,1]
["Выполнение функций казенными учреждениями",9,1,4709900,"001",1835.7,1835.7,1]
["Погашение кредиторской задолженности учреждений, находящихся в ведении органов местного самоуправления муниципальных образований Иркутской области, по единому социальному налогу, зачисляемому в федеральный бюджет, Фонд социального страхования Российской Федерации, Федеральный фонд обязательного медицинского страхования и территориальные фонды обязательного медицинского страхования",9,1,5900000,0,52,52,1]
["Субсидии бюджетным учреждениям на иные цели",9,1,5900000,"612",52,52,1]
["Целевые программы муниципальных образований",9,1,7950000,0,2908.9,2908.9,1]
["Долгосрочная целевая программа Черемховского районного муниципального образования \"Повышение эффективности бюджетных расходов Черемховского районного муниципального образования на 2012-2013 годы\"",9,1,7950200,0,2658.9,2658.9,1]
["Субсидии бюджетным учреждениям на финансовое обеспечение муниципального задания на оказание муниципальных услуг (выполнение работ)",9,1,7950200,"611",2658.9,2658.9,1]
["Долгосрочная целевая программа \"Неотложные меры по борьбе с туберкулезом\" на 2012-2014 годы",9,1,7950300,0,50,50,1]
["Субсидии бюджетным учреждениям на финансовое обеспечение муниципального задания на оказание муниципальных услуг (выполнение работ)",9,1,7950300,"611",50,50,1]
["Долгосрочная целевая программа \"Сахарный диабет\" на 2012-2014 годы",9,1,7950400,0,150,150,1]
["Субсидии бюджетным учреждениям на финансовое обеспечение муниципального задания на оказание муниципальных услуг (выполнение работ)",9,1,7950400,"611",150,150,1]
["Долгосрочная целевая программа \"Анти-вич/спид\" на 2012-2014 годы",9,1,7950500,0,50,50,1]
["Субсидии бюджетным учреждениям на финансовое обеспечение муниципального задания на оказание муниципальных услуг (выполнение работ)",9,1,7950500,"611",50,50,1]
["Амбулаторная помощь",9,2,0,0,15308,14394.8,0.94034491769009665]
["Руководство и управление в сфере установленных функций органов государственной власти субъектов Российской Федерации  и органов местного самоуправления",9,2,20000,0,3068.7,3068.7,1]
["Осуществление отдельных областных государственных полномочий в области охраны здоровья граждан",9,2,25200,0,3068.7,3068.7,1]
["Выполнение функций казенными учреждениями",9,2,25200,"001",510.1,510.1,1]
["Субсидии бюджетным учреждениям на финансовое обеспечение муниципального задания на оказание муниципальных услуг (выполнение работ)",9,2,25200,"611",2558.6,2558.6,1]
["Реализация региональных программ модернизации здравоохранения субъектов Российской Федерации и программ модернизации федеральных государственных учреждений",9,2,960000,0,3141.5,3141.5,1]
["Реализация программ модернизации здравоохранения субъектов Российской Федерации в части укрепления материально-технической базы медицинских учреждений",9,2,960100,0,3141.5,3141.5,1]
["Реализация программ модернизации здравоохранения субъектов Российской Федерации в части укрепления материально-технической базы медицинских учреждений за счет средств бюджета территориального фонда обязательного медицинского страхования граждан Иркутской области",9,2,960101,0,3141.5,3141.5,1]
["Субсидии бюджетным учреждениям на иные цели",9,2,960101,"612",3141.5,3141.5,1]
["Поликлиники, амбулатории, диагностические центры",9,2,4710000,0,2378.6999999999998,2147.4,0.90276201286416957]
["Субсидии бюджетным учреждениям на финансовое обеспечение муниципального задания на оказание муниципальных услуг (выполнение работ)",9,2,4710000,"611",1342.3,1342.3,1]
["Субсидии бюджетным учреждениям на иные цели",9,2,4710000,"612",809.4,578.1,0.71423276501111943]
["Обеспечение деятельности подведомственных учреждений",9,2,4719900,0,227,227,1]
["Выполнение функций казенными учреждениями",9,2,4719900,"001",227,227,1]
["Фельдшерско-акушерские пункты",9,2,4780000,0,2506,2505.5,0.99980047885075818]
["Субсидии бюджетным учреждениям на финансовое обеспечение муниципального задания на оказание муниципальных услуг (выполнение работ)",9,2,4780000,"611",1906.9,1906.9,1]
["Субсидии бюджетным учреждениям на иные цели",9,2,4780000,"612",26.1,25.6,0.98084291187739459]
["Обеспечение деятельности подведомственных учреждений",9,2,4789900,0,573,573,1]
["Выполнение функций казенными учреждениями",9,2,4789900,"001",573,573,1]
["Иные безвозмездные и безвозвратные перечисления",9,2,5200000,0,3215,2533.6,0.78805598755832029]
["Денежные выплаты медицинскому персоналу фельдшерско-акушерских пунктов, врачам, фельдшерам и медицинским сестрам скорой медицинской помощи",9,2,5201800,0,3215,2533.6,0.78805598755832029]
["Субсидии бюджетным учреждениям на финансовое обеспечение муниципального задания на оказание муниципальных услуг (выполнение работ)",9,2,5201800,"611",3215,2533.6,0.78805598755832029]
["Целевые программы муниципальных образований",9,2,7950000,0,998.1,998.1,1]
["Мероприятия в области здравоохранения",9,2,7950000,"079",50,50,1]
["Долгосрочная целевая программа Черемховского районного муниципального образования \"Повышение эффективности бюджетных расходов Черемховского районного муниципального образования на 2012-2013 годы\"",9,2,7950200,0,948.1,948.1,1]
["Субсидии бюджетным учреждениям на финансовое обеспечение муниципального задания на оказание муниципальных услуг (выполнение работ)",9,2,7950200,"611",948.1,948.1,1]
["Медицинская помощь в дневных стационарах всех типов",9,3,0,0,663.4,663.4,1]
["Больницы, клиники, госпитали, медико-санитарные части",9,3,4700000,0,186.2,186.2,1]
["Субсидии бюджетным учреждениям на финансовое обеспечение муниципального задания на оказание муниципальных услуг (выполнение работ)",9,3,4700000,"611",185.6,185.6,1]
["Обеспечение деятельности подведомственных учреждений",9,3,4709900,0,0.6,0.6,1]
["Выполнение функций казенными учреждениями",9,3,4709900,"001",0.6,0.6,1]
["Целевые программы муниципальных образований",9,3,7950000,0,477.2,477.2,1]
["Долгосрочная целевая программа Черемховского районного муниципального образования \"Повышение эффективности бюджетных расходов Черемховского районного муниципального образования на 2012-2013 годы\"",9,3,7950200,0,477.2,477.2,1]
["Субсидии бюджетным учреждениям на финансовое обеспечение муниципального задания на оказание муниципальных услуг (выполнение работ)",9,3,7950200,"611",477.2,477.2,1]
["Скорая медицинская помощь",9,4,0,0,13764.2,13491.1,0.98015867249821997]
["Руководство и управление в сфере установленных функций органов государственной власти субъектов Российской Федерации  и органов местного самоуправления",9,4,20000,0,9986.7000000000007,9986.7000000000007,1]
["Осуществление отдельных областных государственных полномочий в области охраны здоровья граждан",9,4,25200,0,9986.7000000000007,9986.7000000000007,1]
["Выполнение функций казенными учреждениями",9,4,25200,"001",1628.2,1628.2,1]
["Субсидии бюджетным учреждениям на финансовое обеспечение муниципального задания на оказание муниципальных услуг (выполнение работ)",9,4,25200,"611",8358.5,8358.5,1]
["Больницы, клиники, госпитали, медико-санитарные части",9,4,4700000,0,1741.5,1741.5,1]
["Субсидии бюджетным учреждениям на финансовое обеспечение муниципального задания на оказание муниципальных услуг (выполнение работ)",9,4,4700000,"611",1409.5,1409.5,1]
["Обеспечение деятельности подведомственных учреждений",9,4,4709900,0,332,332,1]
["Выполнение функций казенными учреждениями",9,4,4709900,"001",332,332,1]
["Иные безвозмездные и безвозвратные перечисления",9,4,5200000,0,1718,1461.9,0.85093131548311995]
["Денежные выплаты медицинскому персоналу фельдшерско-акушерских пунктов, врачам, фельдшерам и медицинским сестрам скорой медицинской помощи",9,4,5201800,0,1718,1461.9,0.85093131548311995]
["Субсидии бюджетным учреждениям на финансовое обеспечение муниципального задания на оказание муниципальных услуг (выполнение работ)",9,4,5201800,"611",1718,1461.9,0.85093131548311995]
["Целевые программы муниципальных образований",9,4,7950000,0,318,301,0.94654088050314467]
["Долгосрочная целевая программа Черемховского районного муниципального образования \"Повышение эффективности бюджетных расходов Черемховского районного муниципального образования на 2012-2013 годы\"",9,4,7950200,0,318,301,0.94654088050314467]
["Субсидии бюджетным учреждениям на финансовое обеспечение муниципального задания на оказание муниципальных услуг (выполнение работ)",9,4,7950200,"611",318,301,0.94654088050314467]
["Другие вопросы в области здравоохранения",9,9,0,0,608.5,608.5,1]
["Руководство и управление в сфере установленных функций органов государственной власти субъектов Российской Федерации  и органов местного самоуправления",9,9,20000,0,8.5,8.5,1]
["Центральный аппарат",9,9,20400,0,8.5,8.5,1]
["Выполнение функций органами местного самоуправления",9,9,20400,"500",8.5,8.5,1]
["Целевые программы муниципальных образований",9,9,7950000,0,600,600,1]
["Долгосрочная целевая программа \"Привлечение врачебных кадров в здравоохранение района\" на 2012-2014 годы",9,9,7950900,0,600,600,1]
["Субсидии бюджетным учреждениям на иные цели",9,9,7950900,"612",600,600,1]
["СОЦИАЛЬНАЯ ПОЛИТИКА",10,0,0,0,20941.599999999999,19118.7,0.91295316499216883]
["Пенсионное обеспечение",10,1,0,0,2880.9,2880.8,0.99996528862508249]
["Доплаты к пенсиям, дополнительное пенсионное обеспечение ",10,1,4910000,0,2880.9,2880.8,0.99996528862508249]
["Доплаты к пенсиям государственных служащих субъектов Российской Федерации и муниципальных служащих ",10,1,4910100,0,2880.9,2880.8,0.99996528862508249]
["Социальные выплаты",10,1,4910100,"005",2880.9,2880.8,0.99996528862508249]
["Социальное обеспечение населения",10,3,0,0,11858.5,10602.6,0.89409284479487294]
["Руководство и управление в сфере установленных функций органов государственной власти субъектов Российской Федерации  и органов местного самоуправления",10,3,20000,0,10544.4,9334.7000000000007,0.88527559652516985]
["Осуществление отдельных областных государственных полномочий по предоставлению мер социальной поддержки многодетным и малоимущим семьям",10,3,24600,0,4145.3,3170.4,0.76481798663546663]
["Социальные выплаты",10,3,24600,"005",4145.3,3170.4,0.76481798663546663]
["Осуществление областных государственных полномочий по предоставлению гражданам субсидий на оплату жилых помещений и коммунальных услуг",10,3,24700,0,6399.1,6164.2,0.96329171289712612]
["Предоставление гражданам субсидий на оплату жилых помещений и коммунальных услуг",10,3,24702,0,6399.1,6164.2,0.96329171289712612]
["Социальные выплаты",10,3,24702,"005",6399.1,6164.2,0.96329171289712612]
["Федеральные целевые программы",10,3,1000000,0,166.8,125.1,0.74999999999999989]
["Федеральная целевая программа \"Жилище\" на 2011 - 2015 годы",10,3,1008800,0,166.8,125.1,0.74999999999999989]
["Подпрограмма \"Обеспечение жильем молодых семей\"",10,3,1008820,0,166.8,125.1,0.74999999999999989]
["Социальные выплаты",10,3,1008820,"005",166.8,125.1,0.74999999999999989]
["Реализация государственных функций в области социальной политики",10,3,5140000,0,832.1,832.1,1]
["Мероприятия в области социальной политики",10,3,5140100,0,832.1,832.1,1]
["Социальные выплаты",10,3,5140100,"005",832.1,832.1,1]
["Региональные целевые программы",10,3,5220000,0,190.7,186.2,0.9764027267960147]
["Областная государственная социальная программа \"Молодым семьям - доступное жилье\" на 2005-2019 годы",10,3,5222200,0,190.7,186.2,0.9764027267960147]
["Социальные выплаты",10,3,5222200,"005",190.7,186.2,0.9764027267960147]
["Целевые программы муниципальных образований",10,3,7950000,0,124.5,124.5,1]
["Выполнение функций органами местного самоуправления",10,3,7950000,"500",124.5,124.5,1]
["Охрана семьи и детства",10,4,0,0,5082.7,4911.2,0.96625809117201489]
["Руководство и управление в сфере установленных функций органов государственной власти субъектов Российской Федерации  и органов местного самоуправления",10,4,20000,0,3012.4,2840.9,0.94306864958172887]
["Осуществление областных государственных полномочий по обеспечению детей-сирот и детей, оставшихся без попечения родителей, лиц из числа детей-сирот и детей, оставшихся без попечения родителей, жилыми помещениями по договорам социального найма в Иркутской области",10,4,24800,0,3012.4,2840.9,0.94306864958172887]
["Содержание и обеспечение деятельности муниципальных служащих, осуществляющих областные государственные полномочия по обеспечению детей-сирот и детей, оставшихся без попечения родителей, лиц из числа детей-сирот и детей, оставшихся без попечения родителей, жилыми помещениями по договорам социального найма в Иркутской области",10,4,24801,0,22.7,22.7,1]
["Выполнение функций органами местного самоуправления",10,4,24801,"500",22.7,22.7,1]
["Обеспечение детей-сирот и детей, оставшихся без попечения родителей, лиц из числа детей-сирот и детей, оставшихся без попечения родителей, жилыми помещениями по договорам социального найма в Иркутской области",10,4,24802,0,2989.7,2818.2,0.94263638492156399]
["Бюджетные инвестиции",10,4,24802,"003",2989.7,2818.2,0.94263638492156399]
["Социальная помощь",10,4,5050000,0,2070.3000000000002,2070.3000000000002,1]
["Федеральный закон от 21 декабря 1996 года N 159-ФЗ \"О дополнительных гарантиях по социальной поддержке детей-сирот и детей, оставшихся без попечения родителей\"",10,4,5052100,0,2070.3000000000002,2070.3000000000002,1]
["Обеспечение жилыми помещениями детей-сирот, детей, оставшихся без попечения родителей, а также детей, находящихся под опекой (попечительством), не имеющих закрепленного жилого помещения",10,4,5052102,0,2070.3000000000002,2070.3000000000002,1]
["Бюджетные инвестиции",10,4,5052102,"003",2070.3000000000002,2070.3000000000002,1]
["Другие вопросы в области социальной политики",10,6,0,0,1119.5,724.1,0.64680661009379192]
["Руководство и управление в сфере установленных функций органов государственной власти субъектов Российской Федерации  и органов местного самоуправления",10,6,20000,0,1019.5,628.1,0.61608631682197157]
["Осуществление областных государственных полномочий по определению персонального состава и обеспечению деятельности районных (городских), районных в городах комиссий по делам несовершеннолетних и защите их прав",10,6,24100,0,1019.5,628.1,0.61608631682197157]
["Выполнение функций органами местного самоуправления",10,6,24100,"500",1019.5,628.1,0.61608631682197157]
["Целевые программы муниципальных образований",10,6,7950000,0,100,96,0.96]
["Выполнение функций органами местного самоуправления",10,6,7950000,"500",100,96,0.96]
["ФИЗИЧЕСКАЯ КУЛЬТУРА И СПОРТ",11,0,0,0,785,785,1]
["Физическая культура",11,1,0,0,785,785,1]
["Физкультурно-оздоровительная работа и спортивные мероприятия",11,1,5120000,0,485.9,485.9,1]
["Мероприятия в области спорта, физической культуры и туризма",11,1,5129700,0,485.9,485.9,1]
["Выполнение функций органами местного самоуправления",11,1,5129700,"500",485.9,485.9,1]
["Целевые программы муниципальных образований",11,1,7950000,0,299.10000000000002,299.10000000000002,1]
["Выполнение функций органами местного самоуправления",11,1,7950000,"500",299.10000000000002,299.10000000000002,1]
["СРЕДСТВА МАССОВОЙ ИНФОРМАЦИИ",12,0,0,0,2605,2605,1]
["Периодическая печать и издательства",12,2,0,0,2605,2605,1]
["Периодические издания, учрежденные органами законодательной и исполнительной власти",12,2,4570000,0,2605,2605,1]
["Государственная поддержка в сфере культуры, кинематографии и средств массовой информации",12,2,4578500,0,2605,2605,1]
["Субсидии юридическим лицам",12,2,4578500,"006",2605,2605,1]
["МЕЖБЮДЖЕТНЫЕ ТРАНСФЕРТЫ ОБЩЕГО ХАРАКТЕРА БЮДЖЕТАМ СУБЪЕКТОВ РОССИЙСКОЙ ФЕДЕРАЦИИ И МУНИЦИПАЛЬНЫХ ОБРАЗОВАНИЙ ",14,0,0,0,10235,7172.6,0.70079140205178314]
["Дотации на выравнивание бюджетной обеспеченности субъектов Российской Федерации и муниципальных образований",14,1,0,0,3500,529,0.15114285714285713]
["Выравнивание бюджетной обеспечености",14,1,5160000,0,3500,529,0.15114285714285713]
["Выравнивание бюджетной обеспеченности",14,1,5160100,0,3500,529,0.15114285714285713]
["Выравнивание бюджетной обеспеченности поселений из районного фонда финансовой поддержки",14,1,5160130,0,3500,529,0.15114285714285713]
["Фонд финансовой поддержки",14,1,5160130,"008",3500,529,0.15114285714285713]
["Прочие межбюджетные трансферты общего характера бюджетам субъектов Российской Федерации и муниципальных образований ",14,3,0,0,6735,6643.6,0.9864291017074982]
["Межбюджетные трансферты",14,3,5210000,0,92,0.6,6.5217391304347823E-3]
["Межбюджетные трансферты бюджетам муниципальных районов из бюджетов поселений и межбюджетные трансферты бюджетам поселений из бюджетов муниципальных районов на осуществление части полномочий по решению вопросов местного значения в соответствии с заключенными соглашениями",14,3,5210600,0,92,0.6,6.5217391304347823E-3]
["Иные межбюджетные трансферты",14,3,5210600,"017",92,0.6,6.5217391304347823E-3]
["Целевые программы муниципальных образований",14,3,7950000,0,6643,6643,1]
["Долгосрочная целевая программа Черемховского районного муниципального образования \"Повышение эффективности бюджетных расходов Черемховского районного муниципального образования на 2012-2013 годы\"",14,3,7950200,0,6643,6643,1]
["Иные межбюджетные трансферты",14,3,7950200,"017",6643,6643,1]
["ИТОГО",{"$nulls":4},679785.7,653450.19999999995,0.9612591144532755]
[]
["Начальник финансового управления",{"$nulls":5},"Ю.Н. Гайдук"]

{"sheet":"прил5","index":4,"n_rows":505,"n_cols":9,"rows_kept":505,"cut":false,"hidden":false,"merged":[[504,7,504,8],[5,0,5,8],[8,7,9,7],[8,8,9,8],[502,0,502,5],[8,0,9,0],[8,1,8,5],[8,6,9,6]]}
[]
[]
[]
[]
[]
["Отчет об исполнении бюджета Черемховского районного муниципального образования по ведомственной структуре расходов бюджета за 2012 год"]
[]
[]
["Наименование показателя","Код",{"$nulls":4},"План на год, тыс. руб.","Исполнено, тыс. руб.","% исполнения"]
[null,"ГРБС","раздела","подраздела","целевой статьи","вида расходов"]
[1,2,3,4,5,6,8,9,10]
["МБУЗ Михайловская ЦРБ",903,0,0,0,0,7929.5,7929.5,1]
["ЗДРАВООХРАНЕНИЕ",903,9,0,0,0,7929.5,7929.5,1]
["Стационарная медицинская помощь",903,9,1,0,0,4608.7,4608.6000000000004,0.99997830190726245]
["Руководство и управление в сфере установленных функций органов государственной власти субъектов Российской Федерации  и органов местного самоуправления",903,9,1,20000,0,2773,2772.9,0.99996393797331418]
["Осуществление отдельных областных государственных полномочий в области охраны здоровья граждан",903,9,1,25200,0,2773,2772.9,0.99996393797331418]
["Выполнение функций казенными учреждениями",903,9,1,25200,"001",2773,2772.9,0.99996393797331418]
["Больницы, клиники, госпитали, медико-санитарные части",903,9,1,4700000,0,1835.7,1835.7,1]
["Обеспечение деятельности подведомственных учреждений",903,9,1,4709900,0,1835.7,1835.7,1]
["Выполнение функций казенными учреждениями",903,9,1,4709900,"001",1835.7,1835.7,1]
["Амбулаторная помощь",903,9,2,0,0,1360,1360,1]
["Руководство и управление в сфере установленных функций органов государственной власти субъектов Российской Федерации  и органов местного самоуправления",903,9,2,20000,0,510,510,1]
["Осуществление отдельных областных государственных полномочий в области охраны здоровья граждан",903,9,2,25200,0,510,510,1]
["Выполнение функций казенными учреждениями",903,9,2,25200,"001",510,510,1]
["Поликлиники, амбулатории, диагностические центры",903,9,2,4710000,0,227,227,1]
["Обеспечение деятельности подведомственных учреждений",903,9,2,4719900,0,227,227,1]
["Выполнение функций казенными учреждениями",903,9,2,4719900,"001",227,227,1]
["Фельдшерско-акушерские пункты",903,9,2,4780000,0,573,573,1]
["Обеспечение деятельности подведомственных учреждений",903,9,2,4789900,0,573,573,1]
["Выполнение функций казенными учреждениями",903,9,2,4789900,"001",573,573,1]
["Целевые программы муниципальных образований",903,9,2,7950000,0,50,50,1]
["Мероприятия в области здравоохранения",903,9,2,7950000,"079",50,50,1]
["Медицинская помощь в дневных стационарах всех типов",903,9,3,0,0,0.6,0.6,1]
["Больницы, клиники, госпитали, медико-санитарные части",903,9,3,4700000,0,0.6,0.6,1]
["Обеспечение деятельности подведомственных учреждений",903,9,3,4709900,0,0.6,0.6,1]
["Выполнение функций казенными учреждениями",903,9,3,4709900,"001",0.6,0.6,1]
["Скорая медицинская помощь",903,9,4,0,0,1960.2,1960.2,1]
["Руководство и управление в сфере установленных функций органов государственной власти субъектов Российской Федерации  и органов местного самоуправления",903,9,4,20000,0,1628.2,1628.2,1]
["Осуществление отдельных областных государственных полномочий в области охраны здоровья граждан",903,9,4,25200,0,1628.2,1628.2,1]
["Выполнение функций казенными учреждениями",903,9,4,25200,"001",1628.2,1628.2,1]
["Больницы, клиники, госпитали, медико-санитарные части",903,9,4,4700000,0,332,332,1]
["Обеспечение деятельности подведомственных учреждений",903,9,4,4709900,0,332,332,1]
["Выполнение функций казенными учреждениями",903,9,4,4709900,"001",332,332,1]
["Отдел по культуре и библиотечному обслуживанию АЧРМО",904,0,0,0,0,1033.2,1031.4000000000001,0.99825783972125437]
["КУЛЬТУРА И КИНЕМАТОГРАФИЯ",904,8,0,0,0,1033.2,1031.4000000000001,0.99825783972125437]
["Другие вопросы в области культуры, кинематографии",904,8,4,0,0,1033.2,1031.4000000000001,0.99825783972125437]
["Руководство и управление в сфере установленных функций органов государственной власти субъектов Российской Федерации  и органов местного самоуправления",904,8,4,20000,0,1033.2,1031.4000000000001,0.99825783972125437]
["Центральный аппарат",904,8,4,20400,0,1033.2,1031.4000000000001,0.99825783972125437]
["Выполнение функций органами местного самоуправления",904,8,4,20400,"500",1033.2,1031.4000000000001,0.99825783972125437]
["Отдел образования АЧРМО",907,0,0,0,0,438903.3,429519.9,0.97862080326121959]
["ОБРАЗОВАНИЕ",907,7,0,0,0,434758,426349.4,0.98065912530649235]
["Дошкольное образование",907,7,1,0,0,97602.5,93166.5,0.95455034450961807]
["Детские дошкольные учреждения",907,7,1,4200000,0,74226.600000000006,72824.7,0.98111323972807585]
["Обеспечение деятельности подведомственных учреждений",907,7,1,4209900,0,74226.600000000006,72824.7,0.98111323972807585]
["Выполнение функций казенными учреждениями",907,7,1,4209900,"001",74226.600000000006,72824.7,0.98111323972807585]
["Региональные целевые программы",907,7,1,5220000,0,7979.3,4951.7,0.6205682202699484]
["Областная государственная целевая программа поддержки и развития учреждений дошкольного образования в Иркутской области на 2009-2014 годы",907,7,1,5223700,0,7857.3,4829.7,0.6146767973731434]
["Выполнение функций казенными учреждениями",907,7,1,5223700,"001",7857.3,4829.7,0.6146767973731434]
["Долгосрочная целевая программа «Энергосбережение и повышение энергетической эффективности на территории Иркутской области на 2011-2015 годы и на период до 2020 года»",907,7,1,5225400,0,122,122,1]
["Выполнение функций казенными учреждениями",907,7,1,5225400,"001",122,122,1]
["Выплата заработной платы с начислениями на нее педагогическим работникам муниципальных дошкольных образовательных учреждений и муниципальных учреждений дополнительного образования",907,7,1,5890000,0,5719,5719,1]
["Выполнение функций казенными учреждениями",907,7,1,5890000,"001",5719,5719,1]
["Погашение кредиторской задолженности учреждений, находящихся в ведении органов местного самоуправления муниципальных образований Иркутской области, по единому социальному налогу, зачисляемому в федеральный бюджет, Фонд социального страхования Российской Федерации, Федеральный фонд обязательного медицинского страхования и территориальные фонды обязательного медицинского страхования",907,7,1,5900000,0,591.29999999999995,591.29999999999995,1]
["Выполнение функций казенными учреждениями",907,7,1,5900000,"001",591.29999999999995,591.29999999999995,1]
["Целевые программы муниципальных образований",907,7,1,7950000,0,9086.2999999999993,9079.7999999999993,0.99928463731111672]
["Мероприятия в сфере образования",907,7,1,7950000,"022",987,987,1]
["Мероприятия по обеспечению пожарной безопасности",907,7,1,7950000,"450",1000,1000,1]
["Долгосрочная целевая программа Черемховского районного муниципального образования \"Повышение эффективности бюджетных расходов Черемховского районного муниципального образования на 2012-2013 годы\"",907,7,1,7950200,0,7099.3,7092.8,0.9990844167734847]
["Выполнение функций казенными учреждениями",907,7,1,7950200,"001",7099.3,7092.8,0.9990844167734847]
["Общее образование",907,7,2,0,0,324691.5,320836.2,0.98812626754935073]
["Руководство и управление в сфере установленных функций органов государственной власти субъектов Российской Федерации  и органов местного самоуправления",907,7,2,20000,0,236986.7,236355.7,0.99733740332263376]
["Обеспечение государственных гарантий прав граждан на получение общедоступного и бесплатного дошкольного, начального общего, основного общего, среднего (полного) общего образования, а также дополнительного образования в общеобразовательных учреждениях",907,7,2,25000,0,236986.7,236355.7,0.99733740332263376]
["Выполнение функций казенными учреждениями",907,7,2,25000,"001",236986.7,236355.7,0.99733740332263376]
["Школы - детские сады, школы начальные, неполные средние и средние",907,7,2,4210000,0,47870.1,45850.8,0.95781709250659608]
["Обеспечение деятельности подведомственных учреждений",907,7,2,4219900,0,47870.1,45850.8,0.95781709250659608]
["Выполнение функций казенными учреждениями",907,7,2,4219900,"001",47870.1,45850.8,0.95781709250659608]
["Учреждения по внешкольной работе с детьми",907,7,2,4230000,0,16199.8,15365.6,0.94850553710539642]
["Обеспечение деятельности подведомственных учреждений",907,7,2,4239900,0,16199.8,15365.6,0.94850553710539642]
["Выполнение функций казенными учреждениями",907,7,2,4239900,"001",16199.8,15365.6,0.94850553710539642]
["Иные безвозмездные и безвозвратные перечисления",907,7,2,5200000,0,5162.3,4895.8999999999996,0.94839509520949949]
["Ежемесячное денежное вознаграждение за классное руководство",907,7,2,5200900,0,5162.3,4895.8999999999996,0.94839509520949949]
["Выполнение функций казенными учреждениями",907,7,2,5200900,"001",5162.3,4895.8999999999996,0.94839509520949949]
["Региональные целевые программы",907,7,2,5220000,0,1414.2,1328,0.93904681091783337]
["Долгосрочная целевая программа \"Социальное развитие села Иркутской области на 2011-2014 годы\"",907,7,2,5221800,0,789,789,1]
["Бюджетные инвестиции",907,7,2,5221800,"003",789,789,1]
["Долгосрочная целевая программа «Модернизация объектов коммунальной инфраструктуры Иркутской области на 2011-2013 годы»",907,7,2,5222000,0,300,213.8,0.71266666666666667]
["Подпрограмма «Подготовка объектов коммунальной инфраструктуры Иркутской области к отопительному сезону в 2011-2013 годах»",907,7,2,5222001,0,300,213.8,0.71266666666666667]
["Выполнение функций казенными учреждениями",907,7,2,5222001,"001",300,213.8,0.71266666666666667]
["Долгосрочная целевая программа «Энергосбережение и повышение энергетической эффективности на территории Иркутской области на 2011-2015 годы и на период до 2020 года»",907,7,2,5225400,0,325.2,325.2,1]
["Выполнение функций казенными учреждениями",907,7,2,5225400,"001",325.2,325.2,1]
["Выплата заработной платы с начислениями на нее педагогическим работникам муниципальных дошкольных образовательных учреждений и муниципальных учреждений дополнительного образования",907,7,2,5890000,0,2276,2276,1]
["Выполнение функций казенными учреждениями",907,7,2,5890000,"001",2276,2276,1]
["Погашение кредиторской задолженности учреждений, находящихся в ведении органов местного самоуправления муниципальных образований Иркутской области, по единому социальному налогу, зачисляемому в федеральный бюджет, Фонд социального страхования Российской Федерации, Федеральный фонд обязательного медицинского страхования и территориальные фонды обязательного медицинского страхования",907,7,2,5900000,0,877,877,1]
["Выполнение функций казенными учреждениями",907,7,2,5900000,"001",877,877,1]
["Целевые программы муниципальных образований",907,7,2,7950000,0,13905.4,13887.2,0.9986911559538022]
["Мероприятия в сфере образования",907,7,2,7950000,"022",1640,1640,1]
["Мероприятия по обеспечению пожарной безопасности",907,7,2,7950000,"450",700,683,0.97571428571428576]
["Мероприятия по повышению энергетической эффективности",907,7,2,7950000,"451",600,598.9,0.99816666666666665]
["Долгосрочная целевая программа Черемховского районного муниципального образования \"Повышение эффективности бюджетных расходов Черемховского районного муниципального образования на 2012-2013 годы\"",907,7,2,7950200,0,10965.4,10965.4,1]
["Выполнение функций казенными учреждениями",907,7,2,7950200,"001",10965.4,10965.4,1]
["Молодежная политика и оздоровление детей",907,7,7,0,0,2409,2408.9,0.99995848899958495]
["Мероприятия по проведению оздоровительной кампании детей",907,7,7,4320000,0,24.1,24.1,1]
["Оплата стоимости набора продуктов питания для детей в организованных органами местного самоуправления оздоровительных лагерях с дневным пребыванием детей за счет средств областного бюджета",907,7,7,4320300,0,24.1,24.1,1]
["Оплата стоимости набора продуктов питания для детей в организованных органами местного самоуправления оздоровительных лагерях с дневным пребыванием детей за счет средств местного бюджета ",907,7,7,4320302,0,24.1,24.1,1]
["Выполнение функций казенными учреждениями",907,7,7,4320302,"001",24.1,24.1,1]
["Региональные целевые программы",907,7,7,5220000,0,2384.9,2384.8000000000002,0.99995806952073463]
["Долгосрочная целевая программа Иркутской области \"Организация и обеспечение отдыха и оздоровления детей в Иркутской области на 2012-2014гг.\"",907,7,7,5226200,0,2384.9,2384.8000000000002,0.99995806952073463]
["Выполнение функций казенными учреждениями",907,7,7,5226200,"001",2384.9,2384.8000000000002,0.99995806952073463]
["Другие вопросы в области образования",907,7,9,0,0,10055,9937.7999999999993,0.98834410740924905]
["Руководство и управление в сфере установленных функций органов государственной власти субъектов Российской Федерации  и органов местного самоуправления",907,7,9,20000,0,3723.5,3606.4,0.96855109440042975]
["Центральный аппарат",907,7,9,20400,0,3723.5,3606.4,0.96855109440042975]
["Выполнение функций органами местного самоуправления",907,7,9,20400,"500",3723.5,3606.4,0.96855109440042975]
["Учебно-методические кабинеты, централизованные бухгалтерии, группы хозяйственного обслуживания, учебные фильмотеки, межшкольные учебно-производственные комбинаты, логопедические пункты",907,7,9,4520000,0,6315.7,6315.6,0.99998416644235799]
["Обеспечение деятельности подведомственных учреждений",907,7,9,4529900,0,6315.7,6315.6,0.99998416644235799]
["Субсидии некоммерческим организациям",907,7,9,4529900,"019",193.6,193.6,1]
["Субсидии бюджетным учреждениям на финансовое обеспечение муниципального задания на оказание муниципальных услуг (выполнение работ)",907,7,9,4529900,"611",6011.8,6011.7,0.99998336604677462]
["Субсидии бюджетным учреждениям на иные цели",907,7,9,4529900,"612",110.3,110.3,1]
["Погашение кредиторской задолженности учреждений, находящихся в ведении органов местного самоуправления муниципальных образований Иркутской области, по единому социальному налогу, зачисляемому в федеральный бюджет, Фонд социального страхования Российской Федерации, Федеральный фонд обязательного медицинского страхования и территориальные фонды обязательного медицинского страхования",907,7,9,5900000,0,15.8,15.8,1]
["Выполнение функций органами местного самоуправления",907,7,9,5900000,"500",15.8,15.8,1]
["СОЦИАЛЬНАЯ ПОЛИТИКА",907,10,0,0,0,4145.3,3170.4,0.76481798663546663]
["Социальное обеспечение населения",907,10,3,0,0,4145.3,3170.4,0.76481798663546663]
["Руководство и управление в сфере установленных функций органов государственной власти субъектов Российской Федерации  и органов местного самоуправления",907,10,3,20000,0,4145.3,3170.4,0.76481798663546663]
["Осуществление отдельных областных государственных полномочий по предоставлению мер социальной поддержки многодетным и малоимущим семьям",907,10,3,24600,0,4145.3,3170.4,0.76481798663546663]
["Социальные выплаты",907,10,3,24600,"005",4145.3,3170.4,0.76481798663546663]
["Финансовое управление администрации ЧРМО",910,0,0,0,0,33557.199999999997,30375.8,0.9051947123121119]
["ОБЩЕГОСУДАРСТВЕННЫЕ ВОПРОСЫ",910,1,0,0,0,23298.1,23179.1,0.99489228735390445]
["Обеспечение деятельности финансовых, налоговых и таможенных органов и органов финансового (финансово-бюджетного) надзора",910,1,6,0,0,7895.3,7834.4,0.99228655022608381]
["Руководство и управление в сфере установленных функций органов государственной власти субъектов Российской Федерации  и органов местного самоуправления",910,1,6,20000,0,7845.3,7834.4,0.99861063311791765]
["Центральный аппарат",910,1,6,20400,0,7845.3,7834.4,0.99861063311791765]
["Выполнение функций органами местного самоуправления",910,1,6,20400,"500",7845.3,7834.4,0.99861063311791765]
["Целевые программы муниципальных образований",910,1,6,7950000,0,50,0,0]
["Долгосрочная целевая программа Черемховского районного муниципального образования \"Повышение эффективности бюджетных расходов Черемховского районного муниципального образования на 2012-2013 годы\"",910,1,6,7950200,0,50,0,0]
["Выполнение функций органами местного самоуправления",910,1,6,7950200,"500",50,0,0]
["Другие общегосударственные вопросы",910,1,13,0,0,15402.8,15344.7,0.99622795855299051]
["Руководство и управление в сфере установленных функций органов государственной власти субъектов Российской Федерации  и органов местного самоуправления",910,1,13,20000,0,13090.3,13077.7,0.99903745521493026]
["Обеспечение деятельности подведомственных учреждений",910,1,13,29900,0,13090.3,13077.7,0.99903745521493026]
["Выполнение функций казенными учреждениями",910,1,13,29900,"001",13090.3,13077.7,0.99903745521493026]
["Реализация государственных функций, связанных с общегосударственным управлением",910,1,13,920000,0,44.9,44.9,1]
["Выполнение других обязательств государства",910,1,13,920300,0,44.9,44.9,1]
["Выполнение функций органами местного самоуправления",910,1,13,920300,"500",44.9,44.9,1]
["Погашение кредиторской задолженности учреждений, находящихся в ведении органов местного самоуправления муниципальных образований Иркутской области, по единому социальному налогу, зачисляемому в федеральный бюджет, Фонд социального страхования Российской Федерации, Федеральный фонд обязательного медицинского страхования и территориальные фонды обязательного медицинского страхования",910,1,13,5900000,0,32.799999999999997,32.799999999999997,1]
["Выполнение функций казенными учреждениями",910,1,13,5900000,"001",32.799999999999997,32.799999999999997,1]
["Целевые программы муниципальных образований",910,1,13,7950000,0,2234.8000000000002,2189.3000000000002,0.97964023626275287]
["Долгосрочная целевая программа Черемховского районного муниципального образования \"Повышение эффективности бюджетных расходов Черемховского районного муниципального образования на 2012-2013 годы\"",910,1,13,7950200,0,2234.8000000000002,2189.3000000000002,0.97964023626275287]
["Выполнение функций казенными учреждениями",910,1,13,7950200,"001",2234.8000000000002,2189.3000000000002,0.97964023626275287]
["ЖИЛИЩНО-КОММУНАЛЬНОЕ ХОЗЯЙСТВО",910,5,0,0,0,24.1,24.1,1]
["Коммунальное хозяйство",910,5,2,0,0,24.1,24.1,1]
["Региональные целевые программы",910,5,2,5220000,0,24.1,24.1,1]
["Долгосрочная целевая программа «Энергосбережение и повышение энергетической эффективности на территории Иркутской области на 2011-2015 годы и на период до 2020 года»",910,5,2,5225400,0,24.1,24.1,1]
["Иные межбюджетные трансферты",910,5,2,5225400,"017",24.1,24.1,1]
["МЕЖБЮДЖЕТНЫЕ ТРАНСФЕРТЫ ОБЩЕГО ХАРАКТЕРА БЮДЖЕТАМ СУБЪЕКТОВ РОССИЙСКОЙ ФЕДЕРАЦИИ И МУНИЦИПАЛЬНЫХ ОБРАЗОВАНИЙ ",910,14,0,0,0,10235,7172.6,0.70079140205178314]
["Дотации на выравнивание бюджетной обеспеченности субъектов Российской Федерации и муниципальных образований",910,14,1,0,0,3500,529,0.15114285714285713]
["Выравнивание бюджетной обеспечености",910,14,1,5160000,0,3500,529,0.15114285714285713]
["Выравнивание бюджетной обеспеченности",910,14,1,5160100,0,3500,529,0.15114285714285713]
["Выравнивание бюджетной обеспеченности поселений из районного фонда финансовой поддержки",910,14,1,5160130,0,3500,529,0.15114285714285713]
["Фонд финансовой поддержки",910,14,1,5160130,"008",3500,529,0.15114285714285713]
["Прочие межбюджетные трансферты общего характера бюджетам субъектов Российской Федерации и муниципальных образований ",910,14,3,0,0,6735,6643.6,0.9864291017074982]
["Межбюджетные трансферты",910,14,3,5210000,0,92,0.6,6.5217391304347823E-3]
["Межбюджетные трансферты бюджетам муниципальных районов из бюджетов поселений и межбюджетные трансферты бюджетам поселений из бюджетов муниципальных районов на осуществление части полномочий по решению вопросов местного значения в соответствии с заключенными соглашениями",910,14,3,5210600,0,92,0.6,6.5217391304347823E-3]
["Иные межбюджетные трансферты",910,14,3,5210600,"017",92,0.6,6.5217391304347823E-3]
["Целевые программы муниципальных образований",910,14,3,7950000,0,6643,6643,1]
["Долгосрочная целевая программа Черемховского районного муниципального образования \"Повышение эффективности бюджетных расходов Черемховского районного муниципального образования на 2012-2013 годы\"",910,14,3,7950200,0,6643,6643,1]
["Иные межбюджетные трансферты",910,14,3,7950200,"017",6643,6643,1]
["Комитет по управлению муниципальным имуществом ЧРМО",913,0,0,0,0,30856.799999999999,26654.400000000001,0.86380959788442102]
["ОБЩЕГОСУДАРСТВЕННЫЕ ВОПРОСЫ",913,1,0,0,0,16688.3,15005.1,0.89913891768484511]
["Другие общегосударственные вопросы",913,1,13,0,0,16688.3,15005.1,0.89913891768484511]
["Руководство и управление в сфере установленных функций органов государственной власти субъектов Российской Федерации  и органов местного самоуправления",913,1,13,20000,0,3289.3,3254.9,0.98954184780956433]
["Центральный аппарат",913,1,13,20400,0,3289.3,3254.9,0.98954184780956433]
["Выполнение функций органами местного самоуправления",913,1,13,20400,"500",3289.3,3254.9,0.98954184780956433]
["Реализация государственных функций, связанных с общегосударственным управлением",913,1,13,920000,0,2849,2837.3,0.995893295893296]
["Выполнение других обязательств государства",913,1,13,920300,0,2849,2837.3,0.995893295893296]
["Выполнение функций органами местного самоуправления",913,1,13,920300,"500",2849,2837.3,0.995893295893296]
["Учреждения по обеспечению хозяйственного обслуживания",913,1,13,930000,0,7889.4,7889.4,1]
["Обеспечение деятельности подведомственных учреждений",913,1,13,939900,0,7889.4,7889.4,1]
["Субсидии некоммерческим организациям",913,1,13,939900,"019",407.8,407.8,1]
["Субсидии бюджетным учреждениям на финансовое обеспечение муниципального задания на оказание муниципальных услуг (выполнение работ)",913,1,13,939900,"611",7481.2,7481.2,1]
["Субсидии бюджетным учреждениям на иные цели",913,1,13,939900,"612",0.4,0.4,1]
["Погашение кредиторской задолженности учреждений, находящихся в ведении органов местного самоуправления муниципальных образований Иркутской области, по единому социальному налогу, зачисляемому в федеральный бюджет, Фонд социального страхования Российской Федерации, Федеральный фонд обязательного медицинского страхования и территориальные фонды обязательного медицинского страхования",913,1,13,5900000,0,0.6,0.6,1]
["Выполнение функций органами местного самоуправления",913,1,13,5900000,"500",0.6,0.6,1]
["Целевые программы муниципальных образований",913,1,13,7950000,0,2660,1022.9,0.38454887218045114]
["Выполнение функций органами местного самоуправления",913,1,13,7950000,"500",2660,1022.9,0.38454887218045114]
["НАЦИОНАЛЬНАЯ ЭКОНОМИКА",913,4,0,0,0,1440,999,0.69374999999999998]
["Другие вопросы в области национальной экономики",913,4,12,0,0,1440,999,0.69374999999999998]
["Целевые программы муниципальных образований",913,4,12,7950000,0,1440,999,0.69374999999999998]
["Выполнение функций органами местного самоуправления",913,4,12,7950000,"500",1440,999,0.69374999999999998]
["ЖИЛИЩНО-КОММУНАЛЬНОЕ ХОЗЯЙСТВО",913,5,0,0,0,5040.8,3134.2,0.62176638628789072]
["Жилищное хозяйство",913,5,1,0,0,273.89999999999998,273.89999999999998,1]
["Поддержка жилищного хозяйства",913,5,1,3500000,0,273.89999999999998,273.89999999999998,1]
["Капитальный ремонт государственного жилищного фонда субъектов Российской Федерации и муниципального жилищного фонда",913,5,1,3500200,0,273.89999999999998,273.89999999999998,1]
["Субсидии юридическим лицам",913,5,1,3500200,"006",174.9,174.9,1]
["Выполнение функций органами местного самоуправления",913,5,1,3500200,"500",99,99,1]
["Коммунальное хозяйство",913,5,2,0,0,3806.8,1900.2,0.49915939897026373]
["Поддержка коммунального хозяйства",913,5,2,3510000,0,3806.8,1900.2,0.49915939897026373]
["Мероприятия в области коммунального хозяйства",913,5,2,3510500,0,3806.8,1900.2,0.49915939897026373]
["Выполнение функций органами местного самоуправления",913,5,2,3510500,"500",3806.8,1900.2,0.49915939897026373]
["Другие вопросы в области жилищно-коммунального хозяйства",913,5,5,0,0,960.1,960.1,1]
["Руководство и управление в сфере установленных функций органов государственной власти субъектов Российской Федерации  и органов местного самоуправления",913,5,5,20000,0,960.1,960.1,1]
["Обеспечение деятельности подведомственных учреждений",913,5,5,29900,0,960.1,960.1,1]
["Субсидии некоммерческим организациям",913,5,5,29900,"019",48.4,48.4,1]
["Субсидии бюджетным учреждениям на финансовое обеспечение муниципального задания на оказание муниципальных услуг (выполнение работ)",913,5,5,29900,"611",911.6,911.6,1]
["Субсидии бюджетным учреждениям на иные цели",913,5,5,29900,"612",0.1,0.1,1]
["СОЦИАЛЬНАЯ ПОЛИТИКА",913,10,0,0,0,5082.7,4911.2,0.96625809117201489]
["Охрана семьи и детства",913,10,4,0,0,5082.7,4911.2,0.96625809117201489]
["Руководство и управление в сфере установленных функций органов государственной власти субъектов Российской Федерации  и органов местного самоуправления",913,10,4,20000,0,3012.4,2840.9,0.94306864958172887]
["Осуществление областных государственных полномочий по обеспечению детей-сирот и детей, оставшихся без попечения родителей, лиц из числа детей-сирот и детей, оставшихся без попечения родителей, жилыми помещениями по договорам социального найма в Иркутской области",913,10,4,24800,0,3012.4,2840.9,0.94306864958172887]
["Содержание и обеспечение деятельности муниципальных служащих, осуществляющих областные государственные полномочия по обеспечению детей-сирот и детей, оставшихся без попечения родителей, лиц из числа детей-сирот и детей, оставшихся без попечения родителей, жилыми помещениями по договорам социального найма в Иркутской области",913,10,4,24801,0,22.7,22.7,1]
["Выполнение функций органами местного самоуправления",913,10,4,24801,"500",22.7,22.7,1]
["Обеспечение детей-сирот и детей, оставшихся без попечения родителей, лиц из числа детей-сирот и детей, оставшихся без попечения родителей, жилыми помещениями по договорам социального найма в Иркутской области",913,10,4,24802,0,2989.7,2818.2,0.94263638492156399]
["Бюджетные инвестиции",913,10,4,24802,"003",2989.7,2818.2,0.94263638492156399]
["Социальная помощь",913,10,4,5050000,0,2070.3000000000002,2070.3000000000002,1]
["Федеральный закон от 21 декабря 1996 года N 159-ФЗ \"О дополнительных гарантиях по социальной поддержке детей-сирот и детей, оставшихся без попечения родителей\"",913,10,4,5052100,0,2070.3000000000002,2070.3000000000002,1]
["Обеспечение жилыми помещениями детей-сирот, детей, оставшихся без попечения родителей, а также детей, находящихся под опекой (попечительством), не имеющих закрепленного жилого помещения",913,10,4,5052102,0,2070.3000000000002,2070.3000000000002,1]
["Бюджетные инвестиции",913,10,4,5052102,"003",2070.3000000000002,2070.3000000000002,1]
["СРЕДСТВА МАССОВОЙ ИНФОРМАЦИИ",913,12,0,0,0,2605,2605,1]
["Периодическая печать и издательства",913,12,2,0,0,2605,2605,1]
["Периодические издания, учрежденные органами законодательной и исполнительной власти",913,12,2,4570000,0,2605,2605,1]
["Государственная поддержка в сфере культуры, кинематографии и средств массовой информации",913,12,2,4578500,0,2605,2605,1]
["Субсидии юридическим лицам",913,12,2,4578500,"006",2605,2605,1]
["Дума ЧРМО",916,0,0,0,0,1601.5,1581.6,0.98757414923509201]
["ОБЩЕГОСУДАРСТВЕННЫЕ ВОПРОСЫ",916,1,0,0,0,1601.5,1581.6,0.98757414923509201]
["Функционирование законодательных (представительных) органов государственной власти и представительных органов муниципальных образований",916,1,3,0,0,1601.5,1581.6,0.98757414923509201]
["Руководство и управление в сфере установленных функций органов государственной власти субъектов Российской Федерации  и органов местного самоуправления",916,1,3,20000,0,1599.8,1580,0.98762345293161646]
["Центральный аппарат",916,1,3,20400,0,638.20000000000005,624.4,0.97837668442494508]
["Выполнение функций органами местного самоуправления",916,1,3,20400,"500",638.20000000000005,624.4,0.97837668442494508]
["Председатель представительного органа муниципального образования",916,1,3,21100,0,961.6,955.6,0.9937603993344426]
["Выполнение функций органами местного самоуправления",916,1,3,21100,"500",961.6,955.6,0.9937603993344426]
["Погашение кредиторской задолженности учреждений, находящихся в ведении органов местного самоуправления муниципальных образований Иркутской области, по единому социальному налогу, зачисляемому в федеральный бюджет, Фонд социального страхования Российской Федерации, Федеральный фонд обязательного медицинского страхования и территориальные фонды обязательного медицинского страхования",916,1,3,5900000,0,1.7,1.6,0.94117647058823539]
["Выполнение функций органами местного самоуправления",916,1,3,5900000,"500",1.7,1.6,0.94117647058823539]
["Администрация ЧРМО",917,0,0,0,0,104730,97568.6,0.9316203571087559]
["ОБЩЕГОСУДАРСТВЕННЫЕ ВОПРОСЫ",917,1,0,0,0,34067.800000000003,33798.199999999997,0.99208636894662983]
["Функционирование высшего должностного лица субъекта Российской Федерации и муниципального образования",917,1,2,0,0,2034.5,2014.9,0.99036618333742943]
["Руководство и управление в сфере установленных функций органов государственной власти субъектов Российской Федерации  и органов местного самоуправления",917,1,2,20000,0,2034.5,2014.9,0.99036618333742943]
["Глава муниципального образования",917,1,2,20300,0,2034.5,2014.9,0.99036618333742943]
["Выполнение функций органами местного самоуправления",917,1,2,20300,"500",2034.5,2014.9,0.99036618333742943]
["Функционирование Правительства Российской Федерации, высших исполнительных органов государственной власти субъектов Российской Федерации, местных администраций",917,1,4,0,0,28868.2,28640.2,0.99210203615050474]
["Руководство и управление в сфере установленных функций органов государственной власти субъектов Российской Федерации  и органов местного самоуправления",917,1,4,20000,0,28717.7,28515.1,0.99294511747110659]
["Центральный аппарат",917,1,4,20400,0,28717.7,28515.1,0.99294511747110659]
["Выполнение функций органами местного самоуправления",917,1,4,20400,"500",28717.7,28515.1,0.99294511747110659]
["Погашение кредиторской задолженности учреждений, находящихся в ведении органов местного самоуправления муниципальных образований Иркутской области, по единому социальному налогу, зачисляемому в федеральный бюджет, Фонд социального страхования Российской Федерации, Федеральный фонд обязательного медицинского страхования и территориальные фонды обязательного медицинского страхования",917,1,4,5900000,0,100.5,100.5,1]
["Выполнение функций органами местного самоуправления",917,1,4,5900000,"500",100.5,100.5,1]
["Целевые программы муниципальных образований",917,1,4,7950000,0,50,24.6,0.49200000000000005]
["Долгосрочная целевая программа Черемховского районного муниципального образования \"Повышение эффективности бюджетных расходов Черемховского районного муниципального образования на 2012-2013 годы\"",917,1,4,7950200,0,50,24.6,0.49200000000000005]
["Выполнение функций органами местного самоуправления",917,1,4,7950200,"500",50,24.6,0.49200000000000005]
["Судебная система",917,1,5,0,0,7.5,7.5,1]
["Руководство и управление в сфере установленных функций",917,1,5,10000,0,7.5,7.5,1]
["Составление (изменение и дополнение) списков кандидатов в присяжные заседатели федеральных судов общей юрисдикции в Российской Федерации",917,1,5,14000,0,7.5,7.5,1]
["Выполнение функций органами местного самоуправления",917,1,5,14000,"500",7.5,7.5,1]
["Другие общегосударственные вопросы",917,1,13,0,0,3157.6,3135.6,0.99303268305041803]
["Руководство и управление в сфере установленных функций органов государственной власти субъектов Российской Федерации  и органов местного самоуправления",917,1,13,20000,0,2469.4,2457.5,0.99518101563132744]
["Осуществление областных государственных полномочий по хранению, комплектованию, учету и использованию архивных документов, относящихся к государственной собственности Иркутской области",917,1,13,24000,0,1027,1024.2,0.99727361246348589]
["Выполнение функций органами местного самоуправления",917,1,13,24000,"500",1027,1024.2,0.99727361246348589]
["Осуществление областных государственных полномочий по определению персонального состава и обеспечению деятельности административных комиссий",917,1,13,24300,0,532.9,532.1,0.99849878025896044]
["Выполнение функций органами местного самоуправления",917,1,13,24300,"500",532.9,532.1,0.99849878025896044]
["Осуществление отдельных государственных полномочий в области производства и оборота этилового спирта, алкогольной и спиртосодержащей продукции",917,1,13,24400,0,376.6,375.8,0.99787573021773768]
["Выполнение функций органами местного самоуправления",917,1,13,24400,"500",376.6,375.8,0.99787573021773768]
["Осуществление отдельных областных государственных полномочий в области охраны труда",917,1,13,24500,0,532.9,525.4,0.98592606492775381]
["Выполнение функций органами местного самоуправления",917,1,13,24500,"500",532.9,525.4,0.98592606492775381]
["Реализация государственных функций, связанных с общегосударственным управлением",917,1,13,920000,0,633.20000000000005,623.4,0.98452305748578639]
["Выполнение других обязательств государства",917,1,13,920300,0,633.20000000000005,623.4,0.98452305748578639]
["Выполнение функций органами местного самоуправления",917,1,13,920300,"500",633.20000000000005,623.4,0.98452305748578639]
["Целевые программы муниципальных образований",917,1,13,7950000,0,55,54.7,0.99454545454545462]
["Выполнение функций органами местного самоуправления",917,1,13,7950000,"500",55,54.7,0.99454545454545462]
["НАЦИОНАЛЬНАЯ ЭКОНОМИКА",917,4,0,0,0,1880.5,1864.4,0.99143844722148367]
["Другие вопросы в области национальной экономики",917,4,12,0,0,1880.5,1864.4,0.99143844722148367]
["Малое и среднее предпринимательство",917,4,12,3450000,0,240,224,0.93333333333333335]
["Субсидии на государственную поддержку малого и среднего предпринимательства, включая крестьянские (фермерские) хозяйства",917,4,12,3450100,0,240,224,0.93333333333333335]
["Субсидии юридическим лицам",917,4,12,3450100,"006",240,224,0.93333333333333335]
["Региональные целевые программы",917,4,12,5220000,0,1524.5,1524.4,0.99993440472285999]
["Долгосрочная целевая программа «Поддержка и развитие малого и среднего предпринимательства в Иркутской области» на 2011-2012 годы",917,4,12,5222400,0,60,60,1]
["Субсидии юридическим лицам",917,4,12,5222400,"006",60,60,1]
["Долгосрочная целевая программа Иркутской области «Стимулирование жилищного строительства в Иркутской области на 2011-2015 годы»",917,4,12,5225700,0,1464.5,1464.4,0.99993171730966202]
["Подпрограмма \"Территориальное планирование муниципальных образований Иркутской области на 2011-2012 годы\"",917,4,12,5225701,0,1464.5,1464.4,0.99993171730966202]
["Выполнение функций органами местного самоуправления",917,4,12,5225701,"500",1464.5,1464.4,0.99993171730966202]
["Целевые программы муниципальных образований",917,4,12,7950000,0,116,116,1]
["Субсидии юридическим лицам",917,4,12,7950000,"006",16,16,1]
["Выполнение функций органами местного самоуправления",917,4,12,7950000,"500",100,100,1]
["ЖИЛИЩНО-КОММУНАЛЬНОЕ ХОЗЯЙСТВО",917,5,0,0,0,835.3,835.3,1]
["Жилищное хозяйство",917,5,1,0,0,370.7,370.7,1]
["Поддержка жилищного хозяйства",917,5,1,3500000,0,370.7,370.7,1]
["Мероприятия в области жилищного хозяйства",917,5,1,3500300,0,370.7,370.7,1]
["Выполнение функций органами местного самоуправления",917,5,1,3500300,"500",370.7,370.7,1]
["Коммунальное хозяйство",917,5,2,0,0,464.6,464.6,1]
["Резервные фонды",917,5,2,700000,0,464.6,464.6,1]
["Резервные фонды исполнительных органов государственной власти субъектов Российской Федерации",917,5,2,700400,0,164.6,164.6,1]
["Выполнение функций органами местного самоуправления",917,5,2,700400,"500",164.6,164.6,1]
["Резервные фонды местных администраций",917,5,2,700500,0,300,300,1]
["Выполнение функций органами местного самоуправления",917,5,2,700500,"500",300,300,1]
["ОБРАЗОВАНИЕ",917,7,0,0,0,206,206,1]
["Молодежная политика и оздоровление детей",917,7,7,0,0,206,206,1]
["Организационно-воспитательная работа с молодежью",917,7,7,4310000,0,106,106,1]
["Проведение мероприятий для детей и молодежи",917,7,7,4310100,0,106,106,1]
["Выполнение функций органами местного самоуправления",917,7,7,4310100,"500",106,106,1]
["Целевые программы муниципальных образований",917,7,7,7950000,0,100,100,1]
["Выполнение функций органами местного самоуправления",917,7,7,7950000,"500",100,100,1]
["КУЛЬТУРА И КИНЕМАТОГРАФИЯ",917,8,0,0,0,430.1,430.1,1]
["Культура",917,8,1,0,0,430.1,430.1,1]
["Учреждения культуры и мероприятия в сфере культуры и кинематографии",917,8,1,4400000,0,430.1,430.1,1]
["Обеспечение деятельности подведомственных учреждений",917,8,1,4409900,0,430.1,430.1,1]
["Выполнение функций казенными учреждениями",917,8,1,4409900,"001",430.1,430.1,1]
["ЗДРАВООХРАНЕНИЕ",917,9,0,0,0,61210.9,54776.7,0.89488473458158591]
["Стационарная медицинская помощь",917,9,1,0,0,34187.599999999999,28939.599999999999,0.84649405047444104]
["Руководство и управление в сфере установленных функций органов государственной власти субъектов Российской Федерации  и органов местного самоуправления",917,9,1,20000,0,14344.7,14344.7,1]
["Осуществление отдельных областных государственных полномочий в области охраны здоровья граждан",917,9,1,25200,0,14344.7,14344.7,1]
["Субсидии бюджетным учреждениям на финансовое обеспечение муниципального задания на оказание муниципальных услуг (выполнение работ)",917,9,1,25200,"611",14344.7,14344.7,1]
["Реализация региональных программ модернизации здравоохранения субъектов Российской Федерации и программ модернизации федеральных государственных учреждений",917,9,1,960000,0,7422.3,2431.1,0.32753998086846392]
["Реализация программ модернизации здравоохранения субъектов Российской Федерации в части укрепления материально-технической базы медицинских учреждений",917,9,1,960100,0,6663.3,1793.5,0.26916092626776522]
["Реализация программ модернизации здравоохранения субъектов Российской Федерации в части укрепления материально-технической базы медицинских учреждений за счет средств бюджета территориального фонда обязательного медицинского страхования граждан Иркутской области",917,9,1,960101,0,6663.3,1793.5,0.26916092626776522]
["Субсидии бюджетным учреждениям на иные цели",917,9,1,960101,"612",6663.3,1793.5,0.26916092626776522]
["Реализация программ модернизации здравоохранения субъектов Российской Федерации в части внедрения современных информационных систем в здравоохранение в целях перехода на полисы обязательного медицинского страхования единого образца",917,9,1,960200,0,759,637.6,0.84005270092226614]
["Реализация программ модернизации здравоохранения субъектов Российской Федерации в части внедрения современных информационных систем в здравоохранении в целях перехода на полисы обязательного медицинского страхования единого образца за счет средств бюджета территориального фонда обязательного медицинского страхования граждан  Иркутской области",917,9,1,960201,0,759,637.6,0.84005270092226614]
["Субсидии бюджетным учреждениям на иные цели",917,9,1,960201,"612",759,637.6,0.84005270092226614]
["Больницы, клиники, госпитали, медико-санитарные части",917,9,1,4700000,0,9459.7000000000007,9202.9,0.97285326173134445]
["Субсидии бюджетным учреждениям на финансовое обеспечение муниципального задания на оказание муниципальных услуг (выполнение работ)",917,9,1,4700000,"611",5916.7,5916.7,1]
["Субсидии бюджетным учреждениям на иные цели",917,9,1,4700000,"612",3543,3286.2,0.92751905165114301]
["Погашение кредиторской задолженности учреждений, находящихся в ведении органов местного самоуправления муниципальных образований Иркутской области, по единому социальному налогу, зачисляемому в федеральный бюджет, Фонд социального страхования Российской Федерации, Федеральный фонд обязательного медицинского страхования и территориальные фонды обязательного медицинского страхования",917,9,1,5900000,0,52,52,1]
["Субсидии бюджетным учреждениям на иные цели",917,9,1,5900000,"612",52,52,1]
["Целевые программы муниципальных образований",917,9,1,7950000,0,2908.9,2908.9,1]
["Долгосрочная целевая программа Черемховского районного муниципального образования \"Повышение эффективности бюджетных расходов Черемховского районного муниципального образования на 2012-2013 годы\"",917,9,1,7950200,0,2658.9,2658.9,1]
["Субсидии бюджетным учреждениям на финансовое обеспечение муниципального задания на оказание муниципальных услуг (выполнение работ)",917,9,1,7950200,"611",2658.9,2658.9,1]
["Долгосрочная целевая программа \"Неотложные меры по борьбе с туберкулезом\" на 2012-2014 годы",917,9,1,7950300,0,50,50,1]
["Субсидии бюджетным учреждениям на финансовое обеспечение муниципального задания на оказание муниципальных услуг (выполнение работ)",917,9,1,7950300,"611",50,50,1]
["Долгосрочная целевая программа \"Сахарный диабет\" на 2012-2014 годы",917,9,1,7950400,0,150,150,1]
["Субсидии бюджетным учреждениям на финансовое обеспечение муниципального задания на оказание муниципальных услуг (выполнение работ)",917,9,1,7950400,"611",150,150,1]
["Долгосрочная целевая программа \"Анти-вич/спид\" на 2012-2014 годы",917,9,1,7950500,0,50,50,1]
["Субсидии бюджетным учреждениям на финансовое обеспечение муниципального задания на оказание муниципальных услуг (выполнение работ)",917,9,1,7950500,"611",50,50,1]
["Амбулаторная помощь",917,9,2,0,0,13947.9,13034.8,0.93453494791330594]
["Руководство и управление в сфере установленных функций органов государственной власти субъектов Российской Федерации  и органов местного самоуправления",917,9,2,20000,0,2558.6,2558.6,1]
["Осуществление отдельных областных государственных полномочий в области охраны здоровья граждан",917,9,2,25200,0,2558.6,2558.6,1]
["Субсидии бюджетным учреждениям на финансовое обеспечение муниципального задания на оказание муниципальных услуг (выполнение работ)",917,9,2,25200,"611",2558.6,2558.6,1]
["Реализация региональных программ модернизации здравоохранения субъектов Российской Федерации и программ модернизации федеральных государственных учреждений",917,9,2,960000,0,3141.5,3141.5,1]
["Реализация программ модернизации здравоохранения субъектов Российской Федерации в части укрепления материально-технической базы медицинских учреждений",917,9,2,960100,0,3141.5,3141.5,1]
["Реализация программ модернизации здравоохранения субъектов Российской Федерации в части укрепления материально-технической базы медицинских учреждений за счет средств бюджета территориального фонда обязательного медицинского страхования граждан Иркутской области",917,9,2,960101,0,3141.5,3141.5,1]
["Субсидии бюджетным учреждениям на иные цели",917,9,2,960101,"612",3141.5,3141.5,1]
["Поликлиники, амбулатории, диагностические центры",917,9,2,4710000,0,2151.6999999999998,1920.4,0.89250360180322552]
["Субсидии бюджетным учреждениям на финансовое обеспечение муниципального задания на оказание муниципальных услуг (выполнение работ)",917,9,2,4710000,"611",1342.3,1342.3,1]
["Субсидии бюджетным учреждениям на иные цели",917,9,2,4710000,"612",809.4,578.1,0.71423276501111943]
["Фельдшерско-акушерские пункты",917,9,2,4780000,0,1933,1932.5,0.99974133471288151]
["Субсидии бюджетным учреждениям на финансовое обеспечение муниципального задания на оказание муниципальных услуг (выполнение работ)",917,9,2,4780000,"611",1906.9,1906.9,1]
["Субсидии бюджетным учреждениям на иные цели",917,9,2,4780000,"612",26.1,25.6,0.98084291187739459]
["Иные безвозмездные и безвозвратные перечисления",917,9,2,5200000,0,3215,2533.6,0.78805598755832029]
["Денежные выплаты медицинскому персоналу фельдшерско-акушерских пунктов, врачам, фельдшерам и медицинским сестрам скорой медицинской помощи",917,9,2,5201800,0,3215,2533.6,0.78805598755832029]
["Субсидии бюджетным учреждениям на финансовое обеспечение муниципального задания на оказание муниципальных услуг (выполнение работ)",917,9,2,5201800,"611",3215,2533.6,0.78805598755832029]
["Целевые программы муниципальных образований",917,9,2,7950000,0,948.1,948.1,1]
["Долгосрочная целевая программа Черемховского районного муниципального образования \"Повышение эффективности бюджетных расходов Черемховского районного муниципального образования на 2012-2013 годы\"",917,9,2,7950200,0,948.1,948.1,1]
["Субсидии бюджетным учреждениям на финансовое обеспечение муниципального задания на оказание муниципальных услуг (выполнение работ)",917,9,2,7950200,"611",948.1,948.1,1]
["Медицинская помощь в дневных стационарах всех типов",917,9,3,0,0,662.8,662.8,1]
["Больницы, клиники, госпитали, медико-санитарные части",917,9,3,4700000,0,185.6,185.6,1]
["Субсидии бюджетным учреждениям на финансовое обеспечение муниципального задания на оказание муниципальных услуг (выполнение работ)",917,9,3,4700000,"611",185.6,185.6,1]
["Целевые программы муниципальных образований",917,9,3,7950000,0,477.2,477.2,1]
["Долгосрочная целевая программа Черемховского районного муниципального образования \"Повышение эффективности бюджетных расходов Черемховского районного муниципального образования на 2012-2013 годы\"",917,9,3,7950200,0,477.2,477.2,1]
["Субсидии бюджетным учреждениям на финансовое обеспечение муниципального задания на оказание муниципальных услуг (выполнение работ)",917,9,3,7950200,"611",477.2,477.2,1]
["Скорая медицинская помощь",917,9,4,0,0,11804,11531,0.97687224669603523]
["Руководство и управление в сфере установленных функций органов государственной власти субъектов Российской Федерации  и органов местного самоуправления",917,9,4,20000,0,8358.5,8358.5,1]
["Осуществление отдельных областных государственных полномочий в области охраны здоровья граждан",917,9,4,25200,0,8358.5,8358.5,1]
["Субсидии бюджетным учреждениям на финансовое обеспечение муниципального задания на оказание муниципальных услуг (выполнение работ)",917,9,4,25200,"611",8358.5,8358.5,1]
["Больницы, клиники, госпитали, медико-санитарные части",917,9,4,4700000,0,1409.5,1409.5,1]
["Субсидии бюджетным учреждениям на финансовое обеспечение муниципального задания на оказание муниципальных услуг (выполнение работ)",917,9,4,4700000,"611",1409.5,1409.5,1]
["Иные безвозмездные и безвозвратные перечисления",917,9,4,5200000,0,1718,1461.9,0.85093131548311995]
["Денежные выплаты медицинскому персоналу фельдшерско-акушерских пунктов, врачам, фельдшерам и медицинским сестрам скорой медицинской помощи",917,9,4,5201800,0,1718,1461.9,0.85093131548311995]
["Субсидии бюджетным учреждениям на финансовое обеспечение муниципального задания на оказание муниципальных услуг (выполнение работ)",917,9,4,5201800,"611",1718,1461.9,0.85093131548311995]
["Целевые программы муниципальных образований",917,9,4,7950000,0,318,301,0.94654088050314467]
["Долгосрочная целевая программа Черемховского районного муниципального образования \"Повышение эффективности бюджетных расходов Черемховского районного муниципального образования на 2012-2013 годы\"",917,9,4,7950200,0,318,301,0.94654088050314467]
["Субсидии бюджетным учреждениям на финансовое обеспечение муниципального задания на оказание муниципальных услуг (выполнение работ)",917,9,4,7950200,"611",318,301,0.94654088050314467]
["Другие вопросы в области здравоохранения",917,9,9,0,0,608.6,608.5,0.99983568846533022]
["Руководство и управление в сфере установленных функций органов государственной власти субъектов Российской Федерации  и органов местного самоуправления",917,9,9,20000,0,8.6,8.5,0.9883720930232559]
["Центральный аппарат",917,9,9,20400,0,8.6,8.5,0.9883720930232559]
["Выполнение функций органами местного самоуправления",917,9,9,20400,"500",8.6,8.5,0.9883720930232559]
["Целевые программы муниципальных образований",917,9,9,7950000,0,600,600,1]
["Долгосрочная целевая программа \"Привлечение врачебных кадров в здравоохранение района\" на 2012-2014 годы",917,9,9,7950900,0,600,600,1]
["Субсидии бюджетным учреждениям на иные цели",917,9,9,7950900,"612",600,600,1]
["СОЦИАЛЬНАЯ ПОЛИТИКА",917,10,0,0,0,5314.4,4872.8,0.9169050127954238]
["Пенсионное обеспечение",917,10,1,0,0,2880.8,2880.8,1]
["Доплаты к пенсиям, дополнительное пенсионное обеспечение ",917,10,1,4910000,0,2880.8,2880.8,1]
["Доплаты к пенсиям государственных служащих субъектов Российской Федерации и муниципальных служащих ",917,10,1,4910100,0,2880.8,2880.8,1]
["Социальные выплаты",917,10,1,4910100,"005",2880.8,2880.8,1]
["Социальное обеспечение населения",917,10,3,0,0,1314.1,1267.9000000000001,0.9648428582299674]
["Федеральные целевые программы",917,10,3,1000000,0,166.8,125.1,0.74999999999999989]
["Федеральная целевая программа \"Жилище\" на 2011 - 2015 годы",917,10,3,1008800,0,166.8,125.1,0.74999999999999989]
["Подпрограмма \"Обеспечение жильем молодых семей\"",917,10,3,1008820,0,166.8,125.1,0.74999999999999989]
["Социальные выплаты",917,10,3,1008820,"005",166.8,125.1,0.74999999999999989]
["Реализация государственных функций в области социальной политики",917,10,3,5140000,0,832.1,832.1,1]
["Мероприятия в области социальной политики",917,10,3,5140100,0,832.1,832.1,1]
["Социальные выплаты",917,10,3,5140100,"005",832.1,832.1,1]
["Региональные целевые программы",917,10,3,5220000,0,190.7,186.2,0.9764027267960147]
["Областная государственная социальная программа \"Молодым семьям - доступное жилье\" на 2005-2019 годы",917,10,3,5222200,0,190.7,186.2,0.9764027267960147]
["Социальные выплаты",917,10,3,5222200,"005",190.7,186.2,0.9764027267960147]
["Целевые программы муниципальных образований",917,10,3,7950000,0,124.5,124.5,1]
["Выполнение функций органами местного самоуправления",917,10,3,7950000,"500",124.5,124.5,1]
["Другие вопросы в области социальной политики",917,10,6,0,0,1119.5,724.1,0.64680661009379192]
["Руководство и управление в сфере установленных функций органов государственной власти субъектов Российской Федерации  и органов местного самоуправления",917,10,6,20000,0,1019.5,628.1,0.61608631682197157]
["Осуществление областных государственных полномочий по определению персонального состава и обеспечению деятельности районных (городских), районных в городах комиссий по делам несовершеннолетних и защите их прав",917,10,6,24100,0,1019.5,628.1,0.61608631682197157]
["Выполнение функций органами местного самоуправления",917,10,6,24100,"500",1019.5,628.1,0.61608631682197157]
["Целевые программы муниципальных образований",917,10,6,7950000,0,100,96,0.96]
["Выполнение функций органами местного самоуправления",917,10,6,7950000,"500",100,96,0.96]
["ФИЗИЧЕСКАЯ КУЛЬТУРА И СПОРТ",917,11,0,0,0,785,785,1]
["Физическая культура",917,11,1,0,0,785,785,1]
["Физкультурно-оздоровительная работа и спортивные мероприятия",917,11,1,5120000,0,485.9,485.9,1]
["Мероприятия в области спорта, физической культуры и туризма",917,11,1,5129700,0,485.9,485.9,1]
["Выполнение функций органами местного самоуправления",917,11,1,5129700,"500",485.9,485.9,1]
["Целевые программы муниципальных образований",917,11,1,7950000,0,299.10000000000002,299.10000000000002,1]
["Выполнение функций органами местного самоуправления",917,11,1,7950000,"500",299.10000000000002,299.10000000000002,1]
["Управление жилищно-коммунального хозяйства, строительства, транспорта, связи и экологии АЧРМО",918,0,0,0,0,34047.300000000003,33124,0.97288184378790676]
["ОБЩЕГОСУДАРСТВЕННЫЕ ВОПРОСЫ",918,1,0,0,0,859.5,232,0.2699243746364165]
["Другие общегосударственные вопросы",918,1,13,0,0,859.5,232,0.2699243746364165]
["Реализация государственных функций, связанных с общегосударственным управлением",918,1,13,920000,0,779.5,152,0.19499679281590762]
["Выполнение других обязательств государства",918,1,13,920300,0,779.5,152,0.19499679281590762]
["Выполнение функций органами местного самоуправления",918,1,13,920300,"500",779.5,152,0.19499679281590762]
["Целевые программы муниципальных образований",918,1,13,7950000,0,80,80,1]
["Выполнение функций органами местного самоуправления",918,1,13,7950000,"500",80,80,1]
["НАЦИОНАЛЬНАЯ ЭКОНОМИКА",918,4,0,0,0,21316.799999999999,21286.6,0.99858327703970573]
["Другие вопросы в области национальной экономики",918,4,12,0,0,21316.799999999999,21286.6,0.99858327703970573]
["Мероприятия в области строительства, архитектуры и градостроительства",918,4,12,3380000,0,3711,3680.9,0.99188897871193749]
["Подготовка проектов генеральных планов муниципальных образований Черемховского районного муниципального образования",918,4,12,3380100,0,930.6,930.6,1]
["Выполнение функций органами местного самоуправления",918,4,12,3380100,"500",930.6,930.6,1]
["Подготовка проектов правил землепользования и застройки муниципальных образований Черемховского районного муниципального образования",918,4,12,3380200,0,2780.4,2750.3,0.98917421953675733]
["Выполнение функций органами местного самоуправления",918,4,12,3380200,"500",2780.4,2750.3,0.98917421953675733]
["Региональные целевые программы",918,4,12,5220000,0,17605.8,17605.8,1]
["Долгосрочная целевая программа Иркутской области «Стимулирование жилищного строительства в Иркутской области на 2011-2015 годы»",918,4,12,5225700,0,17605.8,17605.8,1]
["Подпрограмма \"Территориальное планирование муниципальных образований Иркутской области на 2011-2012 годы\"",918,4,12,5225701,0,17605.8,17605.8,1]
["Выполнение функций органами местного самоуправления",918,4,12,5225701,"500",17605.8,17605.8,1]
["ЖИЛИЩНО-КОММУНАЛЬНОЕ ХОЗЯЙСТВО",918,5,0,0,0,5471.9,5441.2,0.99438951735229086]
["Другие вопросы в области жилищно-коммунального хозяйства",918,5,5,0,0,5471.9,5441.2,0.99438951735229086]
["Руководство и управление в сфере установленных функций органов государственной власти субъектов Российской Федерации  и органов местного самоуправления",918,5,5,20000,0,5471.3,5440.6,0.99438890208908304]
["Центральный аппарат",918,5,5,20400,0,4741.3999999999996,4712.2,0.9938414814189902]
["Выполнение функций органами местного самоуправления",918,5,5,20400,"500",4741.3999999999996,4712.2,0.9938414814189902]
["Осуществление областных государственных полномочий по предоставлению гражданам субсидий на оплату жилых помещений и коммунальных услуг",918,5,5,24700,0,729.9,728.3,0.99780791889299902]
["Содержание и обеспечение деятельности муниципальных служащих, осуществляющих областные государственные полномочия по предоставлению гражданам субсидий на оплату жилых помещений и коммунальных услуг",918,5,5,24701,0,729.9,728.3,0.99780791889299902]
["Выполнение функций органами местного самоуправления",918,5,5,24701,"500",729.9,728.3,0.99780791889299902]
["Погашение кредиторской задолженности учреждений, находящихся в ведении органов местного самоуправления муниципальных образований Иркутской области, по единому социальному налогу, зачисляемому в федеральный бюджет, Фонд социального страхования Российской Федерации, Федеральный фонд обязательного медицинского страхования и территориальные фонды обязательного медицинского страхования",918,5,5,5900000,0,0.6,0.6,1]
["Выполнение функций органами местного самоуправления",918,5,5,5900000,"500",0.6,0.6,1]
["СОЦИАЛЬНАЯ ПОЛИТИКА",918,10,0,0,0,6399.1,6164.2,0.96329171289712612]
["Социальное обеспечение населения",918,10,3,0,0,6399.1,6164.2,0.96329171289712612]
["Руководство и управление в сфере установленных функций органов государственной власти субъектов Российской Федерации  и органов местного самоуправления",918,10,3,20000,0,6399.1,6164.2,0.96329171289712612]
["Осуществление областных государственных полномочий по предоставлению гражданам субсидий на оплату жилых помещений и коммунальных услуг",918,10,3,24700,0,6399.1,6164.2,0.96329171289712612]
["Предоставление гражданам субсидий на оплату жилых помещений и коммунальных услуг",918,10,3,24702,0,6399.1,6164.2,0.96329171289712612]
["Социальные выплаты",918,10,3,24702,"005",6399.1,6164.2,0.96329171289712612]
["МКУК \"Межпоселенческий культурный центр АЧРМО\"",919,0,0,0,0,7920.4,7163.7,0.90446189586384529]
["КУЛЬТУРА И КИНЕМАТОГРАФИЯ",919,8,0,0,0,7920.4,7163.7,0.90446189586384529]
["Культура",919,8,1,0,0,7920.4,7163.7,0.90446189586384529]
["Учреждения культуры и мероприятия в сфере культуры и кинематографии",919,8,1,4400000,0,5776.1,5112,0.88502622877027748]
["Обеспечение деятельности подведомственных учреждений",919,8,1,4409900,0,5776.1,5112,0.88502622877027748]
["Выполнение функций казенными учреждениями",919,8,1,4409900,"001",5776.1,5112,0.88502622877027748]
["Региональные целевые программы",919,8,1,5220000,0,1000,1000,1]
["Долгосрочная целевая программа Иркутской области «100 модельных домов культуры Приангарью» на 2011-2013 годы",919,8,1,5225500,0,1000,1000,1]
["Выполнение функций казенными учреждениями",919,8,1,5225500,"001",1000,1000,1]
["Погашение кредиторской задолженности учреждений, находящихся в ведении органов местного самоуправления муниципальных образований Иркутской области, по единому социальному налогу, зачисляемому в федеральный бюджет, Фонд социального страхования Российской Федерации, Федеральный фонд обязательного медицинского страхования и территориальные фонды обязательного медицинского страхования",919,8,1,5900000,0,38,38,1]
["Выполнение функций казенными учреждениями",919,8,1,5900000,"001",38,38,1]
["Целевые программы муниципальных образований",919,8,1,7950000,0,1106.3,1013.7,0.91629756847148158]
["Мероприятия по поддержке и развитию культуры, искусства, кинематографии",919,8,1,7950000,"023",554.79999999999995,525.70000000000005,0.94754866618601319]
["Долгосрочная целевая программа Черемховского районного муниципального образования \"Повышение эффективности бюджетных расходов Черемховского районного муниципального образования на 2012-2013 годы\"",919,8,1,7950200,0,551.5,488,0.88485947416137811]
["Выполнение функций казенными учреждениями",919,8,1,7950200,"001",551.5,488,0.88485947416137811]
["МКУК \"Районный историко-краеведческий музей\"",920,0,0,0,0,1628.7,1483.8,0.91103333947319942]
["КУЛЬТУРА И КИНЕМАТОГРАФИЯ",920,8,0,0,0,1628.7,1483.8,0.91103333947319942]
["Культура",920,8,1,0,0,1628.7,1483.8,0.91103333947319942]
["Музеи и постоянные выставки",920,8,1,4410000,0,1389.6,1370.8,0.9864709268854347]
["Обеспечение деятельности подведомственных учреждений",920,8,1,4419900,0,1389.6,1370.8,0.9864709268854347]
["Выполнение функций казенными учреждениями",920,8,1,4419900,"001",1389.6,1370.8,0.9864709268854347]
["Погашение кредиторской задолженности учреждений, находящихся в ведении органов местного самоуправления муниципальных образований Иркутской области, по единому социальному налогу, зачисляемому в федеральный бюджет, Фонд социального страхования Российской Федерации, Федеральный фонд обязательного медицинского страхования и территориальные фонды обязательного медицинского страхования",920,8,1,5900000,0,11.3,11.3,1]
["Выполнение функций казенными учреждениями",920,8,1,5900000,"001",11.3,11.3,1]
["Целевые программы муниципальных образований",920,8,1,7950000,0,227.8,101.7,0.44644424934152765]
["Мероприятия по поддержке и развитию культуры, искусства, кинематографии",920,8,1,7950000,"023",39.200000000000003,29.2,0.74489795918367341]
["Долгосрочная целевая программа Черемховского районного муниципального образования \"Повышение эффективности бюджетных расходов Черемховского районного муниципального образования на 2012-2013 годы\"",920,8,1,7950200,0,188.6,72.5,0.3844114528101803]
["Выполнение функций казенными учреждениями",920,8,1,7950200,"001",188.6,72.5,0.3844114528101803]
["МКУК \"Межпоселенческая библиотека Черемховского района\"",921,0,0,0,0,9573,9292.4,0.97068839444270338]
["КУЛЬТУРА И КИНЕМАТОГРАФИЯ",921,8,0,0,0,9573,9292.4,0.97068839444270338]
["Культура",921,8,1,0,0,9573,9292.4,0.97068839444270338]
["Учреждения культуры и мероприятия в сфере культуры и кинематографии",921,8,1,4400000,0,431,431,1]
["Комплектование книжных фондов библиотек муниципальных образований и государственных библиотек городов Москвы и Санкт-Петербурга",921,8,1,4400200,0,431,431,1]
["Комплектование книжных фондов библиотек муниципальных образований и государственных библиотек городов Москвы и Санкт-Петербурга за счет средств федерального бюджета",921,8,1,4400201,0,281,281,1]
["Выполнение функций казенными учреждениями",921,8,1,4400201,"001",281,281,1]
["Комплектование книжных фондов библиотек муниципальных образований и государственных библиотек городов Москвы и Санкт-Петербурга за счет областного бюджета",921,8,1,4400202,0,150,150,1]
["Выполнение функций казенными учреждениями",921,8,1,4400202,"001",150,150,1]
["Библиотеки",921,8,1,4420000,0,8022.9,7862.9,0.98005708658963719]
["Обеспечение деятельности подведомственных учреждений",921,8,1,4429900,0,8022.9,7862.9,0.98005708658963719]
["Выполнение функций казенными учреждениями",921,8,1,4429900,"001",8022.9,7862.9,0.98005708658963719]
["Погашение кредиторской задолженности учреждений, находящихся в ведении органов местного самоуправления муниципальных образований Иркутской области, по единому социальному налогу, зачисляемому в федеральный бюджет, Фонд социального страхования Российской Федерации, Федеральный фонд обязательного медицинского страхования и территориальные фонды обязательного медицинского страхования",921,8,1,5900000,0,65.099999999999994,65.099999999999994,1]
["Выполнение функций казенными учреждениями",921,8,1,5900000,"001",65.099999999999994,65.099999999999994,1]
["Целевые программы муниципальных образований",921,8,1,7950000,0,1054,933.5,0.885673624288425]
["Мероприятия по поддержке и развитию культуры, искусства, кинематографии",921,8,1,7950000,"023",404.2,402.7,0.99628896585848592]
["Мероприятия по повышению энергетической эффективности",921,8,1,7950000,"451",100,69.900000000000006,0.69900000000000007]
["Долгосрочная целевая программа Черемховского районного муниципального образования \"Повышение эффективности бюджетных расходов Черемховского районного муниципального образования на 2012-2013 годы\"",921,8,1,7950200,0,549.79999999999995,460.9,0.83830483812295387]
["Выполнение функций казенными учреждениями",921,8,1,7950200,"001",549.79999999999995,460.9,0.83830483812295387]
["МКОУ ДОД \"ДШИ поселка Михайловка\"",922,0,0,0,0,6691.9,6430.6,0.96095279367593667]
["ОБРАЗОВАНИЕ",922,7,0,0,0,6691.9,6430.6,0.96095279367593667]
["Общее образование",922,7,2,0,0,6691.9,6430.6,0.96095279367593667]
["Учреждения по внешкольной работе с детьми",922,7,2,4230000,0,5819.4,5564.6,0.95621541739698268]
["Обеспечение деятельности подведомственных учреждений",922,7,2,4239900,0,5819.4,5564.6,0.95621541739698268]
["Выполнение функций казенными учреждениями",922,7,2,4239900,"001",5819.4,5564.6,0.95621541739698268]
["Погашение кредиторской задолженности учреждений, находящихся в ведении органов местного самоуправления муниципальных образований Иркутской области, по единому социальному налогу, зачисляемому в федеральный бюджет, Фонд социального страхования Российской Федерации, Федеральный фонд обязательного медицинского страхования и территориальные фонды обязательного медицинского страхования",922,7,2,5900000,0,0.4,0.4,1]
["Выполнение функций казенными учреждениями",922,7,2,5900000,"001",0.4,0.4,1]
["Целевые программы муниципальных образований",922,7,2,7950000,0,872.1,865.6,0.99254672629285634]
["Мероприятия в сфере образования",922,7,2,7950000,"022",241.6,235.1,0.97309602649006621]
["Долгосрочная целевая программа Черемховского районного муниципального образования \"Повышение эффективности бюджетных расходов Черемховского районного муниципального образования на 2012-2013 годы\"",922,7,2,7950200,0,630.5,630.5,1]
["Выполнение функций казенными учреждениями",922,7,2,7950200,"001",630.5,630.5,1]
["Контрольно-счетная палата ЧРМО",923,0,0,0,0,1312.9,1294.5,0.98598522355091778]
["ОБЩЕГОСУДАРСТВЕННЫЕ ВОПРОСЫ",923,1,0,0,0,1312.9,1294.5,0.98598522355091778]
["Обеспечение деятельности финансовых, налоговых и таможенных органов и органов финансового (финансово-бюджетного) надзора",923,1,6,0,0,1312.9,1294.5,0.98598522355091778]
["Руководство и управление в сфере установленных функций органов государственной власти субъектов Российской Федерации  и органов местного самоуправления",923,1,6,20000,0,1312.9,1294.5,0.98598522355091778]
["Центральный аппарат",923,1,6,20400,0,615.1,603.4,0.98097870264997555]
["Выполнение функций органами местного самоуправления",923,1,6,20400,"500",615.1,603.4,0.98097870264997555]
["Руководитель контрольно-счетной палаты муниципального образования и его заместители",923,1,6,22500,0,697.8,691.1,0.9903983949555748]
["Выполнение функций органами местного самоуправления",923,1,6,22500,"500",697.8,691.1,0.9903983949555748]
["ИТОГО",{"$nulls":5},679785.7,653450.19999999995,0.9612591144532755]
[]
["Начальник финансового управления",{"$nulls":6},"Ю.Н. Гайдук"]

{"sheet":"прил 6","index":5,"n_rows":39,"n_cols":6,"rows_kept":39,"cut":false,"hidden":false,"merged":[[38,4,38,5],[30,4,31,4],[30,0,31,0],[30,1,31,1],[30,2,31,2],[30,3,31,3],[4,3,4,5],[6,0,6,5],[8,0,13,0],[8,1,8,2],[8,3,13,3],[8,4,13,4],[8,5,13,5],[9,1,13,1],[9,2,13,2]]}
[]
[]
[]
[]
[]
[]
["Отчет по источникам  финансирования дефицита бюджета по кодам классификации   источников  финансирования дефицитов бюджетов за 2012 год"]
[]
[" ","Код",null,"План,      тыс.руб.","Исполнено, тыс.руб.","% исполнения"]
[null," главного администратора источников финансирования дефицитов бюджета; группы, подгруппы, статьи и вида источников финансирования дефицитов бюджета; операций сектора государственного управления ","операций сектора государственного управления"]
[]
[]
[]
[]
["Источники внутреннего финансирования дефицита бюджета","000 01 00 00 00 00 0000 000","000",{"$f":"D16+D27","v":20217.548619999947},{"$f":"E16+E27","v":525.21182999995449},{"$f":"E15/D15","v":2.5978017408124124E-2}]
["Источники внутреннего финансирования дефицита бюджета","000 01 00 00 00 00 0000 000","000",{"$f":"D17+D22","v":3828.6552499999998},{"$f":"E17+E22","v":-421.96062000000001},{"$f":"E16/D16","v":-0.11021118185033767}]
["Кредиты кредитных организаций в валюте Российской Федерации","910 01 02 00 00 00 0000 000","000",{"$f":"D18+D20","v":4250.6158699999996},{"$f":"E18+E20","v":0},0]
["Получение кредитов от кредитных организаций в валюте Российской Федерации","910 01 02 00 00 00 0000 700","700",{"$f":"D19","v":4250.6158699999996},{"$f":"E19","v":0},0]
["Кредиты, полученные от кредитных организаций бюджетами муниципальных районов в валюте Российской Федерации","910 01 02 00 00 05 0000 710","710",4250.6158699999996,null,0]
["Погашение кредитов, предоставленных кредитными организациями в валюте Российской Федерации","910 01 02 00 00 00 0000 800","800",{"$f":"D21","v":0},{"$f":"E21","v":0}]
["Погашение бюджетами муниципальных районов кредитов от кредитных организаций в валюте Российской Федерации","910 01 02 00 00 05 0000 810","810"]
["Бюджетные кредиты от других бюджетов бюджетной системы Российской Федерации","910 01 03 00 00 00 0000 000","000",{"$f":"D23+D25","v":-421.96062000000001},{"$f":"E23+E25","v":-421.96062000000001},1]
["Получение бюджетных кредитов от других бюджетов бюджетной системы Российской Федерации в валюте Российской Федерации","910 01 03 00 00 00 0000 700","700",{"$f":"D24","v":0},{"$f":"E24","v":0}]
["Получение кредитов от других бюджетов бюджетной системы Российской Федерации бюджетами муниципальных районов в валюте Российской Федерации","910 01 03 00 00 05 0000 710","710"]
["Погашение бюджетных кредитов, полученных от других бюджетов бюджетной системы Российской Федерации","910 01 03 00 00 00 0000 800","800",{"$f":"D26","v":-421.96062000000001},{"$f":"E26","v":-421.96062000000001},1]
["Погашение бюджетами муниципальных районов кредитов от других бюджетов бюджетной системы Российской Федерации в валюте Российской Федерации","910 01 03 00 00 05 0000 810","810",-421.96062000000001,-421.96062000000001,1]
["Изменение остатков средств на счетах по учету средств бюджетов","000 01 05 00 00 00 0000 000","000",{"$f":"D28+D34","v":16388.893369999947},{"$f":"E28+E34","v":947.17244999995455},5.7793557418206423E-2]
["Увеличение остатков средств бюджетов","000 0105 00 00 00 0000 500","500",{"$f":"D29","v":-663818.81125000003},-667001.71495000005,1.0047948380583047]
["Увеличение прочих остатков средств бюджетов","000 01 05 02 00 00 0000 500","500",-663818.81125000003,-667001.71495000005,1.0047948380583047]
["Увеличение прочих остатков денежных средств бюджетов","000 01 05 02 01 00 0000 510","510",-663818.81125000003,-667001.71495000005,1.0047948380583047]
["Увеличение прочих остатков денежных средств бюджетов муниципальных районов"," 000 01 05 02 01 05 0000 510","510",{"$f":"D33","v":-663818.81125000003},{"$f":"E33","v":-667001.71495000005},1.0047948380583047]
[{"$nulls":5},{"$error":"#DIV/0!"}]
["Уменьшение остатков средств бюджетов","000 01 05 00 00 00 0000 510","600",-663818.81125000003,-667001.71495000005,1.0047948380583047]
["Уменьшение прочих остатков средств бюджетов","000 01 05 02 00 00 0000 600","600",{"$f":"D35","v":680207.70461999997},{"$f":"E35","v":667948.88740000001},0.9819778324521502]
["Уменьшение прочих остатков денежных средств бюджетов","000 01 05 02 01 00 0000 610","610",{"$f":"D36","v":680207.70461999997},{"$f":"E36","v":667948.88740000001},0.9819778324521502]
["Уменьшение прочих остатков денежных средств бюджетов муниципальных районов","000 01 05 02 01 05 0000 610","610",680207.70461999997,667948.88740000001,0.9819778324521502]
[]
[]
["Начальник финансового управления",null,null,null,"Ю.Н.Гайдук"]

{"sheet":"прил 7","index":6,"n_rows":39,"n_cols":9,"rows_kept":39,"cut":false,"hidden":false,"merged":[[38,4,38,5],[30,4,31,4],[30,0,31,0],[30,1,31,1],[30,2,31,2],[30,3,31,3],[4,3,4,5],[6,0,6,5],[8,0,13,0],[8,1,8,2],[8,3,13,3],[8,4,13,4],[8,5,13,5],[9,1,13,1],[9,2,13,2]]}
[]
[]
[]
[]
[]
[]
["Отчет по источникам внутреннего финансирования дефицита бюджета за 2012 год по кодам групп, подгрупп, статей, видов источников финансирования дефицитов бюджетов, классификации операций сектора государственного управления, относящихся к источникам финансирования дефицитов бюджетов",{"$nulls":7}," "]
[]
[" ","Код",null,"План, тыс.руб.","Исполнено, тыс.руб.","% исполнения"]
[null," группы, подгруппы, статьи и вида источников финансирования дефицитов бюджета ","операций сектора государственного управления"]
[]
[]
[]
[]
["Источники внутреннего финансирования дефицита бюджета"," 01 00 00 00 00 0000 ","000",{"$f":"D16+D27","v":20217.548619999947},{"$f":"E16+E27","v":525.21182999995449},{"$f":"E15/D15","v":2.5978017408124124E-2}]
["Источники внутреннего финансирования дефицита бюджета"," 01 00 00 00 00 0000 ","000",{"$f":"D17+D22","v":3828.6552499999998},{"$f":"E17+E22","v":-421.96062000000001},{"$f":"E16/D16","v":-0.11021118185033767}]
["Кредиты кредитных организаций в валюте Российской Федерации"," 01 02 00 00 00 0000 ","000",{"$f":"D18+D20","v":4250.6158699999996},{"$f":"E18+E20","v":0},{"$f":"E17/D17","v":0}]
["Получение кредитов от кредитных организаций в валюте Российской Федерации"," 01 02 00 00 00 0000","700",{"$f":"D19","v":4250.6158699999996},{"$f":"E19","v":0},0]
["Кредиты, полученные от кредитных организаций бюджетами муниципальных районов в валюте Российской Федерации"," 01 02 00 00 05 0000 ","710",4250.6158699999996,null,0]
["Погашение кредитов, предоставленных кредитными организациями в валюте Российской Федерации"," 01 02 00 00 00 0000","800",{"$f":"D21","v":0},{"$f":"E21","v":0}]
["Погашение бюджетами муниципальных районов кредитов от кредитных организаций в валюте Российской Федерации"," 01 02 00 00 05 0000 ","810"]
["Бюджетные кредиты от других бюджетов бюджетной системы Российской Федерации"," 01 03 00 00 00 0000 ","000",{"$f":"D23+D25","v":-421.96062000000001},{"$f":"E23+E25","v":-421.96062000000001},1]
["Получение бюджетных кредитов от других бюджетов бюджетной системы Российской Федерации в валюте Российской Федерации"," 01 03 00 00 00 0000 ","700",{"$f":"D24","v":0},{"$f":"E24","v":0}]
["Получение кредитов от других бюджетов бюджетной системы Российской Федерации бюджетами муниципальных районов в валюте Российской Федерации"," 01 03 00 00 05 0000 ","710"]
["Погашение бюджетных кредитов, полученных от других бюджетов бюджетной системы Российской Федерации"," 01 03 00 00 00 0000 ","800",{"$f":"D26","v":-421.96062000000001},{"$f":"E26","v":-421.96062000000001},{"$f":"E25/D25","v":1}]
["Погашение бюджетами муниципальных районов кредитов от других бюджетов бюджетной системы Российской Федерации в валюте Российской Федерации"," 01 03 00 00 05 0000 ","810",-421.96062000000001,-421.96062000000001,1]
["Изменение остатков средств на счетах по учету средств бюджетов"," 01 05 00 00 00 0000 ","000",{"$f":"D28+D33","v":16388.893369999947},{"$f":"E28+E33","v":947.17244999995455},5.7793557418206423E-2]
["Увеличение остатков средств бюджетов"," 0105 00 00 00 0000 ","500",{"$f":"D29","v":-663818.81125000003},-667001.71495000005,1.0047948380583047]
["Увеличение прочих остатков средств бюджетов"," 01 05 02 00 00 0000 ","500",-663818.81125000003,-667001.71495000005,1.0047948380583047]
["Увеличение прочих остатков денежных средств бюджетов"," 01 05 02 01 00 0000 ","510",-663818.81125000003,-667001.71495000005,1.0047948380583047]
["Увеличение прочих остатков денежных средств бюджетов муниципальных районов"," 01 05 02 01 05 0000 ","510",-663818.81125000003,-667001.71495000005,1.0047948380583047]
[{"$nulls":5},{"$error":"#DIV/0!"}]
["Уменьшение остатков средств бюджетов"," 01 05 00 00 00 0000 ","600",{"$f":"D34","v":680207.70461999997},667948.88740000001,0.9819778324521502]
["Уменьшение прочих остатков средств бюджетов"," 01 05 02 00 00 0000 ","600",680207.70461999997,667948.88740000001,0.9819778324521502]
["Уменьшение прочих остатков денежных средств бюджетов"," 01 05 02 01 00 0000 ","610",680207.70461999997,667948.88740000001,0.9819778324521502]
["Уменьшение прочих остатков денежных средств бюджетов муниципальных районов"," 01 05 02 01 05 0000 ","610",680207.70461999997,667948.88740000001,0.9819778324521502]
[]
[]
["Начальник финансового управления",null,null,null,"Ю.Н.Гайдук"]

{"sheet":"прил8","index":7,"n_rows":24,"n_cols":5,"rows_kept":24,"cut":false,"hidden":false,"merged":[[6,0,6,4]]}
[]
[]
[]
[]
[]
[]
["Отчет о распределении дотации на выравнивание бюджетной обеспеченности поселений за счет средств фонда финансовой поддержки поселений Черемховского районного муниципального образования за  2012 год"]
[]
[{"$nulls":4},"(тыс. рублей)"]
["№п\\п","Наименование городских и сельских поселений","План","Исполнено","% исполнения"]
["1.","Булайское",507,102,{"$f":"D11/C11","v":0.20118343195266272}]
["2.","Голуметское",280,83,{"$f":"D12/C12","v":0.29642857142857143}]
["3.","Каменно-Ангарское",31,31,1]
["4.","Новогромовское",87,0,0]
["5.","Новостроевское",522,0,0]
["6.","Саянское",910,28,3.0769230769230771E-2]
["7.","Тальниковское",622,162,0.26045016077170419]
["8.","Тунгусское",388,113,0.29123711340206188]
["9.","Узколугское",153,10,6.535947712418301E-2]
[" ","Итого:",{"$f":"SUM(C11:C19)","v":3500},{"$f":"SUM(D11:D19)","v":529},0.15114285714285713]
[]
[]
[]
["Начальник финансового управления",null,null,null,"Ю.Н. Гайдук"]

{"sheet":"прил9","index":8,"n_rows":20,"n_cols":5,"rows_kept":20,"cut":false,"hidden":false,"merged":[[19,0,19,2],[19,3,19,4],[7,0,7,4],[10,0,11,0],[10,1,11,1],[10,2,10,4]]}
{"$rows_empty":7}
["Отчет об исполнении иных межбюджетных трансфертов, предоставляемых бюджетам поселений за 2012 год"]
[]
[{"$nulls":4},"(тыс. руб.)"]
["№","Наименование  поселений","Межбюджетные трансферты  бюджетам поселений из бюджетов муниципальных районов на осуществление части полномочий по решению вопросов местного значения в соответствии с заключенными соглашениями (спутниковая связь)"]
[null,null,"План год","исполнено","% исполнения"]
[1,"Новостроевское",23,0.6,{"$f":"D13/C13","v":2.6086956521739129E-2}]
[2,"Онотское",23,0,{"$f":"D14/C14","v":0}]
[3,"Тальниковское",23,0,{"$f":"D15/C15","v":0}]
[4,"Тунгусское",23,0,{"$f":"D16/C16","v":0}]
[null,"Итого:",{"$f":"SUM(C13:C16)","v":92},{"$f":"SUM(D13:D16)","v":0.6},{"$f":"D17/C17","v":6.5217391304347823E-3}]
[]
[]
["Начальник финансового управления",null,null,"Ю.Н. Гайдук"]

{"sheet":"прил10","index":9,"n_rows":76,"n_cols":10,"rows_kept":76,"cut":false,"hidden":false,"merged":[[71,2,71,6],[42,2,43,2],[39,2,40,2],[44,2,47,2],[42,3,43,3],[44,3,47,3],[26,2,27,2],[26,3,27,3],[39,0,70,0],[39,1,70,1],[37,0,38,0],[37,1,38,1],[24,1,25,1],[24,0,25,0],[26,0,27,0],[26,1,27,1],[6,0,6,9],[7,8,7,9],[8,0,9,0],[8,1,9,1],[8,2,9,2],[8,3,8,6],[8,7,8,9],[16,0,19,0],[16,1,19,1],[20,2,25,2],[28,2,35,2],[12,2,15,2],[24,3,25,3]]}
[]
[]
[]
[]
[]
[]
["Отчет по исполнению целевых программ, запланированных в бюджете  Черемховского районного муниципального образования   на  2012 год"]
[{"$nulls":8},"(тыс. рублей)"]
["№ п/п","Наименование программы","Исполнители","Бюджетная классификация",null,null,null,"сумма "]
[null,null,null,"ГРБС","РзПр","ЦСР","ВР","план на год","исполнено ","% исполнения"]
[1,2,3,4,5,6,7,8,9,10]
[1,"Вакцинопрофилактика на 2012-2014 гг.","МБУЗ Михайловская ЦРБ",903,"0902",7950000,"079",50,50,{"$f":"I12/H12","v":1}]
[2,"Неотложные меры по борьбе с туберкулезом на 2012-2014 гг.","Администрация ЧРМО (в рамках финансового обеспечения муниципального задания МБУЗ Михайловская ЦРБ)",917,"0901",7950300,"611",50,50,{"$f":"I13/H13","v":1}]
[3,"Сахарный диабет на 2012-2014 гг.",null,917,"0901",7950400,"611",150,150,1]
[4,"Анти-ВИЧ/СПИД на 2012-2014 гг.",null,917,"0901",7950500,"611",50,50,1]
[5,"Привлечение врачебных кадров в здравоохранение района на 2012-2014 гг.",null,917,"0909",7950900,"612",600,600,1]
[6,"Развитие культуры в Черемховском районном муниципальном образовании на период 2012-2016 гг.","РМУК Черемховская межпоселенческая центральная библиотека",921,"0801",7950000,"023",404.3,402.7,0.99604254266633685]
[null,null,"МОУ ДОД \"ДШИ поселка Михайловка\"",922,"0702",7950000,"022",241.6,235.1,0.97309602649006621]
[null,null,"МУК \"Районный историко-краеведческий музей\"",920,"0801",7950000,"023",39.200000000000003,29.2,0.74489795918367341]
[null,null,"МУК \"Межпоселенческий культурный центр АЧРМО\"",919,"0801",7950000,"023",554.79999999999995,525.70000000000005,0.94754866618601319]
[7,"Ветхие школы Черемховского района на 2011-2013 гг.","Отдел образования АЧРМО",907,"0702",7950000,"022",490,490,1]
[8,"Совершенствование дошкольного образования Черемховского района на 2011-2014 гг.",null,907,"0701",7950000,"022",350,350,1]
[9,"Совершенствование организации питания в образовательных учреждениях Черемховского района на 2011-2013 гг.",null,907,"0702",7950000,"022",1150,1150,1]
[10,"Развитие дошкольного образования на 2011-2014 гг.",null,907,"0701",7950000,"022",637,637,{"$f":"I24/H24","v":1}]
[11,"\"Безопасность образовательных учреждений\" 2010-2014гг.",null,907,"0701",7950000,"450",1000,1000,{"$f":"I25/H25","v":1}]
[{"$nulls":4},"0702",7950000,"450",700,683,{"$f":"I26/H26","v":0.97571428571428576}]
[12,"Инвентаризация муниципальных объектов недвижимости Черемховского районного муниципального образования на 2012-2014 годы","КУМИ",913,"0113",7950000,"500",2660,1022.9,0.38454887218045114]
[{"$nulls":4},"0412",7950000,"500",1440,998.9,0.69368055555555552]
[13,"Молодым семьям доступное жилье на 2005-2019гг.","Администрация ЧРМО ",917,1003,7950000,500,124.5,124.5,1]
[14,"Комплексные меры профилактики злоупотребления наркотическими средствами, психотропними веществами на 2011-2013 гг.",null,917,"0707",7950000,500,10,10,1]
[15,"Молодежная политика в Черемховском районном муниципальном образовании на 2010-2012  ",null,917,"0707",7950000,500,90,90,1]
[16,"Развитие физической культуры, спорта и туризма в Черемховском районном муниципальном образовании на 2011-2013гг.",null,917,"1101",7950000,500,299.10000000000002,299.10000000000002,1]
[17,"Поддержка и развитие малого и среднего предпринимательства в Черемховском районе на 2011-2012 гг.",null,917,"0412",7950000,500,116,116,1]
[18,"Поддержка, проводимых мероприятий, посвященных Дням славы, памятным датам России и работе с ветеранами в Черемховском районе на 2012 год",null,917,"1006",7950000,500,100,96,0.96]
[19,"Улучшение условий и охраны труда в Черемховском районе на 2011-2013 гг",null,917,"0113",7950000,500,15,15,1]
[20,"Комплексная программа профилактики правонарушений Черемховского районного муниципального образования на 2009-2012 гг.",null,917,"0113",7950000,500,40,39.700000000000003,0.99250000000000005]
[21,"Повышение безопасности дорожного движения в Черемховском районе в 2007-2012 гг.","Управление ЖКХ",918,"0113",7950000,500,80,80,1]
[22,"Программа повышения энергетической эффективности Черемховского районного муниципального образования на 2010-2015 гг","Отдел образования АЧРМО",907,"0702",7950000,"451",600,598.9,0.99816666666666665]
[null,null,"РМУК Черемховская межпоселенческая центральная библиотека",921,"0801",7950000,"451",100,69.900000000000006,0.69900000000000007]
[23,"Повышение эффективности бюджетных расходов Черемховского районного муниципального образования на 2012-2013 годы","Финансовое управление АЧРМО",910,"0106",7950200,"500",50,0,0]
[null,null,null,910,"0113",7950200,"001",2234.8000000000002,2189.3000000000002,{"$f":"I41/H41","v":0.97964023626275287}]
[null,null,"Администрация ЧРМО ",917,"0104",7950200,"500",50,24.6,0.49200000000000005]
[null,null,"Отдел образования АЧРМО",907,"0701",7950200,"001",7099.3,7092.8,0.9990844167734847]
[{"$nulls":4},"0702",7950200,"001",10965.4,10965.4,1]
[null,null,"Администрация ЧРМО (в рамках финансового обеспечения муниципального задания МБУЗ Михайловская ЦРБ)",917,"0901 ",7950200,"611",2658.9,2658.9,1]
[{"$nulls":4},"0902",7950200,"611",948.1,948.1,1]
[{"$nulls":4},"0903",7950200,"611",477.2,477.2,1]
[{"$nulls":4},"0904",7950200,"611",318,301,0.94654088050314467]
[null,null,"МКУК \"Межпоселенческий культурный центр АЧРМО\"",919,"0801",7950200,"001",551.4,488,0.88501994922016691]
[null,null,"МКУК \"Районный историко-краеведческий музей\"",920,"0801",7950200,"001",188.6,72.5,0.3844114528101803]
[null,null,"МКУК \"Межпоселенческая библиотека Черемховского района\"",921,"0801",7950200,"001",549.79999999999995,460.9,0.83830483812295387]
[null,null,"МКОУ ДОД \"ДШИ поселка Михайловка\"",922,"0702",7950200,"001",630.5,630.5,1]
[null,null,"Муниципальные образования района, Всего, в том числе",{"$nulls":4},{"$f":"SUM(H54:H71)","v":6643},{"$f":"SUM(I54:I71)","v":6643},{"$f":"H53/I53","v":1}]
[null,null,"Алехинское сельское поселение",910,"1403",7950200,"017",540,540,{"$f":"H54/I54","v":1}]
[null,null,"Бельское сельское поселение",910,"1403",7950200,"017",155,155,{"$f":"H55/I55","v":1}]
[null,null,"Булайское сельское поселение",910,"1403",7950200,"017",390,390,1]
[null,null,"Голуметское сельское поселение",910,"1403",7950200,"017",370,370,1]
[null,null,"Зерновское сельское поселение",910,"1403",7950200,"017",459,459,1]
[null,null,"Каменно-Ангарское сельское поселение",910,"1403",7950200,"017",285,285,1]
[null,null,"Лоховское сельское поселение",910,"1403",7950200,"017",474,474,1]
[null,null,"Михайловское городское поселение",910,"1403",7950200,"017",468,468,1]
[null,null,"Нижнеиретское сельское поселение",910,"1403",7950200,"017",280,280,1]
[null,null,"Новогромовское сельское поселение",910,"1403",7950200,"017",293,293,1]
[null,null,"Новостроевское сельское поселение",910,"1403",7950200,"017",313,313,1]
[null,null,"Онотское сельское поселение",910,"1403",7950200,"017",288,288,1]
[null,null,"Парфеновское сельское поселение",910,"1403",7950200,"017",355,355,1]
[null,null,"Саянское сельское поселение",910,"1403",7950200,"017",471,471,1]
[null,null,"Тальниковское сельское поселение",910,"1403",7950200,"017",279,279,1]
[null,null,"Тунгусское сельское поселение",910,"1403",7950200,"017",330,330,1]
[null,null,"Узколугское сельское поселение",910,"1403",7950200,"017",544,544,1]
[null,null,"Черемховское сельское поселение",910,"1403",7950200,"017",349,349,{"$f":"H71/I71","v":1}]
[null,"Всего:",{"$nulls":5},{"$f":"SUM(H12:H53)","v":45506.5},{"$f":"SUM(I12:I53)","v":42915.8},{"$f":"I72/H72","v":0.94306967136562914}]
[]
[]
[]
["Начальник финансового управления",{"$nulls":8},"Ю.Н. Гайдук"]

{"sheet":"прил 11","index":10,"n_rows":16,"n_cols":6,"rows_kept":16,"cut":false,"hidden":false,"merged":[[15,4,15,5],[5,0,5,5],[8,2,8,3],[10,2,10,3],[11,2,11,3]]}
[]
[]
[]
[]
[]
["Отчет об использовании средств резервного фонда администрации Черемховского районного муниципального образования в 2012 году "]
[]
["№ п/п","Реквизиты распоряжений Администрации Черемховского районного муниципального образования","Направление средств","Получатель","Сумма по распоряжению   (тыс. руб.)","Исполнено (тыс. руб.)"]
[null,null,"Бюджетные ассигнования на 2012 год",null,300]
[1,"№261 от 12.07.2012","Для обеспечения населения питьевой водой в целях ликвидации последствий чрезвычайной ситуации, связанной с разливом нефтепродуктов в акваторию реки Ангара","Администрация ЧРМО",300,300]
[null,null,"Всего расходов",null,{"$f":"SUM(E10:E10)","v":300},{"$f":"SUM(F10:F10)","v":300}]
[null,null,"Нераспределенный остаток средств резервного фонда",null,{"$f":"E9-E11","v":0}]
[]
[]
[]
["Начальник финансового управления",null,null,null,"Ю.Н. Гайдук"]